Workbook

Sheet Cover Sheet
B1: Cost utility analysis: Interventions for bothersome genitourinary symptoms associated with the menopause
B2: Menopause Guideline NG23
B3: This spreadsheet is the cost effectiveness model constructed as part of the NICE Menopause guideline looking at the most cost effective treatments for bothersome genitourinary symptoms associated with the menopause It should be reviewed in conjunction with the Evidence Review B1 (draft for consultation).
B4: Please note:
B5: - this spreadsheet has not been protected and so take care not to overtype formulae that may stop the model working.
B6: - model inputs in the most part do not have data entry restrictions and so be aware that it may be possible to enter values outside the range that will work in the model.
B8: The economic model and its contents are confidential and are protected by intellectual property rights, which are owned by NICE. It cannot be used for any other purpose than to inform the recipient’s understanding of the draft guideline. The economic model cannot be published by stakeholders, in whole or in part, or used to inform the development of other economic models. The model must not be run for purposes other than to test its reliability. Please note using this model requires relevant technical expertise.
B12: To view the results of the deterministic model
B13: 1. Check cell of C5 "Parameters" sheet is set to zero
B14: 2. If base case is required make sure all cells in column C (except cell C5) are empty
B15: 3. To change any of the values from the basecase type the alternate value in the column C headed Manual Input
B16: 4. Click "Results" sheet to see results
B19: To run the probabilistic sensitivity analyses
B20: 1. On sheet "Parameters" click the PSA button in cell F5
B21: 2. See the relevant results and outputs in sheets "Results" "PSA" and "CEAC"
B23: ISBN: 978-1-4731-6568-7

Sheet Model Map
A1: Model Map

Sheet Parameters
B1: Live Estimate | C1: Manual Input | D1: Estimate | E1: Standard error | F1: L.Range | G1: U.Range | H1: Random Number | I1: Distribution | J1: PSA | K1: Source | L1: NOTES | M1: Number oberservations
A2: Parameter
E3: Black cells indicate value is for information and not linked into the economic model. Changing the value will not alter results.
A4: PSA
A5: PSA (ON=1, OFF="") | C5: 0
A7: Clinical outcomes (These values do not change during probabilistic sensitivity analsysis) | I7: Fixed (used to convert absolute scores to EQ-5D)
A8: Results Bachman 2010 | J8: Fixed
A9: Ospemifene | J9: Fixed
A10: Dyspareunia (Change) | B10: =IF(C10="",D10,C10) -> -1.19 | D10: ='Bachmann 2010'!R6 -> -1.19 | J10: Fixed | L10: Scale (0,4 LB)
A11: Vulvovaginal Dryness (Change) | B11: -1.26 | D11: ='Bachmann 2010'!Y6 -> -1.26 | J11: Fixed | L11: Scale (0,4 LB)
A12: Non-Hormonal moisturiser
A13: Dyspareunia (Change) | B13: -0.889 | D13: ='Bachmann 2010'!R7 -> -0.889 | J13: Fixed | L13: Scale (0,4 LB)
A14: Vulvovaginal Dryness (Change) | B14: -0.837 | D14: ='Bachmann 2010'!Y7 -> -0.837 | J14: Fixed | L14: Scale (0,4 LB)
A15: Relative effect (Ospemifene vs Non-Hormonal moisturiser)
A16: Relative effect Dyspareunia | B16: -0.301 | D16: =B10-B13 -> -0.301 | J16: Fixed
A17: Relative effect Vulvovaginal Dryness | B17: -0.423 | D17: =B11-B14 -> -0.423 | J17: Fixed
A20: Change in Scale (0-3, lower score better. Moisturiser/Lubricant Compaartor
A21: Dyspareunia (difficulty/pain in vaginal penetration)
A23: Local tx (Moisturiser/lubricant) | B23: =IF(C23="",D23,C23) -> 0 | D23: ='CODA Dyspar'!B1 -> 0 | J23: Fixed-Reference | K23: Acompanying NMA
A24: DHEA (Prasterone) | B24: =IF(PSA=1, Parameters!J24,IF(C24="",D24,C24)) -> -0.289296991 | D24: ='CODA Dyspar'!C1 -> -0.289296991 | I24: From CODA | J24: ='CODA Dyspar'!C2 -> -0.9389699917 | K24: Acompanying NMA
A25: Laser | B25: =IF(PSA=1, Parameters!J25,IF(C25="",D25,C25)) -> -0.6615868135 | D25: ='CODA Dyspar'!D1 -> -0.6615868135 | I25: From CODA | J25: ='CODA Dyspar'!D2 -> -1.076954829 | K25: Acompanying NMA
A26: SERM (Ospemifene) | B26: =IF(PSA=1, Parameters!J26,IF(C26="",D26,C26)) -> -0.1592479644 | D26: ='CODA Dyspar'!E1 -> -0.1592479644 | I26: From CODA | J26: ='CODA Dyspar'!E2 -> -0.682520123 | K26: Acompanying NMA
A27: Estriol | B27: =IF(PSA=1, Parameters!J27,IF(C27="",D27,C27)) -> -0.3617222032 | D27: ='CODA Dyspar'!F1 -> -0.3617222032 | I27: From CODA | J27: ='CODA Dyspar'!F2 -> -0.644826704 | K27: Acompanying NMA
A28: Estradiol | B28: =IF(PSA=1, Parameters!J28,IF(C28="",D28,C28)) -> -0.1334077795 | D28: ='CODA Dyspar'!G1 -> -0.1334077795 | I28: From CODA | J28: ='CODA Dyspar'!G2 -> -0.1478255122 | K28: Acompanying NMA
A30: Vulvaginal Dryness
A32: Local tx (Moisturiser/lubricant) | B32: =IF(C32="",D32,C32) -> 0 | D32: ='CODA Dryness'!B1 -> 0 | J32: Fixed-Reference | K32: Acompanying NMA
A33: DHEA (Prasterone) | B33: =IF(PSA=1, Parameters!J33,IF(C33="",D33,C33)) -> -0.2565460279 | D33: ='CODA Dryness'!C1 -> -0.2565460279 | I33: From CODA | J33: ='CODA Dryness'!C2 -> -0.0430574876 | K33: Acompanying NMA
A34: Laser | B34: =IF(PSA=1, Parameters!J34,IF(C34="",D34,C34)) -> -0.6718012587 | D34: ='CODA Dryness'!D1 -> -0.6718012587 | I34: From CODA | J34: ='CODA Dryness'!D2 -> -0.7511848746 | K34: Acompanying NMA
A35: SERM (Ospemifene) | B35: =IF(PSA=1, Parameters!J35,IF(C35="",D35,C35)) -> -0.276376264 | D35: ='CODA Dryness'!E1 -> -0.276376264 | I35: From CODA | J35: ='CODA Dryness'!E2 -> -0.4026049177 | K35: Acompanying NMA
A36: Estriol | B36: =IF(PSA=1, Parameters!J36,IF(C36="",D36,C36)) -> -0.2058751408 | D36: ='CODA Dryness'!F1 -> -0.2058751408 | I36: From CODA | J36: ='CODA Dryness'!F2 -> -0.4180986498 | K36: Acompanying NMA
A37: Estradiol | B37: =IF(PSA=1, Parameters!J37,IF(C37="",D37,C37)) -> -0.1819091808 | D37: ='CODA Dryness'!G1 -> -0.1819091808 | I37: From CODA | J37: ='CODA Dryness'!G2 -> -0.1518617858 | K37: Acompanying NMA
A39: Patient distribution Baseline
A40: None | B40: =IF(C40="",D40,C40) -> 0 | D40: 0 | J40: Fixed | K40: Dymond 2021
A41: Mild | B41: 0 | D41: 0 | J41: Fixed | K41: Dymond 2021
A42: Moderate | B42: 0.3160040775 | D42: =0.31/(0.31+0.671) -> 0.3160040775 | J42: Fixed | K42: Dymond 2015
A43: Severe | B43: 0.6839959225 | D43: =0.671/(0.31+0.671) -> 0.6839959225 | J43: Fixed | K43: Dymond 2015
A44: Moderate + Severe | B44: =IF(C44="",D44,C44) -> 1 | D44: =SUM(D42:D43) -> 1 | J44: Fixed
A46: Patient Distribution 12 weeks (Ospemifene)
A47: None | B47: =IF(C47="",D47,C47) -> 0.352 | D47: 0.352 | J47: Fixed | K47: Dymond 2021
A48: Mild | B48: 0.263 | D48: 0.263 | J48: Fixed | K48: Dymond 2021
A49: Moderate | B49: 0.203 | D49: 0.203 | J49: Fixed | K49: Dymond 2021
A50: Severe | B50: 0.182 | D50: 0.182 | J50: Fixed | K50: Dymond 2021
A51: Moderate+Severe | B51: =IF(C51="",D51,C51) -> 0.385 | D51: =D50+D49 -> 0.385 | J51: Fixed
A53: Patient Distribution 12 weeks (Local TX)
A54: None | B54: =IF(C54="",D54,C54) -> 0.255 | D54: 0.255 | J54: Fixed | K54: Dymond 2021
A55: Mild | B55: 0.203 | D55: 0.203 | J55: Fixed | K55: Dymond 2021
A56: Moderate | B56: 0.245 | D56: 0.245 | J56: Fixed | K56: Dymond 2021
A57: Severe | B57: 0.297 | D57: 0.297 | J57: Fixed | K57: Dymond 2021
A58: Moderate+severe | B58: =IF(C58="",D58,C58) -> 0.542 | D58: =D56+D57 -> 0.542 | J58: Fixed
A60: Costs
A61: Local tx (Moisturiser/lubricant) | B61: =IF(PSA=1, Parameters!J61,IF(C61="",D61,C61)) -> 7 | D61: ='BNF Costs'!J7 -> 7 | F61: =D61*0.75 -> 5.25 | G61: =D61*1.25 -> 8.75 | H61: =RAND() -> 0.04482057588 | I61: Traingular (+-50%) | J61: =IF(H61<=(D61-F61)/(G61-F61), F61 + SQRT(H61 * (G61-F61) * (D61-F61)), G61- SQRT((1-H61) * (G61-F61) * (G61-D61))) -> 5.773952314
A62: DHEA | B62: =IF(PSA=1, Parameters!J62,IF(C62="",D62,C62)) -> 47.82 | D62: ='BNF Costs'!J4 -> 47.82 | F62: =D62*0.75 -> 35.865 | G62: =D62*1.25 -> 59.775 | H62: =RAND() -> 0.854128608 | I62: Traingular (+-50%) | J62: 53.31771965
A63: Laser | B63: =IF(PSA=1, Parameters!J63,IF(C63="",D63,C63)) -> 2502 | D63: =MEDIAN('Laser Costs'!B4:B7)+D61 -> 2502 | F63: ='Laser Costs'!B6 -> 1500 | G63: ='Laser Costs'!B5 -> 3600 | H63: 0.1315638727 | I63: Triangular | J63: =IF(H63<=(D63-F63)/(G63-F63), F63 + SQRT(H63 * (G63-F63) * (D63-F63)), G63- SQRT((1-H63) * (G63-F63) * (G63-D63))) -> 2026.152735 | L63: Includes cost moisturiser
A64: SERM | B64: =IF(PSA=1, Parameters!J64,IF(C64="",D64,C64)) -> 125.5 | D64: ='BNF Costs'!J8+D61 -> 125.5 | F64: =D64*0.75 -> 94.125 | G64: =D64*1.25 -> 156.875 | H64: 0.09673739584 | I64: Traingular (+-50%) | J64: 107.9255352 | L64: Includes cost moisturiser
A65: Estriol | B65: =IF(PSA=1, Parameters!J65,IF(C65="",D65,C65)) -> 10.38333333 | D65: ='BNF Costs'!J9 -> 10.38333333 | F65: =D65*0.75 -> 7.7875 | G65: =D65*1.25 -> 12.97916667 | H65: 0.4888006415 | I65: Traingular (+-50%) | J65: 10.35409702
A66: Estradiol | B66: =IF(PSA=1, Parameters!J66,IF(C66="",D66,C66)) -> 21.25 | D66: ='BNF Costs'!J15 -> 21.25 | F66: 15.9375 | G66: 26.5625 | H66: 0.3197530617 | I66: Traingular (+-50%) | J66: =IF(H66<=(D66-F66)/(G66-F66), F66 + SQRT(H66 * (G66-F66) * (D66-F66)), G66- SQRT((1-H66) * (G66-F66) * (G66-D66))) -> 20.18585986
A70: Costs
A71: GP Visit (in person) | B71: =IF(PSA=1, Parameters!J71,IF(C71="",D71,C71)) -> 36 | D71: 36 | F71: =D71*0.75 -> 27 | G71: =D71*1.25 -> 45 | H71: =RAND() -> 0.7128519629 | I71: Traingular (+-50%) | J71: =IF(H71<=(D71-F71)/(G71-F71), F71 + SQRT(H71 * (G71-F71) * (D71-F71)), G71- SQRT((1-H71) * (G71-F71) * (G71-D71))) -> 38.17959077 | K71: PSSRU | L71: Including direct care staff but excluding qualification
A72: GP Visit (telephone) | B72: =IF(PSA=1, Parameters!J72,IF(C72="",D72,C72)) -> 14.27 | D72: 14.27 | F72: =D72*0.75 -> 10.7025 | G72: =D72*1.25 -> 17.8375 | H72: =RAND() -> 0.6457933238 | I72: Traingular (+-50%) | J72: =IF(H72<=(D72-F72)/(G72-F72), F72 + SQRT(H72 * (G72-F72) * (D72-F72)), G72- SQRT((1-H72) * (G72-F72) * (G72-D72))) -> 14.83483176 | K72: PSSRU-substract qualification costs
A73: Gynaecology (First appointment) | B73: =IF(PSA=1, Parameters!J73,IF(C73="",D73,C73)) -> 244.6 | D73: ='Gynaecology Costs'!F3 -> 244.6 | E73: =((D73*0.3))/((NORMSINV(0.68)*2))/SQRT(M73) -> 6.776868488 | H73: 0.2980000363 | I73: Gamma | J73: =_xlfn.GAMMA.INV(H73,(D73^2)/(E73^2),(E73^2)/D73) -> 240.9626883 | K73: NHS Costs Collection | M73: ='Gynaecology Costs'!H3 -> 134
A74: Gynaecology (Subsequent appointments) | B74: =IF(PSA=1, Parameters!J74,IF(C74="",D74,C74)) -> 196.09 | D74: ='Gynaecology Costs'!F2 -> 196.09 | E74: =((D74*0.3))/((NORMSINV(0.68)*2))/SQRT(M74) -> 5.453240234 | H74: 0.9580859273 | I74: Gamma | J74: =_xlfn.GAMMA.INV(H74,(D74^2)/(E74^2),(E74^2)/D74) -> 205.6178053 | K74: NHS Costs Collection | M74: ='Gynaecology Costs'!H2 -> 133
A76: Resource Use
A77: Initial Visit GP
A78: Non-hormonal moisturiser/lubricant | B78: =IF(C78="",D78,C78) -> 1 | D78: 1 | I78: Fixed
A79: DHEA (Prasterone) | B79: =IF(C79="",D79,C79) -> 1 | D79: 1 | I79: Fixed
A80: Laser | B80: 1 | D80: 1 | I80: Fixed
A81: SERM (Ospemifene) | B81: 1 | D81: 1 | I81: Fixed
A82: Estriol | B82: 1 | D82: 1 | I82: Fixed
A83: Estradiol | B83: 1 | D83: 1 | I83: Fixed
A85: Initial Gynaecology
A86: Non-hormonal moisturiser/lubricant | B86: =IF(C86="",D86,C86) -> 0 | D86: 0 | I86: Fixed
A87: DHEA (Prasterone) | B87: =IF(C87="",D87,C87) -> 0 | D87: 0 | I87: Fixed
A88: Laser | B88: 1 | D88: 1 | I88: Fixed
A89: SERM (Ospemifene) | B89: 1 | D89: 1 | I89: Fixed
A90: Estriol | B90: 0 | D90: 0 | I90: Fixed
A91: Estradiol | B91: 0 | D91: 0 | I91: Fixed
A93: Annual GP visits
A94: None | B94: =IF(C94="",D94,C94) -> 1 | D94: 1 | I94: Fixed
A95: Mild | B95: =IF(C95="",D95,C95) -> 1 | D95: 1 | I95: Fixed
A96: Moderate | B96: =IF(PSA=1, Parameters!J96,IF(C96="",D96,C96)) -> 2 | D96: 2 | I96: Equal chance (2-5) | J96: =RANDBETWEEN(2,5) -> 2
A97: Severe | B97: =IF(PSA=1, Parameters!J97,IF(C97="",D97,C97)) -> 2 | D97: 2 | I97: Equal chance (2-5) | J97: =RANDBETWEEN(2,5) -> 2
A98: Moderate+Severe | B98: =IF(PSA=1, Parameters!J98,IF(C98="",D98,C98)) -> 2 | D98: 2 | I98: Equal chance (2-5) | J98: 5
A100: Annual Gynaecology Visits
A101: None | B101: =IF(C101="",D101,C101) -> 0 | D101: 0 | I101: Fixed
A102: Mild | B102: =IF(C102="",D102,C102) -> 0 | D102: 0 | I102: Fixed
A103: Moderate | B103: =IF(C103="",D103,C103) -> 0 | D103: 0 | I103: Fixed
A104: Severe | B104: 0 | D104: 0 | I104: Fixed
A105: Moderate+Severe | B105: 0 | D105: 0 | I105: Fixed
A107: Utilities
A108: None | B108: =IF(PSA=1, Parameters!J108,IF(C108="",D108,C108)) -> 0.82 | D108: 0.82 | E108: =(G108-F108)/3.92 -> 0.01020408163 | F108: 0.8 | G108: 0.84 | H108: =RAND() -> 0.9139323954 | I108: Beta | J108: =BETAINV(H108,D108*(((D108*(1-D108)) / E108^2)-1), (1-D108) * (((D108*(1-D108)) / E108^2)-1)) -> 0.8338010403 | K108: DiBonaventura 2015
A109: Mild | B109: =IF(PSA=1, Parameters!J109,IF(C109="",D109,C109)) -> 0.8 | D109: 0.8 | E109: =(G109-F109)/3.92 -> 0.01530612245 | F109: 0.77 | G109: 0.83 | H109: =RAND() -> 0.8588885054 | I109: Beta | J109: =BETAINV(H109,D109*(((D109*(1-D109)) / E109^2)-1), (1-D109) * (((D109*(1-D109)) / E109^2)-1)) -> 0.8164153836
A110: Moderate | B110: =IF(PSA=1, Parameters!J110,IF(C110="",D110,C110)) -> 0.76 | D110: 0.76 | E110: 0.01785714286 | F110: 0.73 | G110: 0.8 | H110: 0.6798670654 | I110: Beta | J110: =BETAINV(H110,D110*(((D110*(1-D110)) / E110^2)-1), (1-D110) * (((D110*(1-D110)) / E110^2)-1)) -> 0.7685884843
A111: Severe | B111: =IF(PSA=1, Parameters!J111,IF(C111="",D111,C111)) -> 0.68 | D111: 0.68 | E111: 0.02040816327 | F111: 0.64 | G111: 0.72 | H111: 0.7864116938 | I111: Beta | J111: =BETAINV(H111,D111*(((D111*(1-D111)) / E111^2)-1), (1-D111) * (((D111*(1-D111)) / E111^2)-1)) -> 0.6963047474
A112: Moderate+severe (baseline) | B112: =IF(PSA=1, Parameters!J112,IF(C112="",D112,C112)) -> 0.7052803262 | D112: =D110*D42+D111*D43 -> 0.7052803262 | I112: Sum Moderate and Severe | J112: =J110*D42+J111*D43 -> 0.719146703 | L112: Weighted by starting state. Assumed remain this proportion throughout model.
A114: QALY Threshold | B114: =IF(C114="",D114,C114) -> 20000 | D114: =PSA!Z2 -> 20000
A116: Discount | I116: Fixed
A117: QALY | B117: =IF(C117="",D117,C117) -> 0.035 | D117: 0.035
A118: Costs | B118: 0.035 | D118: No costs are estimated after the first year of the model

Sheet BNF Costs
A1: BNF Accessed 14/03/2023
D2: BNF Costs (NHS indicative price) | E2: Quantity | F2: Dose | G2: Unit | H2: Notes | I2: Treatment schedule | J2: 12 week Price
A3: Class | B3: Treatment
A4: DHEA | B4: PRASTERONE | D4: 15.94 | E4: 28 | F4: 6.5mg | G4: Tablet | H4: Intrarosa | I4: 6.5mg daily | J4: =(12*7)*(D4/E4) -> 47.82
A5: LASER | B5: CO2_LASER | D5: See sheet 'Laserl
A6: LOCAL_TX | B6: MOISTURISER | C6: NHS Drug Tariff | E6: 50ml | F6: 1 tube | G6: Cream | H6: Gynomunal | J6: 7.99
B7: LUBRICANT | C7: NHS Drug Tariff | E7: 75ml | F7: 1 tube | H7: YES WB water-based vaginal lubricant | J7: 7
A8: SERM | B8: OSPEMIFENE | D8: 39.5 | E8: 28 | F8: 60mg | G8: Tablet | H8: Senshio | I8: One tablet daily | J8: =(12*7)*(D8/E8) -> 118.5
A9: Estriol | B9: ESTRIOL_CREAM | D9: 4.45 | E9: 15 | F9: 1mg/g | G9: Gram | H9: Ovestin- Other manufacturers available but not NHS indicative price not reported. | I9: 1 application daily for 3-4 weeks, 1 applicator twice weekly, evaluated 12 weeks | J9: =(7*4)*(D9/E9)+(7*1)*(D9/E9) -> 10.38333333
B10: ESTRIOL_PESS | D10: 13.38 | E10: 24 | F10: 30mg | G10: Pessary | H10: ImVaggis | I10: 1 pessary daily 3 weeks, 1 pessary twice weekly,
B11: ESTRIOL_PESS_50
B12: ESTRIOL_GEL | D12: 18.9 | E12: 30 | F12: 50mg/g | G12: Gram | H12: Blissel | I12: 1 application daily for 3-4 weeks, 1 applicator twice weekly, evaluated 12 weeks
A13: Estradiol | B13: ESTRADIOL_TAB | D13: 5.06 | E13: 84 | F13: 1mg | G13: Tablet | H13: Multiple NHS indicative price used
B14: ESTRADIOL_RING | D14: 31.42 | E14: 1 | G14: Device | H14: Estring | I14: Lasts 3 months
B15: ESTRADIOL_CREAM | D15: 15 | E15: 24 | F15: 10mg | G15: Pessary | H15: Multiple NHS indicative price used | I15: Daily two weeks, twice weekly after two weeks | J15: =(2*7)*(D15/E15)+(10*2)*(D15/E15) -> 21.25
B16: ESTRADIOL_GELCAP | D16: 5.85 | E16: 28 | F16: 1mg | G16: Sachet | H16: Sandrenam Multiple interventions cheapest chosen

Sheet Laser Costs
A1: Estimated cost for 3 rounds of laser. Costs from public sector. | E1: Only includes cost treatment. Consultation costs taken out where reported seperately.
B3: Estimated Cost | C3: Source | D3: Sessions | E3: Accessed
B4: 3000 | C4: Guideline Committee Assumption | D4: 3 | E4: 21/03/23 Guideline committee meeting
B5: 3600 | C5: Vaginal Laser Treatment UK | London & Harley Street | Centre for Surgery | D5: 3 | E5: 2023-03-29
B6: 1500 | C6: Laser Vagina | CO2 Laser Vaginal Rejuvenation - RejuvaMed Health & Wellness | D6: 3 | E6: 2023-03-29
B7: 1990 | C7: Laser Vaginal Rejuvenation |London Laser Clinic | D7: 3 | E7: 2023-03-30

Sheet Gynaecology Costs
A1: Service Code | B1: Service Description | C1: Currency Code | D1: Currency Description | E1: Number of Attendances | F1: National Average Unit Cost | G1: Total Costs | H1: No. Data Submissions
A2: 502 | B2: Gynaecology | C2: WF01A | D2: Non-Admitted Face-to-Face Attendance, Follow-up | E2: 551131 | F2: 196.09 | G2: 108073299.2 | H2: 133
A3: 502 | B3: Gynaecology | C3: WF01B | D3: Non-Admitted Face-to-Face Attendance, First | E3: 537007 | F3: 244.6 | G3: 131350775.8 | H3: 134
A4: 502 | B4: Gynaecology | C4: WF01C | D4: Non-Admitted Non-Face-to-Face Attendance, Follow-up | E4: 304327 | F4: 163.16 | G4: 49654212.43 | H4: 116
A5: 502 | B5: Gynaecology | C5: WF01D | D5: Non-Admitted Non-Face-to-Face Attendance, First | E5: 158157 | F5: 231.27 | G5: 36576802.18 | H5: 104

Sheet Bachmann 2010
A1: STUDY ID | B1: Country | C1: Uterus / no uterus | D1: Breast or gynaecological cancer history | E1: Lubricant/moisturiser use permitted | G1: Arm 1 Arm 1 Arm1 Arm 1 Arm 1 Arm 1 Arm 1 Arm 1 Arm 1 Arm 1 Arm 1 Arm 1 Arm 1 Arm 1 Arm 1 Arm 1 Arm 1 Arm 1 Arm 1 Arm 1 Arm 1 Arm 1 Arm 1 Arm 1 Arm 1 Arm 1 Arm 1
G2: Intervention | H2: Discontinuation @ treatment endpoint | J2: N | L2: Method of analysis - efficacy | N2: (1) Pain with sex (dyspareunia) | U2: (2) Vulvovaginal dryness | AB2: (3) Vulvovaginal discomfort or irritation | AI2: (4) Discomfort or pain when urinating (dysuria) | AR2: (1) Pain with sex | BC2: (2) Vulvovaginal dryness
L3: ITT or completers (prioritise ITT data) | M3: Method of imputation if ITT | N3: baseline | P3: endpoint | R3: change score | T3: scale used | U3: baseline | W3: endpoint | Y3: change score | AA3: scale used | AB3: baseline | AD3: endpoint | AF3: change score | AH3: scale used | AI3: baseline | AK3: endpoint | AM3: change score | AO3: scale used | AR3: Difference between arms [record baseline scores in arm rows as well] | BC3: Difference between arms [record baseline scores in arm rows as well]
F4: Full interventions | H4: Any | I4: Due to side effects | J4: Randomised | K4: Completers | N4: mean | O4: sd | P4: mean | Q4: sd | R4: mean | S4: sd | U4: mean | V4: sd | W4: mean | X4: sd | Y4: mean | Z4: sd | AB4: mean | AC4: sd | AD4: mean | AE4: sd | AF4: mean | AG4: sd | AI4: mean | AJ4: sd | AK4: mean | AL4: sd | AM4: mean | AN4: sd | AR4: Baseline score | AS4: Endpoint or pre-post | AT4: mean | AU4: (1) SE | AV4: (2) lower 95% CI | AW4: (2) upper 95% CI | AX4: (3) t-statistic | AY4: (4) p value | AZ4: type of statistical test | BA4: factors if ANOVA | BB4: Scale used | BC4: Baseline score | BD4: Endpoint or pre-post | BE4: mean | BF4: (1) SE | BG4: (2) lower 95% CI | BH4: (2) upper 95% CI | BI4: (3) t-statistic | BJ4: (4) p value | BK4: type of statistical test | BL4: factors if ANOVA | BM4: Scale used
A5: study_id | B5: country | C5: uterus | D5: cancer | E5: lube | F5: tx_description | G5: tx_id | H5: discont_any | I5: discont_adverse | J5: n_randomised | K5: n_completers | L5: itt_completers | M5: itt_impute | N5: dysparenuia_base_mean | O5: dysparenuia_base_sd | P5: dysparenuia_end_mean | Q5: dysparenuia_end_sd | R5: dysparenuia_change_mean | S5: dysparenuia_change_sd | T5: dysparenuia_scale | U5: dryness_base_mean | V5: dryness_base_sd | W5: dryness_end_mean | X5: dryness_end_sd | Y5: dryness_change_mean | Z5: dryness_change_sd | AA5: dryness_scale | AB5: discomfort_base_mean | AC5: discomfort_base_sd | AD5: discomfort_end_mean | AE5: discomfort_end_sd | AF5: discomfort_change_mean | AG5: discomfort_change_sd | AH5: discomfort_scale | AI5: dysuria_base_mean | AJ5: dysuria_base_sd | AK5: dysuria_end_mean | AL5: dysuria_end_sd | AM5: dysuria_change_mean | AN5: dysuria_change_sd | AO5: dysuria_scale
A6: Bachmann 2010 | B6: United States | C6: Both uterus & no uterus | D6: None | E6: Yes in all treatment arms | F6: 60mg Ospemifene oral tablet daily. | G6: OSPEMIFENE | H6: 42 | I6: 13 | J6: 276 | K6: 234 | L6: ITT | M6: LOCF | N6: 2.6 | O6: 0.7 | P6: na | Q6: na | R6: -1.19 | S6: na | T6: 4-point scale (0-3;LB) | U6: 2.4 | V6: 0.6 | W6: na | X6: na | Y6: -1.26 | Z6: na | AA6: 4-point scale (0-3;LB) | AB6: na | AC6: na | AD6: na | AE6: na | AF6: na | AG6: na | AH6: na | AI6: na | AJ6: na | AK6: na | AL6: na | AM6: na | AN6: na | AO6: na | AQ6: 1 vs 3 | AR6: 2.6 | AS6: pre-post | AT6: -0.3 | AU6: na | AV6: na | AW6: na | AX6: na | AY6: >0.05 | AZ6: Cochran-Mantel-Haenszel row mean scores test | BA6: na | BB6: 4-point scale (0-3;LB) | BC6: 2.4 | BD6: pre-post | BE6: -0.42 | BF6: na | BG6: na | BH6: na | BI6: na | BJ6: 0.021 | BK6: Cochran-Mantel-Haenszel row mean scores test | BL6: na | BM6: 4-point scale (0-3;LB)
A7: Bachmann 2010 | B7: United States | C7: Both uterus & no uterus | D7: None | E7: Yes in all treatment arms | F7: Placebo oral tablet daily. | G7: PLC_ORAL | H7: 38 | I7: 13 | J7: 268 | K7: 230 | L7: ITT | M7: LOCF | N7: 2.7 | O7: 0.6 | P7: na | Q7: na | R7: -0.889 | S7: na | T7: 4-point scale (0-3;LB) | U7: 2.4 | V7: 0.5 | W7: na | X7: na | Y7: -0.837 | Z7: na | AA7: 4-point scale (0-3;LB) | AB7: na | AC7: na | AD7: na | AE7: na | AF7: na | AG7: na | AH7: na | AI7: na | AJ7: na | AK7: na | AL7: na | AM7: na | AN7: na | AO7: na

Sheet Transition matrices
J1: Transition Matrices
B2: None | C2: Mild | D2: Moderate+Severe | G2: Local tx (Moisturiser/lubricant)
A3: Current | B3: =Parameters!D40 -> 0 | C3: =Parameters!D41 -> 0 | D3: =Parameters!D44 -> 1 | G3: DHEA (Prasterone) | J3: Non-hormonal moisturiser/lubricant
A4: Aim Ospemifene | B4: =Parameters!D47 -> 0.352 | C4: =Parameters!D48 -> 0.263 | D4: =Parameters!D51 -> 0.385 | G4: Laser | L4: After
A5: Aim Tx | B5: =Parameters!D54 -> 0.255 | C5: =Parameters!D55 -> 0.203 | D5: =Parameters!D58 -> 0.542 | G5: SERM (Ospemifene) | K5: None | L5: Mild | M5: Moderate+Severe
G6: Estriol | I6: Before | J6: Moderate+Severe | K6: =B5 -> 0.255 | L6: =C5 -> 0.203 | M6: =1-(K6+L6) -> 0.542
G7: Estradiol
B8: Probability Change to None | J8: SERM (Ospemifene)
B9: Change Dyspareunia | C9: Change VV Dryness | E9: Probability Coefficient Each factor | L9: After
A10: Ospemifene | B10: =Parameters!B10 -> -1.19 | C10: =Parameters!B11 -> -1.26 | D10: =B4 -> 0.352 | E10: Dysp | F10: =MMULT(MINVERSE(B10:C11),D10:D11) -> -0.2149383611 | K10: None | L10: Mild | M10: Moderate+Severe
A11: Local Tx | B11: =Baseline_Dysp -> -0.889 | C11: =Baseline_VVD -> -0.837 | D11: =B5 -> 0.255 | E11: Dryness | F11: -0.0763677383 | I11: Before | J11: Moderate+Severe | K11: =((Baseline_Dysp+Dysp_ospemifene)*coef_A_None)+((Baseline_VVD+VVD_Ospemifene)*Coef_B_None) -> 0.3103347267 | L11: =((Baseline_Dysp+Dysp_ospemifene)*Coeff_A_Mild)+((Baseline_VVD+VVD_Ospemifene)*Coeff_B_Mild) -> 0.2314547719 | M11: =1-(K11+L11) -> 0.4582105014
B13: Probability Change to Mild | J13: Laser
B14: Change Dyspareunia | C14: Change VV Dryness | E14: Probability Coefficient Each factor | L14: After
A15: Ospemifene | B15: =Parameters!B10 -> -1.19 | C15: =Parameters!B11 -> -1.26 | D15: =C4 -> 0.263 | E15: Dysp | F15: =MMULT(MINVERSE(B15:C16),D15:D16) -> -0.2872371284 | K15: None | L15: Mild | M15: Moderate+Severe
A16: Local Tx | B16: =Baseline_Dysp -> -0.889 | C16: =Baseline_VVD -> -0.837 | D16: =C5 -> 0.203 | E16: Dryness | F16: 0.06254935138 | I16: Before | J16: Moderate+Severe | K16: =((Baseline_Dysp+Dysp_Laser)*coef_A_None)+((Baseline_VVD+VVD_Laser)*Coef_B_None) -> 0.4485043282 | L16: =((Baseline_Dysp+Dysp_Laser)*Coeff_A_Mild)+((Baseline_VVD+VVD_Laser)*Coeff_B_Mild) -> 0.3510115635 | M16: =1-(K16+L16) -> 0.2004841084
J18: Prasterone
L19: After
K20: None | L20: Mild | M20: Moderate+Severe
I21: Before | J21: Moderate+Severe | K21: =((Baseline_Dysp+Dysp_Prasterone)*coef_A_None)+((Baseline_VVD+VVD_Prasterone)*Coef_B_None) -> 0.336772861 | L21: =((Baseline_Dysp+Dysp_Prasterone)*Coeff_A_Mild)+((Baseline_VVD+VVD_Prasterone)*Coeff_B_Mild) -> 0.2700500493 | M21: =1-(K21+L21) -> 0.3931770897
J23: Estriol
L24: After
K25: None | L25: Mild | M25: Moderate+Severe
I26: Before | J26: Moderate+Severe | K26: =((Baseline_Dysp+Dysp_Estriol)*coef_A_None)+((Baseline_VVD+VVD_Estriol)*Coef_B_None) -> 0.3484701964 | L26: =((Baseline_Dysp+Dysp_Estriol)*Coeff_A_Mild)+((Baseline_VVD+VVD_Estriol)*Coeff_B_Mild) -> 0.2940226904 | M26: =1-(K26+L26) -> 0.3575071132
J28: Estradiol
L29: After
K30: None | L30: Mild | M30: Moderate+Severe
I31: Before | J31: Moderate+Severe | K31: =((Baseline_Dysp+Dysp_Estradiol)*coef_A_None)+((Baseline_VVD+VVD_Estradiol)*Coef_B_None) -> 0.2975664422 | L31: =((Baseline_Dysp+Dysp_Estradiol)*Coeff_A_Mild)+((Baseline_VVD+VVD_Estradiol)*Coeff_B_Mild) -> 0.2299413662 | M31: =1-(K31+L31) -> 0.4724921916

Sheet Cost Outcomes
A1: Basecase | G1: Total Cost
A2: Outcomes | B2: Intervention Costs | C2: Initial GP/Gynaecologist costs | D2: State costs (healthcare visits) None | E2: Mild | F2: Moderate & Severe
A3: Non-hormonal moisturiser/lubricant | B3: =Cost_moisturiser -> 7 | C3: =IGP_Moisturiser*Cost_GP+IGYN_Moisturiser*Cost_GynIn -> 36 | D3: =State_None_Moisturiser*(GP_None*Cost_GP+Gyn_None*Cost_GynSub) -> 9.18 | E3: =State_Mild_Moisturiser*(GP_Mild*Cost_GP+Gyn_Mild*Cost_GynSub) -> 7.308 | F3: =State_ModSev_Moisturiser*(GP_ModSev*Cost_GP+Gyn_ModSev*Cost_GynSub) -> 39.024 | G3: =SUM(B3:F3) -> 98.512
A4: Prasterone | B4: =Cost_DHEA -> 47.82 | C4: =IGP_DHEA*Cost_GP+IGYN_DHEA*Cost_GynIn -> 36 | D4: =State_None_DHEA*(GP_None*Cost_GP+Gyn_None*Cost_GynSub) -> 12.123823 | E4: =State_Mild_DHEA*(GP_Mild*Cost_GP+Gyn_Mild*Cost_GynSub) -> 9.721801774 | F4: =State_ModSev_DHEA*(GP_ModSev*Cost_GP+Gyn_ModSev*Cost_GynSub) -> 28.30875046 | G4: =SUM(B4:F4) -> 133.9743752
A5: Laser | B5: =Cost_laser -> 2502 | C5: =IGP_Laser*Cost_GP+IGYN_Laser*Cost_GynIn -> 280.6 | D5: =State_None_Laser*(GP_None*Cost_GP+Gyn_None*Cost_GynSub) -> 16.14615581 | E5: =State_mild_Laser*(GP_Mild*Cost_GP+Gyn_Mild*Cost_GynSub) -> 12.63641629 | F5: =State_ModSev_Laser*(GP_ModSev*Cost_GP+Gyn_ModSev*Cost_GynSub) -> 14.4348558 | G5: 2825.817428
A6: Ospemifene | B6: =Cost_SERM -> 125.5 | C6: =IGP_SERM*Cost_GP+IGYN_SERM*Cost_GynIn -> 280.6 | D6: =State_NONE_SERM*(GP_None*Cost_GP+Gyn_None*Cost_GynSub) -> 11.17205016 | E6: =State_Mild_Serm*(GP_Mild*Cost_GP+Gyn_Mild*Cost_GynSub) -> 8.33237179 | F6: =State_ModSev_SERM*(GP_ModSev*Cost_GP+Gyn_ModSev*Cost_GynSub) -> 32.9911561 | G6: 458.595578
A7: Estriol | B7: =Cost_Estriol -> 10.38333333 | C7: =IGP_Estriol*Cost_GP+IGYN_estriol*Cost_GynIn -> 36 | D7: =State_None_Estriol*(GP_None*Cost_GP+Gyn_None*Cost_GynSub) -> 12.54492707 | E7: =State_Mild_Estriol*(GP_Mild*Cost_GP+Gyn_Mild*Cost_GynSub) -> 10.58481685 | F7: =State_ModSev_Estriol*(GP_ModSev*Cost_GP+Gyn_ModSev*Cost_GynSub) -> 25.74051215 | G7: 95.25358941
A8: Estradiol | B8: =Cost_estradiol -> 21.25 | C8: =IGP_Estradiol*Cost_GP+IGYN_Estradiol*Cost_GynIn -> 36 | D8: =State_None_Estradiol*(GP_None*Cost_GP+Gyn_None*Cost_GynSub) -> 10.71239192 | E8: =State_Mild_Estradiol*(GP_Mild*Cost_GP+Gyn_Mild*Cost_GynSub) -> 8.277889183 | F8: =State_ModSev_Estradiol*(GP_ModSev*Cost_GP+Gyn_ModSev*Cost_GynSub) -> 34.0194378 | G8: 110.2597189
A10: GP_Phone_Consultation
A11: Outcomes | B11: Intervention Costs | C11: Initial GP/Gynaecologist costs | D11: State costs (healthcare visits) None | E11: Mild | F11: Moderate & Severe
A12: Non-hormonal moisturiser/lubricant | B12: =Cost_moisturiser -> 7 | C12: =IGP_Moisturiser*Cost_phone+IGYN_Moisturiser*Cost_GynIn -> 14.27 | D12: =State_None_Moisturiser*(GP_None*Cost_phone+Gyn_None*Cost_GynSub) -> 3.63885 | E12: =State_Mild_Moisturiser*(GP_Mild*Cost_phone+Gyn_Mild*Cost_GynSub) -> 2.89681 | F12: =State_ModSev_Moisturiser*(GP_ModSev*Cost_phone+Gyn_ModSev*Cost_GynSub) -> 15.46868 | G12: =SUM(B12:F12) -> 43.27434
A13: Prasterone | B13: =Cost_DHEA -> 47.82 | C13: =IGP_DHEA*Cost_phone+IGYN_DHEA*Cost_GynIn -> 14.27 | D13: =State_None_DHEA*(GP_None*Cost_phone+Gyn_None*Cost_GynSub) -> 4.805748727 | E13: =State_Mild_DHEA*(GP_Mild*Cost_phone+Gyn_Mild*Cost_GynSub) -> 3.853614203 | F13: =State_ModSev_DHEA*(GP_ModSev*Cost_phone+Gyn_ModSev*Cost_GynSub) -> 11.22127414 | G13: =SUM(B13:F13) -> 81.97063707
A14: Laser | B14: =Cost_laser -> 2502 | C14: =IGP_Laser*Cost_phone+IGYN_Laser*Cost_GynIn -> 258.87 | D14: =State_None_Laser*(GP_None*Cost_phone+Gyn_None*Cost_GynSub) -> 6.400156763 | E14: =State_mild_Laser*(GP_Mild*Cost_phone+Gyn_Mild*Cost_GynSub) -> 5.008935011 | F14: =State_ModSev_Laser*(GP_ModSev*Cost_phone+Gyn_ModSev*Cost_GynSub) -> 5.721816453 | G14: 2778.000908
A15: Ospemifene | B15: =Cost_SERM -> 125.5 | C15: =IGP_SERM*Cost_phone+IGYN_SERM*Cost_GynIn -> 258.87 | D15: =State_NONE_SERM*(GP_None*Cost_phone+Gyn_None*Cost_GynSub) -> 4.42847655 | E15: =State_Mild_Serm*(GP_Mild*Cost_phone+Gyn_Mild*Cost_GynSub) -> 3.302859596 | F15: =State_ModSev_SERM*(GP_ModSev*Cost_phone+Gyn_ModSev*Cost_GynSub) -> 13.07732771 | G15: 405.1786639
A16: Estriol | B16: =Cost_Estriol -> 10.38333333 | C16: =IGP_Estriol*Cost_phone+IGYN_estriol*Cost_GynIn -> 14.27 | D16: =State_None_Estriol*(GP_None*Cost_phone+Gyn_None*Cost_GynSub) -> 4.972669703 | E16: =State_Mild_Estriol*(GP_Mild*Cost_phone+Gyn_Mild*Cost_GynSub) -> 4.195703792 | F16: =State_ModSev_Estriol*(GP_ModSev*Cost_phone+Gyn_ModSev*Cost_GynSub) -> 10.20325301 | G16: 44.02495984
A17: Estradiol | B17: =Cost_estradiol -> 21.25 | C17: =IGP_Estradiol*Cost_phone+IGYN_Estradiol*Cost_GynIn -> 14.27 | D17: =State_None_Estradiol*(GP_None*Cost_phone+Gyn_None*Cost_GynSub) -> 4.24627313 | E17: =State_Mild_Estradiol*(GP_Mild*Cost_phone+Gyn_Mild*Cost_GynSub) -> 3.281263296 | F17: =State_ModSev_Estradiol*(GP_ModSev*Cost_phone+Gyn_ModSev*Cost_GynSub) -> 13.48492715 | G17: 56.53246357
A19: Initial treatment over the counter (no cost)
A20: Outcomes | B20: Intervention Costs | C20: Initial GP/Gynaecologist costs | D20: State costs (healthcare visits) None | E20: Mild | F20: Moderate & Severe
A21: Non-hormonal moisturiser/lubricant | B21: 0 | C21: 0 | D21: =State_None_Moisturiser*(GP_None*Cost_GP+Gyn_None*Cost_GynSub) -> 9.18 | E21: =State_Mild_Moisturiser*(GP_Mild*Cost_GP+Gyn_Mild*Cost_GynSub) -> 7.308 | F21: =State_ModSev_Moisturiser*(GP_ModSev*Cost_GP+Gyn_ModSev*Cost_GynSub) -> 39.024 | G21: =SUM(B21:F21) -> 55.512
A22: Prasterone | B22: =Cost_DHEA -> 47.82 | C22: =IGP_DHEA*Cost_GP+IGYN_DHEA*Cost_GynIn -> 36 | D22: =State_None_DHEA*(GP_None*Cost_GP+Gyn_None*Cost_GynSub) -> 12.123823 | E22: =State_Mild_DHEA*(GP_Mild*Cost_GP+Gyn_Mild*Cost_GynSub) -> 9.721801774 | F22: =State_ModSev_DHEA*(GP_ModSev*Cost_GP+Gyn_ModSev*Cost_GynSub) -> 28.30875046 | G22: =SUM(B22:F22) -> 133.9743752
A23: Laser | B23: 0 | C23: 0 | D23: =State_None_Laser*(GP_None*Cost_GP+Gyn_None*Cost_GynSub) -> 16.14615581 | E23: =State_mild_Laser*(GP_Mild*Cost_GP+Gyn_Mild*Cost_GynSub) -> 12.63641629 | F23: =State_ModSev_Laser*(GP_ModSev*Cost_GP+Gyn_ModSev*Cost_GynSub) -> 14.4348558 | G23: 43.2174279
A24: Ospemifene | B24: =Cost_SERM -> 125.5 | C24: =IGP_SERM*Cost_GP+IGYN_SERM*Cost_GynIn -> 280.6 | D24: =State_NONE_SERM*(GP_None*Cost_GP+Gyn_None*Cost_GynSub) -> 11.17205016 | E24: =State_Mild_Serm*(GP_Mild*Cost_GP+Gyn_Mild*Cost_GynSub) -> 8.33237179 | F24: =State_ModSev_SERM*(GP_ModSev*Cost_GP+Gyn_ModSev*Cost_GynSub) -> 32.9911561 | G24: 458.595578
A25: Estriol | B25: =Cost_Estriol -> 10.38333333 | C25: =IGP_Estriol*Cost_GP+IGYN_estriol*Cost_GynIn -> 36 | D25: =State_None_Estriol*(GP_None*Cost_GP+Gyn_None*Cost_GynSub) -> 12.54492707 | E25: =State_Mild_Estriol*(GP_Mild*Cost_GP+Gyn_Mild*Cost_GynSub) -> 10.58481685 | F25: =State_ModSev_Estriol*(GP_ModSev*Cost_GP+Gyn_ModSev*Cost_GynSub) -> 25.74051215 | G25: 95.25358941
A26: Estradiol | B26: 0 | C26: 0 | D26: =State_None_Estradiol*(GP_None*Cost_GP+Gyn_None*Cost_GynSub) -> 10.71239192 | E26: =State_Mild_Estradiol*(GP_Mild*Cost_GP+Gyn_Mild*Cost_GynSub) -> 8.277889183 | F26: =State_ModSev_Estradiol*(GP_ModSev*Cost_GP+Gyn_ModSev*Cost_GynSub) -> 34.0194378 | G26: 53.0097189

Sheet QALY Outcomes
A1: Intervention | B1: Baseline | C1: 12 weeks | D1: One year, no taper | E1: One year, Taper zero | F1: Ten year, no taper | G1: Ten Year, taper zero | L1: High-low
A2: Non-hormonal moisturiser/lubricant | B2: =Utility_SevMod -> 0.7052803262 | C2: ='Transition matrices'!K6*Utility_None+'Transition matrices'!L6*Utility_Mild+'Transition matrices'!M6*Utility_SevMod -> 0.7537619368 | D2: =(((B2+C2)/2)*(12)+C2*(40))/52 -> 0.7481679048 | E2: =B2+((C2-B2)/2) -> 0.7295211315 | F2: =D2+C2/(1+disc_QALY)+C2/(1+disc_QALY)^2+C2/(1+disc_QALY)^3+C2/(1+disc_QALY)^4+C2/(1+disc_QALY)^5+C2/(1+disc_QALY)^6+C2/(1+disc_QALY)^7+C2/(1+disc_QALY)^8+C2/(1+disc_QALY)^9 -> 6.482552422 | G2: =(12/52)*(L2*0.5+B2)+((((40/52)*((L2*(40/508)*0.5)+(C2-(L2*40/508))))))+((L2*(52/508)*0.5)+(C2-(L2*92/508)))/(1+disc_QALY)+((L2*(52/508)*0.5)+(C2-(L2*144/508)))/(1+disc_QALY)^2+((L2*(52/508)*0.5)+(C2-(L2*196/508)))/(1+disc_QALY)^3+((L2*(52/508)*0.5)+(C2-(L2*248/508)))/(1+disc_QALY)^4+((L2*(52/508)*0.5)+(C2-(L2*300/508)))/(1+disc_QALY)^5+((L2*(52/508)*0.5)+(C2-(L2*352/508)))/(1+disc_QALY)^6+((L2*(52/508)*0.5)+(C2-(L2*404/508)))/(1+disc_QALY)^7+((L2*(52/508)*0.5)+(C2-(L2*456/508)))/(1+disc_QALY)^8+((L2*(52/508)*0.5)+(C2-(L2*508/508)))/(1+disc_QALY)^9 -> 6.290791508 | L2: =C2-B2 -> 0.0484816106
A3: Prasterone | B3: 0.7052803262 | C3: ='Transition matrices'!K21*Utility_None+'Transition matrices'!L21*Utility_Mild+'Transition matrices'!M21*Utility_SevMod -> 0.7694938515 | D3: =(((B3+C3)/2)*(12)+C3*(40))/52 -> 0.7620845986 | E3: =B3+((C3-B3)/2) -> 0.7373870889 | F3: 6.616152592 | G3: 6.362166715 | L3: =C3-B3 -> 0.06421352534
A4: Laser | B4: 0.7052803262 | C4: ='Transition matrices'!K16*Utility_None+'Transition matrices'!L16*Utility_Mild+'Transition matrices'!M16*Utility_SevMod -> 0.7899802972 | D4: 0.7802072236 | E4: 0.7476303117 | F4: 6.790129673 | G4: 6.455113082 | L4: 0.08469997102
A5: Ospemifene | B5: 0.7052803262 | C5: ='Transition matrices'!K11*Utility_None+'Transition matrices'!L11*Utility_Mild+'Transition matrices'!M11*Utility_SevMod -> 0.7628051453 | D5: 0.7561676662 | E5: 0.7340427358 | F5: 6.559350079 | G5: 6.331820263 | L5: 0.05752481911
A6: Estriol | B6: 0.7052803262 | C6: ='Transition matrices'!K26*Utility_None+'Transition matrices'!L26*Utility_Mild+'Transition matrices'!M26*Utility_SevMod -> 0.7731064468 | D6: 0.7652803559 | E6: 0.7391933865 | F6: 6.646831841 | G6: 6.378556948 | L6: 0.06782612059
A7: Estradiol | B7: 0.7052803262 | C7: ='Transition matrices'!K31*Utility_None+'Transition matrices'!L31*Utility_Mild+'Transition matrices'!M31*Utility_SevMod -> 0.7611970226 | D7: 0.7547450961 | E7: =B7+((C7-B7)/2) -> 0.7332386744 | F7: 6.545693415 | G7: 6.324524261 | L7: 0.05591669638

Sheet Results
B1: Deterministic | L1: Probabilistic (Mean)
A2: Basecase | J2: Basecase
B3: Total cost | C3: Total QALY | D3: Inc.Cost | E3: Inc.QALY | F3: ICER (vs Reference) | G3: INMB | H3: Rank | K3: Total cost | L3: Total QALY | M3: Inc.Cost | N3: Inc.QALY | O3: ICER (vs Reference) | P3: INMB | Q3: Rank
A4: Moisturiser/lubricant | B4: ='Cost Outcomes'!G3 -> 98.512 | C4: ='QALY Outcomes'!D2 -> 0.7481679048 | D4: Reference | E4: Reference | F4: Reference | G4: 0 | H4: =RANK(G4,$G$4:$G$9) -> 4 | J4: Moisturiser/lubricant | K4: =AVERAGE(PSA!B5:B1004) -> 127.7755631 | L4: =AVERAGE(PSA!H5:H1004) -> 0.7479316756 | M4: Reference | N4: Reference | O4: Reference | P4: 0 | Q4: =RANK(P4,$P$4:$P$9) -> 4
A5: Prasterone | B5: ='Cost Outcomes'!G4 -> 133.9743752 | C5: ='QALY Outcomes'!D3 -> 0.7620845986 | D5: =B5-$B$4 -> 35.46237523 | E5: =C5-$C$4 -> 0.01391669381 | F5: =IF(D5*E5>0,D5/E5,IF(AND(D5>=0,E5<=0),"Dominated","Dominant")) -> 2548.189657 | G5: =E5*VQALY-D5 -> 242.871501 | H5: 2 | J5: Prasterone | K5: =AVERAGE(PSA!C5:C1004) -> 155.5327419 | L5: =AVERAGE(PSA!I5:I1004) -> 0.7616157484 | M5: =K5-$K$4 -> 27.75717889 | N5: =L5-$L$4 -> 0.01368407273 | O5: =IF(M5*N5>0,M5/N5,IF(AND(M5>=0,N5<=0),"Dominated","Dominant")) -> 2028.429652 | P5: =N5*VQALY-M5 -> 245.9242758 | Q5: =RANK(P5,$P$4:$P$9) -> 2
A6: Laser | B6: ='Cost Outcomes'!G5 -> 2825.817428 | C6: ='QALY Outcomes'!D4 -> 0.7802072236 | D6: =B6-$B$4 -> 2727.305428 | E6: =C6-$C$4 -> 0.03203931883 | F6: =IF(D6*E6>0,D6/E6,IF(AND(D6>=0,E6<=0),"Dominated","Dominant")) -> 85123.70199 | G6: =E6*VQALY-D6 -> -2086.519051 | H6: 6 | J6: Laser | K6: =AVERAGE(PSA!D5:D1004) -> 2872.734607 | L6: =AVERAGE(PSA!J5:J1004) -> 0.779802076 | M6: =K6-$K$4 -> 2744.959044 | N6: =L6-$L$4 -> 0.03187040034 | O6: =IF(M6*N6>0,M6/N6,IF(AND(M6>=0,N6<=0),"Dominated","Dominant")) -> 86128.7908 | P6: =N6*VQALY-M6 -> -2107.551037 | Q6: 6
A7: Ospemifene | B7: ='Cost Outcomes'!G6 -> 458.595578 | C7: ='QALY Outcomes'!D5 -> 0.7561676662 | D7: 360.083578 | E7: 0.007999761375 | F7: =IF(D7*E7>0,D7/E7,IF(AND(D7>=0,E7<=0),"Dominated","Dominant")) -> 45011.78987 | G7: =E7*VQALY-D7 -> -200.0883505 | H7: 5 | J7: Ospemifene | K7: =AVERAGE(PSA!E5:E1004) -> 482.7441591 | L7: =AVERAGE(PSA!K5:K1004) -> 0.7558668627 | M7: 354.9685961 | N7: 0.007935187043 | O7: =IF(M7*N7>0,M7/N7,IF(AND(M7>=0,N7<=0),"Dominated","Dominant")) -> 44733.48821 | P7: =N7*VQALY-M7 -> -196.2648552 | Q7: 5
A8: Estriol | B8: ='Cost Outcomes'!G7 -> 95.25358941 | C8: ='QALY Outcomes'!D6 -> 0.7652803559 | D8: -3.258410592 | E8: 0.01711245114 | F8: Dominant | G8: =E8*VQALY-D8 -> 345.5074335 | H8: 1 | J8: Estriol | K8: =AVERAGE(PSA!F5:F1004) -> 114.3754664 | L8: =AVERAGE(PSA!L5:L1004) -> 0.765222679 | M8: -13.40009665 | N8: 0.01729100337 | O8: Dominant | P8: =N8*VQALY-M8 -> 359.220164 | Q8: 1
A9: Estradiol | B9: ='Cost Outcomes'!G8 -> 110.2597189 | C9: ='QALY Outcomes'!D7 -> 0.7547450961 | D9: 11.7477189 | E9: 0.006577191269 | F9: 1786.130039 | G9: =E9*VQALY-D9 -> 119.7961065 | H9: 3 | J9: Estradiol | K9: =AVERAGE(PSA!G5:G1004) -> 136.1252387 | L9: =AVERAGE(PSA!M5:M1004) -> 0.7542558129 | M9: 8.349675671 | N9: 0.006324137233 | O9: 1320.28692 | P9: =N9*VQALY-M9 -> 118.133069 | Q9: 3
A11: One year taper to 52 weeks
B12: Total cost | C12: Total QALY | D12: Inc.Cost | E12: Inc.QALY | F12: ICER (vs Reference) | G12: INMB | H12: Rank
A13: Moisturiser/lubricant | B13: ='Cost Outcomes'!G3 -> 98.512 | C13: ='QALY Outcomes'!E2 -> 0.7295211315 | D13: Reference | G13: 0 | H13: =RANK(0,$G$13:$G$18) -> 4
A14: Prasterone | B14: ='Cost Outcomes'!G4 -> 133.9743752 | C14: ='QALY Outcomes'!E3 -> 0.7373870889 | D14: =B14-$B$13 -> 35.46237523 | E14: =C14-$C$13 -> 0.007865957371 | F14: =IF(D14*E14>0,D14/E14,IF(AND(D14>=0,E14<=0),"Dominated","Dominant")) -> 4508.335547 | G14: =E14*VQALY-D14 -> 121.8567722 | H14: =RANK(G14,$G$13:$G$18) -> 2
A15: Laser | B15: ='Cost Outcomes'!G5 -> 2825.817428 | C15: ='QALY Outcomes'!E4 -> 0.7476303117 | D15: =B15-$B$13 -> 2727.305428 | E15: =C15-$C$13 -> 0.01810918021 | F15: =IF(D15*E15>0,D15/E15,IF(AND(D15>=0,E15<=0),"Dominated","Dominant")) -> 150603.4727 | G15: =E15*VQALY-D15 -> -2365.121824 | H15: =RANK(G15,$G$13:$G$18) -> 6
A16: Ospemifene | B16: ='Cost Outcomes'!G6 -> 458.595578 | C16: ='QALY Outcomes'!E5 -> 0.7340427358 | D16: 360.083578 | E16: 0.004521604256 | F16: =IF(D16*E16>0,D16/E16,IF(AND(D16>=0,E16<=0),"Dominated","Dominant")) -> 79636.24362 | G16: =E16*VQALY-D16 -> -269.6514929 | H16: 5
A17: Estriol | B17: ='Cost Outcomes'!G7 -> 95.25358941 | C17: ='QALY Outcomes'!E6 -> 0.7391933865 | D17: -3.258410592 | E17: 0.009672254994 | F17: Dominant | G17: =E17*VQALY-D17 -> 196.7035105 | H17: 1
A18: Estradiol | B18: ='Cost Outcomes'!G8 -> 110.2597189 | C18: ='QALY Outcomes'!E7 -> 0.7332386744 | D18: 11.7477189 | E18: 0.003717542891 | F18: 3160.076223 | G18: =E18*VQALY-D18 -> 62.60313892 | H18: 3
A20: 10 year No Taper
B21: Total cost | C21: Total QALY | D21: Inc.Cost | E21: Inc.QALY | F21: ICER (vs Reference) | G21: INMB | H21: Rank
A22: Non-hormonal moisturiser/lubricant | B22: ='Cost Outcomes'!G3 -> 98.512 | C22: ='QALY Outcomes'!F2 -> 6.482552422 | D22: Reference | G22: 0 | H22: =RANK(G22,$G$22:$G$27) -> 6
A23: Prasterone | B23: ='Cost Outcomes'!G4 -> 133.9743752 | C23: ='QALY Outcomes'!F3 -> 6.616152592 | D23: =B23-$B$22 -> 35.46237523 | E23: =C23-$C$22 -> 0.1336001693 | F23: =IF(D23*E23>0,D23/E23,IF(AND(D23>=0,E23<=0),"Dominated","Dominant")) -> 265.4366039 | G23: =E23*VQALY-D23 -> 2636.541012 | H23: =RANK(G23,$G$22:$G$27) -> 3
A24: Laser | B24: ='Cost Outcomes'!G5 -> 2825.817428 | C24: ='QALY Outcomes'!F4 -> 6.790129673 | D24: =B24-$B$22 -> 2727.305428 | E24: =C24-$C$22 -> 0.3075772507 | F24: =IF(D24*E24>0,D24/E24,IF(AND(D24>=0,E24<=0),"Dominated","Dominant")) -> 8867.058345 | G24: =E24*VQALY-D24 -> 3424.239587 | H24: 1
A25: Ospemifene | B25: ='Cost Outcomes'!G6 -> 458.595578 | C25: ='QALY Outcomes'!F5 -> 6.559350079 | D25: 360.083578 | E25: 0.07679765676 | F25: =IF(D25*E25>0,D25/E25,IF(AND(D25>=0,E25<=0),"Dominated","Dominant")) -> 4688.731313 | G25: =E25*VQALY-D25 -> 1175.869557 | H25: 5
A26: Estriol | B26: ='Cost Outcomes'!G7 -> 95.25358941 | C26: ='QALY Outcomes'!F6 -> 6.646831841 | D26: -3.258410592 | E26: 0.1642794188 | F26: Dominant | G26: =E26*VQALY-D26 -> 3288.846787 | H26: 2
A27: Estradiol | B27: ='Cost Outcomes'!G8 -> 110.2597189 | C27: ='QALY Outcomes'!F7 -> 6.545693415 | D27: 11.7477189 | E27: 0.06314099306 | F27: 186.0553395 | G27: =E27*VQALY-D27 -> 1251.072142 | H27: 4
A29: 10 year taper
B30: Total cost | C30: Total QALY | D30: Inc.Cost | E30: Inc.QALY | F30: ICER (vs Reference) | G30: INMB | H30: Rank
A31: Non-hormonal moisturiser/lubricant | B31: ='Cost Outcomes'!G3 -> 98.512 | C31: ='QALY Outcomes'!G2 -> 6.290791508 | D31: Reference | G31: 0 | H31: =RANK(G31,$G$31:$G$36) -> 6
A32: Prasterone | B32: ='Cost Outcomes'!G4 -> 133.9743752 | C32: ='QALY Outcomes'!G3 -> 6.362166715 | D32: =B32-$B$31 -> 35.46237523 | E32: =C32-$C$31 -> 0.07137520772 | F32: =IF(D32*E32>0,D32/E32,IF(AND(D32>=0,E32<=0),"Dominated","Dominant")) -> 496.8444417 | G32: =E32*VQALY-D32 -> 1392.041779 | H32: =RANK(G32,$G$31:$G$36) -> 2
A33: Laser | B33: ='Cost Outcomes'!G5 -> 2825.817428 | C33: ='QALY Outcomes'!G4 -> 6.455113082 | D33: =B33-$B$31 -> 2727.305428 | E33: =C33-$C$31 -> 0.1643215744 | F33: =IF(D33*E33>0,D33/E33,IF(AND(D33>=0,E33<=0),"Dominated","Dominant")) -> 16597.36671 | G33: =E33*VQALY-D33 -> 559.1260592 | H33: 4
A34: Ospemifene | B34: ='Cost Outcomes'!G6 -> 458.595578 | C34: ='QALY Outcomes'!G5 -> 6.331820263 | D34: 360.083578 | E34: 0.04102875566 | F34: =IF(D34*E34>0,D34/E34,IF(AND(D34>=0,E34<=0),"Dominated","Dominant")) -> 8776.370921 | G34: =E34*VQALY-D34 -> 460.4915351 | H34: 5
A35: Estriol | B35: ='Cost Outcomes'!G7 -> 95.25358941 | C35: ='QALY Outcomes'!G6 -> 6.378556948 | D35: -3.258410592 | E35: 0.08776543995 | F35: Dominant | G35: =E35*VQALY-D35 -> 1758.56721 | H35: 1
A36: Estradiol | B36: ='Cost Outcomes'!G8 -> 110.2597189 | C36: ='QALY Outcomes'!G7 -> 6.324524261 | D36: 11.7477189 | E36: 0.03373275287 | F36: 348.2585292 | G36: =E36*VQALY-D36 -> 662.9073384 | H36: 3

Sheet PSA
S1: Probability | T1: =SUM(T5:T1005)/1000 -> 0.009 | U1: =SUM(U5:U1005)/1000 -> 0.314 | V1: 0 | W1: 0.006 | X1: 0.601 | Y1: 0.07
A2: cell 1004 | B2: COSTS | H2: QALYs | N2: NMB | T2: Prefered Option | Z2: 20000
A3: Iterations | B3: Non-hormonal moisturiser/lubricant | C3: Prasterone | D3: Laser | E3: Ospemifene | F3: Estriol | G3: Estradiol | H3: Non-hormonal moisturiser/lubricant | I3: Prasterone | J3: Laser | K3: Ospemifene | L3: Estriol | M3: Estradiol | N3: Non-hormonal moisturiser/lubricant | O3: Prasterone | P3: Laser | Q3: Ospemifene | R3: Estriol | S3: Estradiol | T3: Non-hormonal moisturiser/lubricant | U3: Prasterone | V3: Laser | W3: Ospemifene | X3: Estriol | Y3: Estradiol | Z3: VQALY | AB3: Non-hormonal moisturiser/lubricant | AC3: Prasterone | AD3: Laser | AE3: Ospemifene | AF3: Estriol | AG3: Estradiol
B4: =Results!B4 -> 98.512 | C4: =Results!B5 -> 133.9743752 | D4: =Results!B6 -> 2825.817428 | E4: =Results!B7 -> 458.595578 | F4: =Results!B8 -> 95.25358941 | G4: =Results!B9 -> 110.2597189 | H4: =Results!C4 -> 0.7481679048 | I4: =Results!C5 -> 0.7620845986 | J4: =Results!C6 -> 0.7802072236 | K4: =Results!C7 -> 0.7561676662 | L4: =Results!C8 -> 0.7652803559 | M4: =Results!C9 -> 0.7547450961 | N4: =H4*VQALY-B4 -> 14864.8461 | O4: =I4*VQALY-C4 -> 15107.7176 | P4: =J4*VQALY-D4 -> 12778.32704 | Q4: =K4*VQALY-E4 -> 14664.75775 | R4: =L4*VQALY-F4 -> 15210.35353 | S4: =M4*VQALY-G4 -> 14984.6422 | T4: =IF(MAX($N4:$S4)=N4,1,0) -> 0 | U4: =IF(MAX($N4:$S4)=O4,1,0) -> 0 | V4: 0 | W4: 0 | X4: 1 | Y4: 0 | Z4: 0 | AB4: 0.124 | AC4: 0.004 | AD4: 0 | AE4: 0 | AF4: 0.837 | AG4: 0.035
A5: 1 | B5: 127.9522305 | C5: 143.6593156 | D5: 3215.381967 | E5: 487.4057707 | F5: 124.2351319 | G5: 136.6986114 | H5: 0.741641265 | I5: 0.7584707928 | J5: 0.7855205717 | K5: 0.7565026751 | L5: 0.7500406852 | M5: 0.7515967363 | N5: 14704.87307 | O5: 15025.75654 | P5: 12495.02947 | Q5: 14642.64773 | R5: 14876.57857 | S5: 14895.23611 | T5: =IF(MAX($N5:$S5)=N5,1,0) -> 0 | U5: =IF(MAX($N5:$S5)=O5,1,0) -> 1 | V5: =IF(MAX($N5:$S5)=P5,1,0) -> 0 | W5: =IF(MAX($N5:$S5)=Q5,1,0) -> 0 | X5: =IF(MAX($N5:$S5)=R5,1,0) -> 0 | Y5: =IF(MAX($N5:$S5)=S5,1,0) -> 0 | Z5: 1000 | AB5: 0.053 | AC5: 0.042 | AD5: 0 | AE5: 0 | AF5: 0.83 | AG5: 0.075
A6: 2 | B6: 107.3468963 | C6: 133.1304635 | D6: 3010.323143 | E6: 451.6375473 | F6: 97.06600208 | G6: 105.031931 | H6: 0.7431130109 | I6: 0.7565959668 | J6: 0.7798411995 | K6: 0.7568776248 | L6: 0.7579150814 | M6: 0.7602563652 | N6: 14754.91332 | O6: 14998.78887 | P6: 12586.50085 | Q6: 14685.91495 | R6: 15061.23563 | S6: 15100.09537 | T6: 0 | U6: 0 | V6: 0 | W6: 0 | X6: 0 | Y6: 1 | Z6: 2000 | AB6: 0.032 | AC6: 0.096 | AD6: 0 | AE6: 0 | AF6: 0.779 | AG6: 0.093
A7: 3 | B7: 119.7614486 | C7: 158.5714621 | D7: 3613.904197 | E7: 476.2403367 | F7: 121.9462832 | G7: 133.6512509 | H7: 0.7330626177 | I7: 0.7428419252 | J7: 0.7633339905 | K7: 0.734497572 | L7: 0.7400866679 | M7: 0.7303483373 | N7: 14541.49091 | O7: 14698.26704 | P7: 11652.77561 | Q7: 14213.7111 | R7: 14679.78707 | S7: 14473.3155 | T7: 0 | U7: 1 | V7: 0 | W7: 0 | X7: 0 | Y7: 0 | Z7: 3000 | AB7: 0.023 | AC7: 0.152 | AD7: 0 | AE7: 0 | AF7: 0.731 | AG7: 0.094
A8: 4 | B8: 157.7646801 | C8: 215.2413776 | D8: 3672.839596 | E8: 592.603375 | F8: 121.7145431 | G8: 185.7966887 | H8: 0.7534733652 | I8: 0.7472418986 | J8: 0.7685384465 | K8: 0.7318953578 | L8: 0.7728631629 | M8: 0.746569947 | N8: 14911.70262 | O8: 14729.59659 | P8: 11697.92933 | Q8: 14045.30378 | R8: 15335.54871 | S8: 14745.60225 | T8: 0 | U8: 0 | V8: 0 | W8: 0 | X8: 1 | Y8: 0 | Z8: 4000 | AB8: 0.018 | AC8: 0.188 | AD8: 0 | AE8: 0 | AF8: 0.71 | AG8: 0.084
A9: 5 | B9: 158.7311276 | C9: 186.1499993 | D9: 3172.610338 | E9: 485.4568025 | F9: 124.214312 | G9: 167.5948265 | H9: 0.7451562521 | I9: 0.7521638238 | J9: 0.7812614025 | K9: 0.7645728709 | L9: 0.7654534305 | M9: 0.7498474869 | N9: 14744.39391 | O9: 14857.12648 | P9: 12452.61771 | Q9: 14806.00062 | R9: 15184.8543 | S9: 14829.35491 | T9: 0 | U9: 0 | V9: 0 | W9: 0 | X9: 1 | Y9: 0 | Z9: 5000 | AB9: 0.017 | AC9: 0.205 | AD9: 0 | AE9: 0 | AF9: 0.692 | AG9: 0.086
A10: 6 | B10: 157.6205695 | C10: 160.7835494 | D10: 2433.605535 | E10: 479.4270057 | F10: 143.2644323 | G10: 167.1585052 | H10: 0.7403965335 | I10: 0.7651678891 | J10: 0.7849212593 | K10: 0.7550175018 | L10: 0.7519217115 | M10: 0.7414005683 | N10: 14650.3101 | O10: 15142.57423 | P10: 13264.81965 | Q10: 14620.92303 | R10: 14895.1698 | S10: 14660.85286 | T10: 0 | U10: 1 | V10: 0 | W10: 0 | X10: 0 | Y10: 0 | Z10: 6000 | AB10: 0.015 | AC10: 0.224 | AD10: 0 | AE10: 0 | AF10: 0.676 | AG10: 0.085
A11: 7 | B11: 100.7229456 | C11: 127.2728513 | D11: 2486.587183 | E11: 468.3458197 | F11: 81.63844324 | G11: 105.4083775 | H11: 0.7434977015 | I11: 0.7607612959 | J11: 0.7743358678 | K11: 0.7451250121 | L11: 0.7736810614 | M11: 0.7545028175 | N11: 14769.23108 | O11: 15087.95307 | P11: 13000.13017 | Q11: 14434.15442 | R11: 15391.98279 | S11: 14984.64797 | T11: 0 | U11: 0 | V11: 0 | W11: 0 | X11: 1 | Y11: 0 | Z11: 7000 | AB11: 0.015 | AC11: 0.239 | AD11: 0 | AE11: 0 | AF11: 0.663 | AG11: 0.083
A12: 8 | B12: 136.1858486 | C12: 163.9384213 | D12: 2505.485768 | E12: 489.586727 | F12: 120.2136034 | G12: 146.2588452 | H12: 0.7411748772 | I12: 0.7583805794 | J12: 0.786094637 | K12: 0.7510313366 | L12: 0.7620125333 | M12: 0.7496076201 | N12: 14687.31169 | O12: 15003.67317 | P12: 13216.40697 | Q12: 14531.04 | R12: 15120.03706 | S12: 14845.89356 | T12: 0 | U12: 0 | V12: 0 | W12: 0 | X12: 1 | Y12: 0 | Z12: 8000 | AB12: 0.014 | AC12: 0.25 | AD12: 0 | AE12: 0 | AF12: 0.653 | AG12: 0.083
A13: 9 | B13: 140.5319666 | C13: 167.4348995 | D13: 2937.46573 | E13: 486.2839623 | F13: 138.1944299 | G13: 145.460829 | H13: 0.7299938182 | I13: 0.7392587132 | J13: 0.7779408162 | K13: 0.7532891766 | L13: 0.7338382822 | M13: 0.7427769044 | N13: 14459.3444 | O13: 14617.73937 | P13: 12621.3506 | Q13: 14579.49957 | R13: 14538.57121 | S13: 14710.07726 | T13: 0 | U13: 0 | V13: 0 | W13: 0 | X13: 0 | Y13: 1 | Z13: 9000 | AB13: 0.013 | AC13: 0.262 | AD13: 0 | AE13: 0 | AF13: 0.646 | AG13: 0.079
A14: 10 | B14: 125.9464352 | C14: 128.3076857 | D14: 2846.647006 | E14: 499.6360864 | F14: 83.0783202 | G14: 117.2816794 | H14: 0.750282036 | I14: 0.7805840353 | J14: 0.8023251701 | K14: 0.7532708794 | L14: 0.7863137998 | M14: 0.770089586 | N14: 14879.69429 | O14: 15483.37302 | P14: 13199.8564 | Q14: 14565.7815 | R14: 15643.19768 | S14: 15284.51004 | T14: 0 | U14: 0 | V14: 0 | W14: 0 | X14: 1 | Y14: 0 | Z14: 10000 | AB14: 0.013 | AC14: 0.269 | AD14: 0 | AE14: 0 | AF14: 0.639 | AG14: 0.079
A15: 11 | B15: 123.4526368 | C15: 146.3942756 | D15: 3129.435356 | E15: 450.6478451 | F15: 101.062901 | G15: 134.3986423 | H15: 0.7411330588 | I15: 0.7573508982 | J15: 0.7832854045 | K15: 0.7541188275 | L15: 0.7670457528 | M15: 0.7486833238 | N15: 14699.20854 | O15: 15000.62369 | P15: 12536.27273 | Q15: 14631.7287 | R15: 15239.85216 | S15: 14839.26783 | T15: 0 | U15: 0 | V15: 0 | W15: 0 | X15: 1 | Y15: 0 | Z15: 11000 | AB15: 0.013 | AC15: 0.279 | AD15: 0 | AE15: 0 | AF15: 0.627 | AG15: 0.081
A16: 12 | B16: 146.2327581 | C16: 198.6060802 | D16: 3049.237614 | E16: 567.2018536 | F16: 147.3796529 | G16: 219.2015239 | H16: 0.7355387488 | I16: 0.7209494891 | J16: 0.7305180562 | K16: 0.6920480138 | L16: 0.7371932174 | M16: 0.6922205517 | N16: 14564.54222 | O16: 14220.3837 | P16: 11561.12351 | Q16: 13273.75842 | R16: 14596.48469 | S16: 13625.20951 | T16: 0 | U16: 0 | V16: 0 | W16: 0 | X16: 1 | Y16: 0 | Z16: 12000 | AB16: 0.011 | AC16: 0.287 | AD16: 0 | AE16: 0 | AF16: 0.626 | AG16: 0.076
A17: 13 | B17: 153.5808366 | C17: 145.0677824 | D17: 2865.869672 | E17: 513.8712082 | F17: 119.1216301 | G17: 153.196142 | H17: 0.7485615351 | I17: 0.7794556046 | J17: 0.7861544417 | K17: 0.7559583048 | L17: 0.7769577295 | M17: 0.7599917837 | N17: 14817.64986 | O17: 15444.04431 | P17: 12857.21916 | Q17: 14605.29489 | R17: 15420.03296 | S17: 15046.63953 | T17: 0 | U17: 1 | V17: 0 | W17: 0 | X17: 0 | Y17: 0 | Z17: 13000 | AB17: 0.011 | AC17: 0.294 | AD17: 0 | AE17: 0 | AF17: 0.62 | AG17: 0.075
A18: 14 | B18: 106.6670791 | C18: 128.3489238 | D18: 2931.900965 | E18: 440.9730403 | F18: 90.8778387 | G18: 108.1709764 | H18: 0.7377753351 | I18: 0.7701283137 | J18: 0.7884227173 | K18: 0.7654170023 | L18: 0.7716620554 | M18: 0.7594022998 | N18: 14648.83962 | O18: 15274.21735 | P18: 12836.55338 | Q18: 14867.36701 | R18: 15342.36327 | S18: 15079.87502 | T18: 0 | U18: 0 | V18: 0 | W18: 0 | X18: 1 | Y18: 0 | Z18: 14000 | AB18: 0.01 | AC18: 0.297 | AD18: 0 | AE18: 0 | AF18: 0.618 | AG18: 0.075
A19: 15 | B19: 143.0913994 | C19: 145.7522759 | D19: 2956.670832 | E19: 499.900495 | F19: 116.4853355 | G19: 141.3147639 | H19: 0.7508468777 | I19: 0.7747745171 | J19: 0.7857596905 | K19: 0.7747563852 | L19: 0.7735479961 | M19: 0.7631882726 | N19: 14873.84616 | O19: 15349.73807 | P19: 12758.52298 | Q19: 14995.22721 | R19: 15354.47459 | S19: 15122.45069 | T19: 0 | U19: 0 | V19: 0 | W19: 0 | X19: 1 | Y19: 0 | Z19: 15000 | AB19: 0.009 | AC19: 0.302 | AD19: 0 | AE19: 0 | AF19: 0.616 | AG19: 0.073
A20: 16 | B20: 137.526604 | C20: 163.4639113 | D20: 2827.053654 | E20: 471.4527032 | F20: 121.4813711 | G20: 127.7484345 | H20: 0.7608769383 | I20: 0.7763129728 | J20: 0.8074364626 | K20: 0.7896098742 | L20: 0.7836244728 | M20: 0.787017649 | N20: 15080.01216 | O20: 15362.79554 | P20: 13321.6756 | Q20: 15320.74478 | R20: 15551.00809 | S20: 15612.60455 | T20: 0 | U20: 0 | V20: 0 | W20: 0 | X20: 0 | Y20: 1 | Z20: 16000 | AB20: 0.009 | AC20: 0.304 | AD20: 0 | AE20: 0.001 | AF20: 0.614 | AG20: 0.072
A21: 17 | B21: 180.1077054 | C21: 159.2126107 | D21: 3023.843621 | E21: 500.4567142 | F21: 157.7997522 | G21: 171.0169091 | H21: 0.7469946861 | I21: 0.7770374945 | J21: 0.8009702764 | K21: 0.7732389348 | L21: 0.7603791364 | M21: 0.7613992323 | N21: 14759.78602 | O21: 15381.53728 | P21: 12995.56191 | Q21: 14964.32198 | R21: 15049.78298 | S21: 15056.96774 | T21: 0 | U21: 1 | V21: 0 | W21: 0 | X21: 0 | Y21: 0 | Z21: 17000 | AB21: 0.009 | AC21: 0.307 | AD21: 0 | AE21: 0.002 | AF21: 0.61 | AG21: 0.072
A22: 18 | B22: 102.5871421 | C22: 133.6147701 | D22: 3348.735681 | E22: 479.0175104 | F22: 80.8271289 | G22: 109.118819 | H22: 0.7527716403 | I22: 0.7700599177 | J22: 0.7724649006 | K22: 0.7654011895 | L22: 0.7814833474 | M22: 0.7599199876 | N22: 14952.84566 | O22: 15267.58358 | P22: 12100.56233 | Q22: 14829.00628 | R22: 15548.83982 | S22: 15089.28093 | T22: 0 | U22: 0 | V22: 0 | W22: 0 | X22: 1 | Y22: 0 | Z22: 18000 | AB22: 0.009 | AC22: 0.308 | AD22: 0 | AE22: 0.005 | AF22: 0.608 | AG22: 0.07
A23: 19 | B23: 122.2251444 | C23: 146.785024 | D23: 3134.293543 | E23: 513.430485 | F23: 113.9104321 | G23: 140.6645251 | H23: 0.7444062572 | I23: 0.7570873846 | J23: 0.7795116136 | K23: 0.7314213651 | L23: 0.7568062176 | M23: 0.7434500307 | N23: 14765.9 | O23: 14994.96267 | P23: 12455.93873 | Q23: 14114.99682 | R23: 15022.21392 | S23: 14728.33609 | T23: 0 | U23: 0 | V23: 0 | W23: 0 | X23: 1 | Y23: 0 | Z23: 19000 | AB23: 0.009 | AC23: 0.312 | AD23: 0 | AE23: 0.005 | AF23: 0.604 | AG23: 0.07
A24: 20 | B24: 144.7690457 | C24: 149.0911891 | D24: 2974.530788 | E24: 485.881878 | F24: 112.3263193 | G24: 144.5119974 | H24: 0.7603385226 | I24: 0.7777086061 | J24: 0.788333178 | K24: 0.7646712875 | L24: 0.7787621349 | M24: 0.76662647 | N24: 15062.00141 | O24: 15405.08093 | P24: 12792.13277 | Q24: 14807.54387 | R24: 15462.91638 | S24: 15188.0174 | T24: 0 | U24: 0 | V24: 0 | W24: 0 | X24: 1 | Y24: 0 | Z24: 20000 | AB24: 0.009 | AC24: 0.314 | AD24: 0 | AE24: 0.006 | AF24: 0.601 | AG24: 0.07
A25: 21 | B25: 116.8050533 | C25: 142.2641303 | D25: 2568.686845 | E25: 462.275707 | F25: 101.9788214 | G25: 112.3685531 | H25: 0.7361749465 | I25: 0.7560077497 | J25: 0.7849350622 | K25: 0.7555657632 | L25: 0.7602587191 | M25: 0.7588564686 | N25: 14606.69388 | O25: 14977.89086 | P25: 13130.0144 | Q25: 14649.03956 | R25: 15103.19556 | S25: 15064.76082 | T25: 0 | U25: 0 | V25: 0 | W25: 0 | X25: 1 | Y25: 0 | Z25: 21000 | AB25: 0.009 | AC25: 0.316 | AD25: 0 | AE25: 0.006 | AF25: 0.6 | AG25: 0.069
A26: 22 | B26: 138.7078841 | C26: 139.7838679 | D26: 3745.992008 | E26: 452.5603686 | F26: 128.316019 | G26: 132.8014651 | H26: 0.7547341787 | I26: 0.7830852789 | J26: 0.7854890518 | K26: 0.7820914597 | L26: 0.764994334 | M26: 0.7714046893 | N26: 14955.97569 | O26: 15521.92171 | P26: 11963.78903 | Q26: 15189.26883 | R26: 15171.57066 | S26: 15295.29232 | T26: 0 | U26: 1 | V26: 0 | W26: 0 | X26: 0 | Y26: 0 | Z26: 22000 | AB26: 0.009 | AC26: 0.317 | AD26: 0 | AE26: 0.007 | AF26: 0.598 | AG26: 0.069
A27: 23 | B27: 88.69045053 | C27: 129.9023099 | D27: 2845.912429 | E27: 468.0610327 | F27: 83.72598885 | G27: 98.09547285 | H27: 0.7474195296 | I27: 0.7554062995 | J27: 0.775468153 | K27: 0.7591825899 | L27: 0.7786471779 | M27: 0.7497311747 | N27: 14859.70014 | O27: 14978.22368 | P27: 12663.45063 | Q27: 14715.59077 | R27: 15489.21757 | S27: 14896.52802 | T27: 0 | U27: 0 | V27: 0 | W27: 0 | X27: 1 | Y27: 0 | Z27: 23000 | AB27: 0.008 | AC27: 0.32 | AD27: 0 | AE27: 0.009 | AF27: 0.597 | AG27: 0.066
A28: 24 | B28: 112.9677454 | C28: 151.3076213 | D28: 3676.103008 | E28: 486.3984895 | F28: 98.01135449 | G28: 124.8129414 | H28: 0.7516973715 | I28: 0.759519018 | J28: 0.7677312516 | K28: 0.7588535253 | L28: 0.7724786086 | M28: 0.757487816 | N28: 14920.97968 | O28: 15039.07274 | P28: 11678.52202 | Q28: 14690.67202 | R28: 15351.56082 | S28: 15024.94338 | T28: 0 | U28: 0 | V28: 0 | W28: 0 | X28: 1 | Y28: 0 | Z28: 24000 | AB28: 0.008 | AC28: 0.323 | AD28: 0 | AE28: 0.01 | AF28: 0.594 | AG28: 0.065
A29: 25 | B29: 112.7445688 | C29: 141.3740298 | D29: 3508.306912 | E29: 462.792265 | F29: 93.3358923 | G29: 131.0051277 | H29: 0.7686581945 | I29: 0.7758465585 | J29: 0.7939297854 | K29: 0.7589680528 | L29: 0.7936483434 | M29: 0.7657287719 | N29: 15260.41932 | O29: 15375.55714 | P29: 12370.2888 | Q29: 14716.56879 | R29: 15779.63098 | S29: 15183.57031 | T29: 0 | U29: 0 | V29: 0 | W29: 0 | X29: 1 | Y29: 0 | Z29: 25000 | AB29: 0.008 | AC29: 0.324 | AD29: 0 | AE29: 0.01 | AF29: 0.593 | AG29: 0.065
A30: 26 | B30: 152.0271251 | C30: 175.9498923 | D30: 2837.732925 | E30: 523.5004934 | F30: 126.4599023 | G30: 172.9910306 | H30: 0.7426342414 | I30: 0.7508257033 | J30: 0.782195438 | K30: 0.7498690942 | L30: 0.7660092779 | M30: 0.7345851562 | N30: 14700.6577 | O30: 14840.56417 | P30: 12806.17583 | Q30: 14473.88139 | R30: 15193.72566 | S30: 14518.71209 | T30: 0 | U30: 0 | V30: 0 | W30: 0 | X30: 1 | Y30: 0 | Z30: 26000 | AB30: 0.008 | AC30: 0.325 | AD30: 0 | AE30: 0.011 | AF30: 0.592 | AG30: 0.064
A31: 27 | B31: 143.7387984 | C31: 159.7912566 | D31: 2437.90044 | E31: 479.3033602 | F31: 118.2413233 | G31: 142.5283013 | H31: 0.7766961062 | I31: 0.7986508808 | J31: 0.8287545681 | K31: 0.8009273567 | L31: 0.7978503596 | M31: 0.7900696675 | N31: 15390.18333 | O31: 15813.22636 | P31: 14137.19092 | Q31: 15539.24377 | R31: 15838.76587 | S31: 15658.86505 | T31: 0 | U31: 0 | V31: 0 | W31: 0 | X31: 1 | Y31: 0 | Z31: 27000 | AB31: 0.008 | AC31: 0.326 | AD31: 0 | AE31: 0.011 | AF31: 0.591 | AG31: 0.064
A32: 28 | B32: 153.087129 | C32: 183.6721491 | D32: 2983.436563 | E32: 489.7083215 | F32: 104.6195419 | G32: 166.9157434 | H32: 0.7469911777 | I32: 0.760124295 | J32: 0.7809238037 | K32: 0.7575250458 | L32: 0.7842210011 | M32: 0.749869788 | N32: 14786.73643 | O32: 15018.81375 | P32: 12635.03951 | Q32: 14660.7926 | R32: 15579.80048 | S32: 14830.48002 | T32: 0 | U32: 0 | V32: 0 | W32: 0 | X32: 1 | Y32: 0 | Z32: 28000 | AB32: 0.007 | AC32: 0.328 | AD32: 0 | AE32: 0.011 | AF32: 0.591 | AG32: 0.063
A33: 29 | B33: 124.25414 | C33: 138.4012141 | D33: 2634.042018 | E33: 467.1965978 | F33: 111.8705021 | G33: 111.8101 | H33: 0.7415078678 | I33: 0.7636829451 | J33: 0.7700982956 | K33: 0.755886395 | L33: 0.7561399849 | M33: 0.7618682675 | N33: 14705.90322 | O33: 15135.25769 | P33: 12767.92389 | Q33: 14650.5313 | R33: 15010.9292 | S33: 15125.55525 | T33: 0 | U33: 1 | V33: 0 | W33: 0 | X33: 0 | Y33: 0 | Z33: 29000 | AB33: 0.007 | AC33: 0.328 | AD33: 0 | AE33: 0.011 | AF33: 0.591 | AG33: 0.063
A34: 30 | B34: 162.8153522 | C34: 191.5960732 | D34: 3238.977652 | E34: 519.027475 | F34: 125.3151592 | G34: 192.4138907 | H34: 0.7405533025 | I34: 0.743888055 | J34: 0.7698383905 | K34: 0.7531762888 | L34: 0.768659344 | M34: 0.7294524884 | N34: 14648.2507 | O34: 14686.16503 | P34: 12157.79016 | Q34: 14544.4983 | R34: 15247.87172 | S34: 14396.63588 | T34: 0 | U34: 0 | V34: 0 | W34: 0 | X34: 1 | Y34: 0 | Z34: 30000 | AB34: 0.007 | AC34: 0.329 | AD34: 0 | AE34: 0.011 | AF34: 0.589 | AG34: 0.064
A35: 31 | B35: 163.7967953 | C35: 167.1987142 | D35: 3077.961466 | E35: 488.6669435 | F35: 153.6052044 | G35: 126.1718612 | H35: 0.7357037579 | I35: 0.7699985765 | J35: 0.7773938449 | K35: 0.7650347418 | L35: 0.7477226848 | M35: 0.7758008322 | N35: 14550.27836 | O35: 15232.77282 | P35: 12469.91543 | Q35: 14812.02789 | R35: 14800.84849 | S35: 15389.84478 | T35: 0 | U35: 0 | V35: 0 | W35: 0 | X35: 0 | Y35: 1 | Z35: 31000 | AB35: 0.007 | AC35: 0.33 | AD35: 0 | AE35: 0.012 | AF35: 0.588 | AG35: 0.063
A36: 32 | B36: 94.05145107 | C36: 127.4894867 | D36: 2728.852754 | E36: 443.3267912 | F36: 93.44047065 | G36: 101.0005186 | H36: 0.7485049121 | I36: 0.7778178186 | J36: 0.7628923276 | K36: 0.7687284818 | L36: 0.7633058724 | M36: 0.7621634498 | N36: 14876.04679 | O36: 15428.86688 | P36: 12528.9938 | Q36: 14931.24285 | R36: 15172.67698 | S36: 15142.26848 | T36: 0 | U36: 1 | V36: 0 | W36: 0 | X36: 0 | Y36: 0 | Z36: 32000 | AB36: 0.007 | AC36: 0.333 | AD36: 0 | AE36: 0.014 | AF36: 0.585 | AG36: 0.061
A37: 33 | B37: 135.0072373 | C37: 186.6109404 | D37: 2743.034516 | E37: 517.6859779 | F37: 117.8781297 | G37: 157.1733243 | H37: 0.7474585809 | I37: 0.7469261566 | J37: 0.7637676243 | K37: 0.7297759627 | L37: 0.7721170272 | M37: 0.7407144439 | N37: 14814.16438 | O37: 14751.91219 | P37: 12532.31797 | Q37: 14077.83328 | R37: 15324.46241 | S37: 14657.11555 | T37: 0 | U37: 0 | V37: 0 | W37: 0 | X37: 1 | Y37: 0 | Z37: 33000 | AB37: 0.007 | AC37: 0.333 | AD37: 0 | AE37: 0.015 | AF37: 0.585 | AG37: 0.06
A38: 34 | B38: 150.2295939 | C38: 154.3066215 | D38: 2820.238052 | E38: 471.314889 | F38: 132.5937868 | G38: 139.5037024 | H38: 0.7440812541 | I38: 0.7744577102 | J38: 0.7689448235 | K38: 0.7701371588 | L38: 0.760237309 | M38: 0.7635418838 | N38: 14731.39549 | O38: 15334.84758 | P38: 12558.65842 | Q38: 14931.42829 | R38: 15072.15239 | S38: 15131.33397 | T38: 0 | U38: 1 | V38: 0 | W38: 0 | X38: 0 | Y38: 0 | Z38: 34000 | AB38: 0.007 | AC38: 0.333 | AD38: 0 | AE38: 0.015 | AF38: 0.585 | AG38: 0.06
A39: 35 | B39: 102.3872672 | C39: 144.6996642 | D39: 3294.386424 | E39: 463.7102205 | F39: 88.94557391 | G39: 117.0050156 | H39: 0.7513382337 | I39: 0.7566732213 | J39: 0.773532061 | K39: 0.7562890963 | L39: 0.7736458532 | M39: 0.7504671718 | N39: 14924.37741 | O39: 14988.76476 | P39: 12176.2548 | Q39: 14662.0717 | R39: 15383.97149 | S39: 14892.33842 | T39: 0 | U39: 0 | V39: 0 | W39: 0 | X39: 1 | Y39: 0 | Z39: 35000 | AB39: 0.006 | AC39: 0.334 | AD39: 0 | AE39: 0.017 | AF39: 0.583 | AG39: 0.06
A40: 36 | B40: 140.4847967 | C40: 172.6656534 | D40: 2712.022432 | E40: 516.8763744 | F40: 137.9983162 | G40: 168.2130963 | H40: 0.7421305526 | I40: 0.7529997818 | J40: 0.7471294512 | K40: 0.7401249303 | L40: 0.7488625139 | M40: 0.7337453239 | N40: 14702.12626 | O40: 14887.32998 | P40: 12230.56659 | Q40: 14285.62223 | R40: 14839.25196 | S40: 14506.69338 | T40: 0 | U40: 1 | V40: 0 | W40: 0 | X40: 0 | Y40: 0 | Z40: 36000 | AB40: 0.006 | AC40: 0.333 | AD40: 0 | AE40: 0.019 | AF40: 0.582 | AG40: 0.06
A41: 37 | B41: 106.8440348 | C41: 127.1220609 | D41: 1841.776488 | E41: 423.8259664 | F41: 100.3362865 | G41: 104.9793622 | H41: 0.7283250613 | I41: 0.7793698825 | J41: 0.7893975812 | K41: 0.7481103172 | L41: 0.7481230814 | M41: 0.7587036335 | N41: 14459.65719 | O41: 15460.27559 | P41: 13946.17514 | Q41: 14538.38038 | R41: 14862.12534 | S41: 15069.09331 | T41: 0 | U41: 1 | V41: 0 | W41: 0 | X41: 0 | Y41: 0 | Z41: 37000 | AB41: 0.006 | AC41: 0.335 | AD41: 0 | AE41: 0.021 | AF41: 0.578 | AG41: 0.06
A42: 38 | B42: 143.6255049 | C42: 169.3322048 | D42: 3043.541512 | E42: 509.2091887 | F42: 136.0968785 | G42: 152.8958272 | H42: 0.7580464891 | I42: 0.7654407422 | J42: 0.7784663542 | K42: 0.7652806094 | L42: 0.7672710258 | M42: 0.7628399758 | N42: 15017.30428 | O42: 15139.48264 | P42: 12525.78557 | Q42: 14796.403 | R42: 15209.32364 | S42: 15103.90369 | T42: 0 | U42: 0 | V42: 0 | W42: 0 | X42: 1 | Y42: 0 | Z42: 38000 | AB42: 0.006 | AC42: 0.334 | AD42: 0 | AE42: 0.022 | AF42: 0.578 | AG42: 0.06
A43: 39 | B43: 83.12623524 | C43: 125.5114436 | D43: 3274.159516 | E43: 453.2117011 | F43: 81.96274297 | G43: 103.6709425 | H43: 0.7527648782 | I43: 0.7519139042 | J43: 0.7605114018 | K43: 0.7447630898 | L43: 0.7699288594 | M43: 0.7403551143 | N43: 14972.17133 | O43: 14912.76664 | P43: 11936.06852 | Q43: 14442.0501 | R43: 15316.61444 | S43: 14703.43134 | T43: 0 | U43: 0 | V43: 0 | W43: 0 | X43: 1 | Y43: 0 | Z43: 39000 | AB43: 0.006 | AC43: 0.333 | AD43: 0 | AE43: 0.025 | AF43: 0.576 | AG43: 0.06
A44: 40 | B44: 112.2056811 | C44: 143.8036347 | D44: 3202.765605 | E44: 467.9053966 | F44: 105.5264519 | G44: 117.3265106 | H44: 0.7555402726 | I44: 0.7669588398 | J44: 0.7986073 | K44: 0.7683977003 | L44: 0.7700105314 | M44: 0.7641121809 | N44: 14998.59977 | O44: 15195.37316 | P44: 12769.3804 | Q44: 14900.04861 | R44: 15294.68418 | S44: 15164.91711 | T44: 0 | U44: 0 | V44: 0 | W44: 0 | X44: 1 | Y44: 0 | Z44: 40000 | AB44: 0.006 | AC44: 0.334 | AD44: 0 | AE44: 0.025 | AF44: 0.575 | AG44: 0.06
A45: 41 | B45: 143.4879257 | C45: 179.4424365 | D45: 2976.338471 | E45: 510.39674 | F45: 122.2112614 | G45: 157.1674439 | H45: 0.7430498327 | I45: 0.7531750769 | J45: 0.7697066932 | K45: 0.7323589964 | L45: 0.7609202052 | M45: 0.7443169557 | N45: 14717.50873 | O45: 14884.0591 | P45: 12417.79539 | Q45: 14136.78319 | R45: 15096.19284 | S45: 14729.17167 | T45: 0 | U45: 0 | V45: 0 | W45: 0 | X45: 1 | Y45: 0 | Z45: 41000 | AB45: 0.006 | AC45: 0.333 | AD45: 0 | AE45: 0.028 | AF45: 0.574 | AG45: 0.059
A46: 42 | B46: 128.9640381 | C46: 171.9667606 | D46: 3200.442609 | E46: 500.6523417 | F46: 124.0802792 | G46: 142.3583943 | H46: 0.7418068245 | I46: 0.7430060107 | J46: 0.7704896722 | K46: 0.7333277646 | L46: 0.753693508 | M46: 0.7412212653 | N46: 14707.17245 | O46: 14688.15345 | P46: 12209.35084 | Q46: 14165.90295 | R46: 14949.78988 | S46: 14682.06691 | T46: 0 | U46: 0 | V46: 0 | W46: 0 | X46: 1 | Y46: 0 | Z46: 42000 | AB46: 0.006 | AC46: 0.333 | AD46: 0 | AE46: 0.028 | AF46: 0.574 | AG46: 0.059
A47: 43 | B47: 119.1237891 | C47: 150.6200017 | D47: 2454.080181 | E47: 469.8916744 | F47: 102.1853757 | G47: 130.7738176 | H47: 0.7590162453 | I47: 0.7670907113 | J47: 0.7831904108 | K47: 0.7654757255 | L47: 0.7775768667 | M47: 0.7631203162 | N47: 15061.20112 | O47: 15191.19423 | P47: 13209.72804 | Q47: 14839.62284 | R47: 15449.35196 | S47: 15131.63251 | T47: 0 | U47: 0 | V47: 0 | W47: 0 | X47: 1 | Y47: 0 | Z47: 43000 | AB47: 0.006 | AC47: 0.333 | AD47: 0 | AE47: 0.028 | AF47: 0.574 | AG47: 0.059
A48: 44 | B48: 140.3416203 | C48: 158.0360593 | D48: 2461.073815 | E48: 495.071221 | F48: 120.3103585 | G48: 131.3790448 | H48: 0.7623801216 | I48: 0.7782238698 | J48: 0.7848533832 | K48: 0.7661529563 | L48: 0.7745758316 | M48: 0.7748957165 | N48: 15107.26081 | O48: 15406.44134 | P48: 13235.99385 | Q48: 14827.98791 | R48: 15371.20627 | S48: 15366.53529 | T48: 0 | U48: 1 | V48: 0 | W48: 0 | X48: 0 | Y48: 0 | Z48: 44000 | AB48: 0.006 | AC48: 0.33 | AD48: 0 | AE48: 0.031 | AF48: 0.574 | AG48: 0.059
A49: 45 | B49: 136.0335023 | C49: 171.3829489 | D49: 2449.044472 | E49: 513.3015407 | F49: 129.9599503 | G49: 156.7469551 | H49: 0.7466217164 | I49: 0.7498581073 | J49: 0.797521059 | K49: 0.7379021122 | L49: 0.758022604 | M49: 0.7453238883 | N49: 14796.40083 | O49: 14825.7792 | P49: 13501.37671 | Q49: 14244.7407 | R49: 15030.49213 | S49: 14749.73081 | T49: 0 | U49: 0 | V49: 0 | W49: 0 | X49: 1 | Y49: 0 | Z49: 45000 | AB49: 0.006 | AC49: 0.331 | AD49: 0 | AE49: 0.031 | AF49: 0.573 | AG49: 0.059
A50: 46 | B50: 159.6766126 | C50: 154.4369666 | D50: 2578.163312 | E50: 451.5636535 | F50: 143.116404 | G50: 144.9819939 | H50: 0.7541207279 | I50: 0.775910172 | J50: 0.7922603995 | K50: 0.7786820168 | L50: 0.7649859901 | M50: 0.7698376316 | N50: 14922.73795 | O50: 15363.76647 | P50: 13267.04468 | Q50: 15122.07668 | R50: 15156.6034 | S50: 15251.77064 | T50: 0 | U50: 1 | V50: 0 | W50: 0 | X50: 0 | Y50: 0 | Z50: 46000 | AB50: 0.006 | AC50: 0.331 | AD50: 0 | AE50: 0.031 | AF50: 0.573 | AG50: 0.059
A51: 47 | B51: 140.931988 | C51: 195.1477793 | D51: 2130.931851 | E51: 504.5174587 | F51: 151.5424739 | G51: 165.3947663 | H51: 0.738146414 | I51: 0.7274586869 | J51: 0.7693701903 | K51: 0.7301032245 | L51: 0.7319297429 | M51: 0.7300533056 | N51: 14621.99629 | O51: 14354.02596 | P51: 13256.47196 | Q51: 14097.54703 | R51: 14487.05238 | S51: 14435.67135 | T51: 1 | U51: 0 | V51: 0 | W51: 0 | X51: 0 | Y51: 0 | Z51: 47000 | AB51: 0.006 | AC51: 0.33 | AD51: 0.001 | AE51: 0.031 | AF51: 0.573 | AG51: 0.059
A52: 48 | B52: 98.10561764 | C52: 135.4377088 | D52: 2352.515824 | E52: 458.2946164 | F52: 93.71737427 | G52: 112.551498 | H52: 0.7212202859 | I52: 0.7069532211 | J52: 0.7353706864 | K52: 0.7140339838 | L52: 0.7516746449 | M52: 0.7121682765 | N52: 14326.3001 | O52: 14003.62671 | P52: 12354.8979 | Q52: 13822.38506 | R52: 14939.77552 | S52: 14130.81403 | T52: 0 | U52: 0 | V52: 0 | W52: 0 | X52: 1 | Y52: 0 | Z52: 48000 | AB52: 0.006 | AC52: 0.331 | AD52: 0.001 | AE52: 0.031 | AF52: 0.572 | AG52: 0.059
A53: 49 | B53: 139.1455776 | C53: 176.7277536 | D53: 3185.16971 | E53: 458.506852 | F53: 151.5925937 | G53: 143.0997582 | H53: 0.7313399807 | I53: 0.7337023646 | J53: 0.7552629442 | K53: 0.7502123658 | L53: 0.7232867017 | M53: 0.7424728147 | N53: 14487.65404 | O53: 14497.31954 | P53: 11920.08917 | Q53: 14545.74046 | R53: 14314.14144 | S53: 14706.35654 | T53: 0 | U53: 0 | V53: 0 | W53: 0 | X53: 0 | Y53: 1 | Z53: 49000 | AB53: 0.006 | AC53: 0.33 | AD53: 0.001 | AE53: 0.032 | AF53: 0.572 | AG53: 0.059
A54: 50 | B54: 149.6409022 | C54: 191.9620243 | D54: 2453.829304 | E54: 498.4114239 | F54: 129.8773656 | G54: 179.0284263 | H54: 0.7595598502 | I54: 0.758527759 | J54: 0.7738407798 | K54: 0.7565890912 | L54: 0.7717277645 | M54: 0.7521608675 | N54: 15041.5561 | O54: 14978.59316 | P54: 13022.98629 | Q54: 14633.3704 | R54: 15304.67792 | S54: 14864.18892 | T54: 0 | U54: 0 | V54: 0 | W54: 0 | X54: 1 | Y54: 0 | Z54: 50000 | AB54: 0.006 | AC54: 0.33 | AD54: 0.001 | AE54: 0.033 | AF54: 0.572 | AG54: 0.058
A55: 51 | B55: 118.570363 | C55: 142.1170765 | D55: 3690.242761 | E55: 488.1717681 | F55: 100.2039297 | G55: 133.1368003 | H55: 0.7427116831 | I55: 0.7565712484 | J55: 0.7767242199 | K55: 0.7485121548 | L55: 0.7672818015 | M55: 0.7447249384 | N55: 14735.6633 | O55: 14989.30789 | P55: 11844.24164 | Q55: 14482.07133 | R55: 15245.4321 | S55: 14761.36197 | T55: 0 | U55: 0 | V55: 0 | W55: 0 | X55: 1 | Y55: 0 | Z55: 51000 | AB55: 0.006 | AC55: 0.329 | AD55: 0.001 | AE55: 0.034 | AF55: 0.572 | AG55: 0.058
A56: 52 | B56: 106.6601267 | C56: 127.3156527 | D56: 2749.512061 | E56: 447.329942 | F56: 91.6194442 | G56: 116.9933529 | H56: 0.7398678249 | I56: 0.7642698611 | J56: 0.7822249537 | K56: 0.7482543894 | L56: 0.7723938588 | M56: 0.7502675786 | N56: 14690.69637 | O56: 15158.08157 | P56: 12894.98701 | Q56: 14517.75785 | R56: 15356.25773 | S56: 14888.35822 | T56: 0 | U56: 0 | V56: 0 | W56: 0 | X56: 1 | Y56: 0 | Z56: 52000 | AB56: 0.006 | AC56: 0.331 | AD56: 0.001 | AE56: 0.034 | AF56: 0.571 | AG56: 0.057
A57: 53 | B57: 139.1033551 | C57: 168.8553405 | D57: 3372.341391 | E57: 497.5130497 | F57: 136.292211 | G57: 154.1310786 | H57: 0.7493320847 | I57: 0.7563629776 | J57: 0.7708233912 | K57: 0.7490614233 | L57: 0.7555482314 | M57: 0.7499351989 | N57: 14847.53834 | O57: 14958.40421 | P57: 12044.12643 | Q57: 14483.71542 | R57: 14974.67242 | S57: 14844.5729 | T57: 0 | U57: 0 | V57: 0 | W57: 0 | X57: 1 | Y57: 0 | Z57: 53000 | AB57: 0.006 | AC57: 0.33 | AD57: 0.002 | AE57: 0.035 | AF57: 0.571 | AG57: 0.056
A58: 54 | B58: 157.9521832 | C58: 182.871393 | D58: 3825.49275 | E58: 507.7772429 | F58: 102.3031088 | G58: 151.2869655 | H58: 0.7392022868 | I58: 0.754651506 | J58: 0.7891350814 | K58: 0.7501485245 | L58: 0.7874174193 | M58: 0.75672096 | N58: 14626.09355 | O58: 14910.15873 | P58: 11957.20888 | Q58: 14495.19325 | R58: 15646.04528 | S58: 14983.13223 | T58: 0 | U58: 0 | V58: 0 | W58: 0 | X58: 1 | Y58: 0 | Z58: 54000 | AB58: 0.006 | AC58: 0.331 | AD58: 0.002 | AE58: 0.035 | AF58: 0.571 | AG58: 0.055
A59: 55 | B59: 103.5337089 | C59: 141.5325713 | D59: 2552.955154 | E59: 454.1767033 | F59: 96.54595469 | G59: 110.295292 | H59: 0.739604749 | I59: 0.7624853458 | J59: 0.7873105385 | K59: 0.7545092393 | L59: 0.7793112975 | M59: 0.7565267048 | N59: 14688.56127 | O59: 15108.17435 | P59: 13193.25562 | Q59: 14636.00808 | R59: 15489.67999 | S59: 15020.2388 | T59: 0 | U59: 0 | V59: 0 | W59: 0 | X59: 1 | Y59: 0 | Z59: 55000 | AB59: 0.006 | AC59: 0.33 | AD59: 0.003 | AE59: 0.035 | AF59: 0.571 | AG59: 0.055
A60: 56 | B60: 146.3773161 | C60: 149.8719608 | D60: 2796.562461 | E60: 502.9166589 | F60: 115.607503 | G60: 148.8178482 | H60: 0.7233062717 | I60: 0.7710640115 | J60: 0.7619110538 | K60: 0.7332413637 | L60: 0.7591874363 | M60: 0.7368566853 | N60: 14319.74812 | O60: 15271.40827 | P60: 12441.65861 | Q60: 14161.91061 | R60: 15068.14122 | S60: 14588.31586 | T60: 0 | U60: 1 | V60: 0 | W60: 0 | X60: 0 | Y60: 0 | Z60: 56000 | AB60: 0.006 | AC60: 0.329 | AD60: 0.003 | AE60: 0.036 | AF60: 0.571 | AG60: 0.055
A61: 57 | B61: 108.8981834 | C61: 140.2827801 | D61: 2046.214332 | E61: 461.3657573 | F61: 110.9039595 | G61: 115.3829181 | H61: 0.7311933486 | I61: 0.7432572713 | J61: 0.7529067509 | K61: 0.7463373234 | L61: 0.7362346571 | M61: 0.7410307907 | N61: 14514.96879 | O61: 14724.86265 | P61: 13011.92069 | Q61: 14465.38071 | R61: 14613.78918 | S61: 14705.2329 | T61: 0 | U61: 1 | V61: 0 | W61: 0 | X61: 0 | Y61: 0 | Z61: 57000 | AB61: 0.006 | AC61: 0.33 | AD61: 0.003 | AE61: 0.036 | AF61: 0.57 | AG61: 0.055
A62: 58 | B62: 100.0749132 | C62: 137.736426 | D62: 2477.509997 | E62: 465.6525938 | F62: 110.4980029 | G62: 116.6910388 | H62: 0.7491423794 | I62: 0.7518064153 | J62: 0.7599723028 | K62: 0.7467732455 | L62: 0.7423600301 | M62: 0.7453888832 | N62: 14882.77267 | O62: 14898.39188 | P62: 12721.93606 | Q62: 14469.81232 | R62: 14736.7026 | S62: 14791.08663 | T62: 0 | U62: 1 | V62: 0 | W62: 0 | X62: 0 | Y62: 0 | Z62: 58000 | AB62: 0.006 | AC62: 0.329 | AD62: 0.003 | AE62: 0.037 | AF62: 0.57 | AG62: 0.055
A63: 59 | B63: 161.2062665 | C63: 184.2284493 | D63: 3363.435241 | E63: 535.4394482 | F63: 131.8981229 | G63: 147.2403593 | H63: 0.7405302895 | I63: 0.7566431305 | J63: 0.7823201126 | K63: 0.7497235704 | L63: 0.7618320158 | M63: 0.760811643 | N63: 14649.39952 | O63: 14948.63416 | P63: 12282.96701 | Q63: 14459.03196 | R63: 15104.74219 | S63: 15068.9925 | T63: 0 | U63: 0 | V63: 0 | W63: 0 | X63: 1 | Y63: 0 | Z63: 59000 | AB63: 0.006 | AC63: 0.329 | AD63: 0.004 | AE63: 0.037 | AF63: 0.569 | AG63: 0.055
A64: 60 | B64: 131.5391364 | C64: 151.103179 | D64: 2865.290959 | E64: 486.0955223 | F64: 109.3883211 | G64: 126.2265218 | H64: 0.7301097728 | I64: 0.7553893216 | J64: 0.7651965763 | K64: 0.7381272384 | L64: 0.752050614 | M64: 0.7499789394 | N64: 14470.65632 | O64: 14956.68325 | P64: 12438.64057 | Q64: 14276.44925 | R64: 14931.62396 | S64: 14873.35227 | T64: 0 | U64: 1 | V64: 0 | W64: 0 | X64: 0 | Y64: 0 | Z64: 60000 | AB64: 0.006 | AC64: 0.328 | AD64: 0.004 | AE64: 0.038 | AF64: 0.569 | AG64: 0.055
A65: 61 | B65: 113.6703824 | C65: 145.5522509 | D65: 2771.365491 | E65: 479.6823412 | F65: 94.36588722 | G65: 126.2021209 | H65: 0.7423140718 | I65: 0.7567639644 | J65: 0.7685418783 | K65: 0.7528480967 | L65: 0.7680425067 | M65: 0.7438438574 | N65: 14732.61105 | O65: 14989.72704 | P65: 12599.47208 | Q65: 14577.27959 | R65: 15266.48425 | S65: 14750.67503 | T65: 0 | U65: 0 | V65: 0 | W65: 0 | X65: 1 | Y65: 0 | Z65: 61000 | AB65: 0.006 | AC65: 0.327 | AD65: 0.006 | AE65: 0.038 | AF65: 0.568 | AG65: 0.055
A66: 62 | B66: 103.2147765 | C66: 145.394519 | D66: 2928.482504 | E66: 452.2410957 | F66: 106.2237923 | G66: 116.6516037 | H66: 0.7558271782 | I66: 0.7593415338 | J66: 0.7683519192 | K66: 0.744205378 | L66: 0.7586913348 | M66: 0.7611085207 | N66: 15013.32879 | O66: 15041.43616 | P66: 12438.55588 | Q66: 14431.86646 | R66: 15067.6029 | S66: 15105.51881 | T66: 0 | U66: 0 | V66: 0 | W66: 0 | X66: 0 | Y66: 1 | Z66: 62000 | AB66: 0.006 | AC66: 0.327 | AD66: 0.007 | AE66: 0.039 | AF66: 0.566 | AG66: 0.055
A67: 63 | B67: 107.9047356 | C67: 151.8190217 | D67: 2787.230001 | E67: 463.3927239 | F67: 97.64054762 | G67: 122.8763705 | H67: 0.7495100145 | I67: 0.7546965342 | J67: 0.795391119 | K67: 0.7393063017 | L67: 0.786655074 | M67: 0.741565309 | N67: 14882.29555 | O67: 14942.11166 | P67: 13120.59238 | Q67: 14322.73331 | R67: 15635.46093 | S67: 14708.42981 | T67: 0 | U67: 0 | V67: 0 | W67: 0 | X67: 1 | Y67: 0 | Z67: 63000 | AB67: 0.006 | AC67: 0.328 | AD67: 0.007 | AE67: 0.04 | AF67: 0.564 | AG67: 0.055
A68: 64 | B68: 80.18156963 | C68: 119.6732034 | D68: 2908.462103 | E68: 420.220214 | F68: 79.52182675 | G68: 88.58577591 | H68: 0.7548443954 | I68: 0.7795615421 | J68: 0.7956196492 | K68: 0.7721369148 | L68: 0.7660363735 | M68: 0.7700323543 | N68: =H68*VQALY-B68 -> 15016.70634 | O68: =I68*VQALY-C68 -> 15471.55764 | P68: =J68*VQALY-D68 -> 13003.93088 | Q68: =K68*VQALY-E68 -> 15022.51808 | R68: =L68*VQALY-F68 -> 15241.20564 | S68: =M68*VQALY-G68 -> 15312.06131 | T68: 0 | U68: 1 | V68: 0 | W68: 0 | X68: 0 | Y68: 0 | Z68: 64000 | AB68: 0.005 | AC68: 0.327 | AD68: 0.009 | AE68: 0.041 | AF68: 0.564 | AG68: 0.054
A69: 65 | B69: 120.8061945 | C69: 156.854453 | D69: 2830.343554 | E69: 503.8014818 | F69: 106.7723501 | G69: 128.5827152 | H69: 0.7362677623 | I69: 0.744278813 | J69: 0.7729700556 | K69: 0.7338281629 | L69: 0.7639441352 | M69: 0.7376307012 | N69: 14604.54905 | O69: 14728.72181 | P69: 12629.05756 | Q69: 14172.76178 | R69: 15172.11035 | S69: 14624.03131 | T69: =IF(MAX($N69:$S69)=N69,1,0) -> 0 | U69: =IF(MAX($N69:$S69)=O69,1,0) -> 0 | V69: =IF(MAX($N69:$S69)=P69,1,0) -> 0 | W69: =IF(MAX($N69:$S69)=Q69,1,0) -> 0 | X69: =IF(MAX($N69:$S69)=R69,1,0) -> 1 | Y69: =IF(MAX($N69:$S69)=S69,1,0) -> 0 | Z69: 65000 | AB69: 0.005 | AC69: 0.325 | AD69: 0.011 | AE69: 0.041 | AF69: 0.564 | AG69: 0.054
A70: 66 | B70: 99.49992443 | C70: 131.786014 | D70: 2941.921115 | E70: 466.983925 | F70: 100.448951 | G70: 107.7689761 | H70: 0.7504963438 | I70: 0.7583874954 | J70: 0.8040568046 | K70: 0.7731701062 | L70: 0.7510781517 | M70: 0.7575040885 | N70: 14910.42695 | O70: 15035.96389 | P70: 13139.21498 | Q70: 14996.4182 | R70: 14921.11408 | S70: 15042.31279 | T70: 0 | U70: 0 | V70: 0 | W70: 0 | X70: 0 | Y70: 1 | Z70: 66000 | AB70: 0.005 | AC70: 0.325 | AD70: 0.012 | AE70: 0.042 | AF70: 0.562 | AG70: 0.054
A71: 67 | B71: 171.637133 | C71: 186.7128002 | D71: 3006.67729 | E71: 494.3589409 | F71: 124.1061975 | G71: 156.1543996 | H71: 0.7557605942 | I71: 0.7636331586 | J71: 0.7876950475 | K71: 0.7812576309 | L71: 0.78452663 | M71: 0.7729302602 | N71: 14943.57475 | O71: 15085.95037 | P71: 12747.22366 | Q71: 15130.79368 | R71: 15566.4264 | S71: 15302.4508 | T71: 0 | U71: 0 | V71: 0 | W71: 0 | X71: 1 | Y71: 0 | Z71: 67000 | AB71: 0.005 | AC71: 0.326 | AD71: 0.013 | AE71: 0.044 | AF71: 0.558 | AG71: 0.054
A72: 68 | B72: 138.847004 | C72: 174.6215467 | D72: 3240.802658 | E72: 505.2240196 | F72: 110.54404 | G72: 150.364584 | H72: 0.7537154741 | I72: 0.7533595119 | J72: 0.7737271192 | K72: 0.748654922 | L72: 0.7734135058 | M72: 0.7571359501 | N72: 14935.46248 | O72: 14892.56869 | P72: 12233.73973 | Q72: 14467.87442 | R72: 15357.72608 | S72: 14992.35442 | T72: 0 | U72: 0 | V72: 0 | W72: 0 | X72: 1 | Y72: 0 | Z72: 68000 | AB72: 0.005 | AC72: 0.325 | AD72: 0.014 | AE72: 0.045 | AF72: 0.557 | AG72: 0.054
A73: 69 | B73: 168.209712 | C73: 164.6713384 | D73: 2213.284146 | E73: 501.5486219 | F73: 149.4473532 | G73: 157.6317187 | H73: 0.7495633781 | I73: 0.7709581608 | J73: 0.7759027203 | K73: 0.7643211114 | L73: 0.7636152542 | M73: 0.7623059307 | N73: 14823.05785 | O73: 15254.49188 | P73: 13304.77026 | Q73: 14784.87361 | R73: 15122.85773 | S73: 15088.4869 | T73: 0 | U73: 1 | V73: 0 | W73: 0 | X73: 0 | Y73: 0 | Z73: 69000 | AB73: 0.005 | AC73: 0.325 | AD73: 0.016 | AE73: 0.045 | AF73: 0.557 | AG73: 0.052
A74: 70 | B74: 145.5729971 | C74: 170.0381371 | D74: 2514.646261 | E74: 526.8079668 | F74: 133.4640691 | G74: 152.4784018 | H74: 0.7736834671 | I74: 0.7803894058 | J74: 0.8002964571 | K74: 0.7830469799 | L74: 0.7833598897 | M74: 0.7768464893 | N74: 15328.09635 | O74: 15437.74998 | P74: 13491.28288 | Q74: 15134.13163 | R74: 15533.73372 | S74: 15384.45138 | T74: 0 | U74: 0 | V74: 0 | W74: 0 | X74: 1 | Y74: 0 | Z74: 70000 | AB74: 0.005 | AC74: 0.324 | AD74: 0.018 | AE74: 0.045 | AF74: 0.556 | AG74: 0.052
A75: 71 | B75: 117.5692233 | C75: 137.0080498 | D75: 2702.475276 | E75: 467.4917148 | F75: 102.7229267 | G75: 123.1778352 | H75: 0.7588806084 | I75: 0.7700222181 | J75: 0.7891708638 | K75: 0.7652040387 | L75: 0.7745652837 | M75: 0.7650448939 | N75: 15060.04294 | O75: 15263.43631 | P75: 13080.942 | Q75: 14836.58906 | R75: 15388.58275 | S75: 15177.72004 | T75: 0 | U75: 0 | V75: 0 | W75: 0 | X75: 1 | Y75: 0 | Z75: 71000 | AB75: 0.005 | AC75: 0.323 | AD75: 0.019 | AE75: 0.046 | AF75: 0.555 | AG75: 0.052
A76: 72 | B76: 89.04637084 | C76: 131.6781041 | D76: 2488.944716 | E76: 468.9826882 | F76: 86.06179909 | G76: 110.1618642 | H76: 0.7327244475 | I76: 0.7459464817 | J76: 0.7505958724 | K76: 0.7224269919 | L76: 0.7548279419 | M76: 0.7080078935 | N76: 14565.44258 | O76: 14787.25153 | P76: 12522.97273 | Q76: 13979.55715 | R76: 15010.49704 | S76: 14049.99601 | T76: 0 | U76: 0 | V76: 0 | W76: 0 | X76: 1 | Y76: 0 | Z76: 72000 | AB76: 0.005 | AC76: 0.323 | AD76: 0.019 | AE76: 0.046 | AF76: 0.555 | AG76: 0.052
A77: 73 | B77: 150.3838997 | C77: 172.0399317 | D77: 2499.993387 | E77: 517.4196201 | F77: 172.1375541 | G77: 161.3959017 | H77: 0.7586351816 | I77: 0.7733728689 | J77: 0.7934057204 | K77: 0.7707749967 | L77: 0.7471679585 | M77: 0.7592822002 | N77: 15022.31973 | O77: 15295.41745 | P77: 13368.12102 | Q77: 14898.08031 | R77: 14771.22162 | S77: 15024.2481 | T77: 0 | U77: 1 | V77: 0 | W77: 0 | X77: 0 | Y77: 0 | Z77: 73000 | AB77: 0.005 | AC77: 0.323 | AD77: 0.019 | AE77: 0.046 | AF77: 0.555 | AG77: 0.052
A78: 74 | B78: 103.1217192 | C78: 140.9782444 | D78: 2296.138482 | E78: 468.8299293 | F78: 99.06591412 | G78: 118.9132608 | H78: 0.7563681337 | I78: 0.7725275405 | J78: 0.8005477549 | K78: 0.7674933093 | L78: 0.771859593 | M78: 0.7528540803 | N78: 15024.24096 | O78: 15309.57257 | P78: 13714.81662 | Q78: 14881.03626 | R78: 15338.12595 | S78: 14938.16835 | T78: 0 | U78: 0 | V78: 0 | W78: 0 | X78: 1 | Y78: 0 | Z78: 74000 | AB78: 0.005 | AC78: 0.323 | AD78: 0.019 | AE78: 0.046 | AF78: 0.555 | AG78: 0.052
A79: 75 | B79: 131.8502656 | C79: 160.3984533 | D79: 3306.957316 | E79: 462.3198786 | F79: 128.2750053 | G79: 139.855563 | H79: 0.7433729691 | I79: 0.7526774417 | J79: 0.7811340686 | K79: 0.761615483 | L79: 0.7513359267 | M79: 0.7522830484 | N79: 14735.60912 | O79: 14893.15038 | P79: 12315.72406 | Q79: 14769.98978 | R79: 14898.44353 | S79: 14905.8054 | T79: 0 | U79: 0 | V79: 0 | W79: 0 | X79: 0 | Y79: 1 | Z79: 75000 | AB79: 0.005 | AC79: 0.322 | AD79: 0.02 | AE79: 0.048 | AF79: 0.555 | AG79: 0.05
A80: 76 | B80: 136.6626575 | C80: 131.5868163 | D80: 2982.647958 | E80: 483.9288474 | F80: 111.580644 | G80: 107.4470939 | H80: 0.7393432901 | I80: 0.7870868445 | J80: 0.8081613478 | K80: 0.7643622731 | L80: 0.7738650616 | M80: 0.7841646259 | N80: 14650.20314 | O80: 15610.15007 | P80: 13180.579 | Q80: 14803.31662 | R80: 15365.72059 | S80: 15575.84542 | T80: 0 | U80: 1 | V80: 0 | W80: 0 | X80: 0 | Y80: 0 | Z80: 76000 | AB80: 0.005 | AC80: 0.321 | AD80: 0.021 | AE80: 0.048 | AF80: 0.555 | AG80: 0.05
A81: 77 | B81: 136.3713075 | C81: 154.2927128 | D81: 2910.594726 | E81: 457.2277671 | F81: 142.7559132 | G81: 141.2843477 | H81: 0.7429319093 | I81: 0.7763364449 | J81: 0.7752111101 | K81: 0.7599802708 | L81: 0.7397756004 | M81: 0.7586431628 | N81: 14722.26688 | O81: 15372.43619 | P81: 12593.62748 | Q81: 14742.37765 | R81: 14652.75609 | S81: 15031.57891 | T81: 0 | U81: 1 | V81: 0 | W81: 0 | X81: 0 | Y81: 0 | Z81: 77000 | AB81: 0.005 | AC81: 0.319 | AD81: 0.023 | AE81: 0.048 | AF81: 0.555 | AG81: 0.05
A82: 78 | B82: 118.5056997 | C82: 167.2800671 | D82: 3123.964097 | E82: 461.4840567 | F82: 133.037207 | G82: 134.0907508 | H82: 0.7342025243 | I82: 0.7207120734 | J82: 0.7537588159 | K82: 0.7368280539 | L82: 0.7119115436 | M82: 0.7312814615 | N82: 14565.54479 | O82: 14246.9614 | P82: 11951.21222 | Q82: 14275.07702 | R82: 14105.19367 | S82: 14491.53848 | T82: 1 | U82: 0 | V82: 0 | W82: 0 | X82: 0 | Y82: 0 | Z82: 78000 | AB82: 0.005 | AC82: 0.319 | AD82: 0.026 | AE82: 0.048 | AF82: 0.553 | AG82: 0.049
A83: 79 | B83: 124.2966811 | C83: 144.4951673 | D83: 2896.260502 | E83: 489.1950556 | F83: 108.4477519 | G83: 135.8094797 | H83: 0.7257459901 | I83: 0.7557211272 | J83: 0.7603573321 | K83: 0.7347636336 | L83: 0.7566752082 | M83: 0.7303091176 | N83: 14390.62312 | O83: 14969.92738 | P83: 12310.88614 | Q83: 14206.07762 | R83: 15025.05641 | S83: 14470.37287 | T83: 0 | U83: 0 | V83: 0 | W83: 0 | X83: 1 | Y83: 0 | Z83: 79000 | AB83: 0.005 | AC83: 0.319 | AD83: 0.027 | AE83: 0.048 | AF83: 0.552 | AG83: 0.049
A84: 80 | B84: 166.1625079 | C84: 177.0487566 | D84: 2096.315855 | E84: 501.8906572 | F84: 124.8445934 | G84: 162.5700993 | H84: 0.7669927437 | I84: 0.7844573517 | J84: 0.8073375277 | K84: 0.7688580326 | L84: 0.790242679 | M84: 0.7764453492 | N84: 15173.69237 | O84: 15512.09828 | P84: 14050.4347 | Q84: 14875.26999 | R84: 15680.00899 | S84: 15366.33688 | T84: 0 | U84: 0 | V84: 0 | W84: 0 | X84: 1 | Y84: 0 | Z84: 80000 | AB84: 0.005 | AC84: 0.318 | AD84: 0.028 | AE84: 0.049 | AF84: 0.552 | AG84: 0.048
A85: 81 | B85: 100.7855845 | C85: 141.3050438 | D85: 3504.408135 | E85: 480.5436535 | F85: 92.79039626 | G85: 106.49327 | H85: 0.7448134599 | I85: 0.760303292 | J85: 0.7870690107 | K85: 0.7593039513 | L85: 0.7798725719 | M85: 0.7561995333 | N85: 14795.48361 | O85: 15064.7608 | P85: 12236.97208 | Q85: 14705.53537 | R85: 15504.66104 | S85: 15017.4974 | T85: 0 | U85: 0 | V85: 0 | W85: 0 | X85: 1 | Y85: 0 | Z85: 81000 | AB85: 0.005 | AC85: 0.317 | AD85: 0.029 | AE85: 0.049 | AF85: 0.552 | AG85: 0.048
A86: 82 | B86: 143.2826146 | C86: 142.5874764 | D86: 2197.111813 | E86: 520.6577279 | F86: 123.8684084 | G86: 152.707239 | H86: 0.7532665784 | I86: 0.79012391 | J86: 0.7976448297 | K86: 0.7601805067 | L86: 0.7741092939 | M86: 0.7582531089 | N86: 14922.04895 | O86: 15659.89072 | P86: 13755.78478 | Q86: 14682.95241 | R86: 15358.31747 | S86: 15012.35494 | T86: 0 | U86: 1 | V86: 0 | W86: 0 | X86: 0 | Y86: 0 | Z86: 82000 | AB86: 0.005 | AC86: 0.317 | AD86: 0.03 | AE86: 0.048 | AF86: 0.552 | AG86: 0.048
A87: 83 | B87: 147.4175447 | C87: 139.3133848 | D87: 2649.862828 | E87: 496.8233928 | F87: 88.67428015 | G87: 137.7368956 | H87: 0.7573884003 | I87: 0.7850776732 | J87: 0.799988668 | K87: 0.7756234711 | L87: 0.8022957007 | M87: 0.7760375198 | N87: 15000.35046 | O87: 15562.24008 | P87: 13349.91053 | Q87: 15015.64603 | R87: 15957.23973 | S87: 15383.0135 | T87: 0 | U87: 0 | V87: 0 | W87: 0 | X87: 1 | Y87: 0 | Z87: 83000 | AB87: 0.005 | AC87: 0.315 | AD87: 0.033 | AE87: 0.048 | AF87: 0.551 | AG87: 0.048
A88: 84 | B88: 96.29317401 | C88: 132.4052126 | D88: 2294.578004 | E88: 479.1618572 | F88: 88.92657336 | G88: 110.1342686 | H88: 0.7405254869 | I88: 0.7380813386 | J88: 0.7757337302 | K88: 0.7295712019 | L88: 0.7693293573 | M88: 0.7416097445 | N88: 14714.21656 | O88: 14629.22156 | P88: 13220.0966 | Q88: 14112.26218 | R88: 15297.66057 | S88: 14722.06062 | T88: 0 | U88: 0 | V88: 0 | W88: 0 | X88: 1 | Y88: 0 | Z88: 84000 | AB88: 0.005 | AC88: 0.315 | AD88: 0.033 | AE88: 0.048 | AF88: 0.551 | AG88: 0.048
A89: 85 | B89: 125.735686 | C89: 153.9109398 | D89: 2171.220444 | E89: 476.9095235 | F89: 106.6010859 | G89: 134.948541 | H89: 0.7603205195 | I89: 0.776581562 | J89: 0.8111834015 | K89: 0.7736233511 | L89: 0.7866772643 | M89: 0.7653147889 | N89: 15080.6747 | O89: 15377.7203 | P89: 14052.44759 | Q89: 14995.5575 | R89: 15626.9442 | S89: 15171.34724 | T89: 0 | U89: 0 | V89: 0 | W89: 0 | X89: 1 | Y89: 0 | Z89: 85000 | AB89: 0.005 | AC89: 0.314 | AD89: 0.037 | AE89: 0.048 | AF89: 0.548 | AG89: 0.048
A90: 86 | B90: 123.7644251 | C90: 155.3154636 | D90: 2598.000659 | E90: 479.3628324 | F90: 98.11881541 | G90: 141.2594581 | H90: 0.7459065938 | I90: 0.7614146266 | J90: 0.7910844487 | K90: 0.746625094 | L90: 0.7783542665 | M90: 0.7449331989 | N90: 14794.36745 | O90: 15072.97707 | P90: 13223.68831 | Q90: 14453.13905 | R90: 15468.96651 | S90: 14757.40452 | T90: 0 | U90: 0 | V90: 0 | W90: 0 | X90: 1 | Y90: 0 | Z90: 86000 | AB90: 0.005 | AC90: 0.314 | AD90: 0.038 | AE90: 0.048 | AF90: 0.547 | AG90: 0.048
A91: 87 | B91: 147.6585117 | C91: 176.5923663 | D91: 3454.157903 | E91: 481.6406136 | F91: 118.9611839 | G91: 159.0729238 | H91: 0.7430134119 | I91: 0.7549406754 | J91: 0.7764413609 | K91: 0.7584006311 | L91: 0.7674693431 | M91: 0.7430838551 | N91: 14712.60973 | O91: 14922.22114 | P91: 12074.66932 | Q91: 14686.37201 | R91: 15230.42568 | S91: 14702.60418 | T91: 0 | U91: 0 | V91: 0 | W91: 0 | X91: 1 | Y91: 0 | Z91: 87000 | AB91: 0.005 | AC91: 0.311 | AD91: 0.043 | AE91: 0.049 | AF91: 0.545 | AG91: 0.047
A92: 88 | B92: 120.5108677 | C92: 138.4226174 | D92: 2968.945151 | E92: 453.2480837 | F92: 94.91466243 | G92: 127.7077397 | H92: 0.7450739262 | I92: 0.7679879371 | J92: 0.7762455442 | K92: 0.7567331583 | L92: 0.7726711388 | M92: 0.7484280264 | N92: 14780.96766 | O92: 15221.33612 | P92: 12555.96573 | Q92: 14681.41508 | R92: 15358.50811 | S92: 14840.85279 | T92: 0 | U92: 0 | V92: 0 | W92: 0 | X92: 1 | Y92: 0 | Z92: 88000 | AB92: 0.005 | AC92: 0.311 | AD92: 0.044 | AE92: 0.049 | AF92: 0.544 | AG92: 0.047
A93: 89 | B93: 136.1686421 | C93: 160.6027197 | D93: 2627.008482 | E93: 546.1669602 | F93: 116.019707 | G93: 153.18872 | H93: 0.7506317665 | I93: 0.7669826366 | J93: 0.7681292422 | K93: 0.7348036765 | L93: 0.7701546938 | M93: 0.7479489055 | N93: 14876.46669 | O93: 15179.05001 | P93: 12735.57636 | Q93: 14149.90657 | R93: 15287.07417 | S93: 14805.78939 | T93: 0 | U93: 0 | V93: 0 | W93: 0 | X93: 1 | Y93: 0 | Z93: 89000 | AB93: 0.005 | AC93: 0.31 | AD93: 0.045 | AE93: 0.049 | AF93: 0.544 | AG93: 0.047
A94: 90 | B94: 96.9901579 | C94: 133.5432804 | D94: 2930.158248 | E94: 462.3910332 | F94: 95.91822381 | G94: 112.2528605 | H94: 0.7367029795 | I94: 0.7435479349 | J94: 0.7564204729 | K94: 0.7301793505 | L94: 0.7455480629 | M94: 0.7318673457 | N94: 14637.06943 | O94: 14737.41542 | P94: 12198.25121 | Q94: 14141.19598 | R94: 14815.04303 | S94: 14525.09405 | T94: 0 | U94: 0 | V94: 0 | W94: 0 | X94: 1 | Y94: 0 | Z94: 90000 | AB94: 0.005 | AC94: 0.308 | AD94: 0.05 | AE94: 0.048 | AF94: 0.542 | AG94: 0.047
A95: 91 | B95: 151.2613844 | C95: 138.2340377 | D95: 2546.215736 | E95: 434.2461033 | F95: 157.0182868 | G95: 115.6004649 | H95: 0.7464792815 | I95: 0.7924028973 | J95: 0.8055980046 | K95: 0.8096098831 | L95: 0.7454380794 | M95: 0.7859564785 | N95: 14778.32424 | O95: 15709.82391 | P95: 13565.74436 | Q95: 15757.95156 | R95: 14751.7433 | S95: 15603.5291 | T95: 0 | U95: 0 | V95: 0 | W95: 1 | X95: 0 | Y95: 0 | Z95: 91000 | AB95: 0.005 | AC95: 0.305 | AD95: 0.054 | AE95: 0.048 | AF95: 0.542 | AG95: 0.046
A96: 92 | B96: 149.4737843 | C96: 198.3792805 | D96: 3037.723082 | E96: 523.1124392 | F96: 110.630666 | G96: 161.5794014 | H96: 0.7487241935 | I96: 0.7485301723 | J96: 0.7783801223 | K96: 0.7362799403 | L96: 0.7776454603 | M96: 0.7509977746 | N96: 14825.01009 | O96: 14772.22417 | P96: 12529.87936 | Q96: 14202.48637 | R96: 15442.27854 | S96: 14858.37609 | T96: 0 | U96: 0 | V96: 0 | W96: 0 | X96: 1 | Y96: 0 | Z96: 92000 | AB96: 0.005 | AC96: 0.304 | AD96: 0.055 | AE96: 0.048 | AF96: 0.542 | AG96: 0.046
A97: 93 | B97: 118.8514805 | C97: 161.7812453 | D97: 2949.329833 | E97: 456.9239905 | F97: 112.9401615 | G97: 131.2399513 | H97: 0.7357365252 | I97: 0.7520257026 | J97: 0.7637910803 | K97: 0.7452217507 | L97: 0.7555440926 | M97: 0.7397008778 | N97: 14595.87902 | O97: 14878.73281 | P97: 12326.49177 | Q97: 14447.51102 | R97: 14997.94169 | S97: 14662.7776 | T97: 0 | U97: 0 | V97: 0 | W97: 0 | X97: 1 | Y97: 0 | Z97: 93000 | AB97: 0.005 | AC97: 0.304 | AD97: 0.057 | AE97: 0.048 | AF97: 0.54 | AG97: 0.046
A98: 94 | B98: 178.745742 | C98: 173.7849149 | D98: 2590.269223 | E98: 475.728674 | F98: 143.3920525 | G98: 169.9007403 | H98: 0.7670152882 | I98: 0.7917176304 | J98: 0.7883528428 | K98: 0.7948043244 | L98: 0.7847603459 | M98: 0.7798602584 | N98: 15161.56002 | O98: 15660.56769 | P98: 13176.78763 | Q98: 15420.35781 | R98: 15551.81487 | S98: 15427.30443 | T98: 0 | U98: 1 | V98: 0 | W98: 0 | X98: 0 | Y98: 0 | Z98: 94000 | AB98: 0.005 | AC98: 0.304 | AD98: 0.058 | AE98: 0.048 | AF98: 0.54 | AG98: 0.045
A99: 95 | B99: 89.93081975 | C99: 125.6664713 | D99: 1964.5049 | E99: 450.3894059 | F99: 88.28642687 | G99: 108.026243 | H99: 0.7554687174 | I99: 0.7624522041 | J99: 0.7741039966 | K99: 0.7478489436 | L99: 0.7677288621 | M99: 0.7474965345 | N99: 15019.44353 | O99: 15123.37761 | P99: 13517.57503 | Q99: 14506.58947 | R99: 15266.29081 | S99: 14841.90445 | T99: 0 | U99: 0 | V99: 0 | W99: 0 | X99: 1 | Y99: 0 | Z99: 95000 | AB99: 0.005 | AC99: 0.304 | AD99: 0.061 | AE99: 0.048 | AF99: 0.537 | AG99: 0.045
A100: 96 | B100: 164.6241899 | C100: 174.593191 | D100: 2860.818476 | E100: 455.1382734 | F100: 157.5155028 | G100: 145.0904354 | H100: 0.7456953467 | I100: 0.758662243 | J100: 0.7628400519 | K100: 0.7688857187 | L100: 0.7522861631 | M100: 0.7640368798 | N100: 14749.28274 | O100: 14998.65167 | P100: 12395.98256 | Q100: 14922.5761 | R100: 14888.20776 | S100: 15135.64716 | T100: 0 | U100: 0 | V100: 0 | W100: 0 | X100: 0 | Y100: 1 | Z100: 96000 | AB100: 0.005 | AC100: 0.303 | AD100: 0.064 | AE100: 0.048 | AF100: 0.535 | AG100: 0.045
A101: 97 | B101: 97.96392568 | C101: 138.8112491 | D101: 3294.245723 | E101: 448.8510682 | F101: 96.9382808 | G101: 109.1927454 | H101: 0.7444456098 | I101: 0.7388894975 | J101: 0.7792643346 | K101: 0.764663679 | L101: 0.7559673095 | M101: 0.7497117551 | N101: 14790.94827 | O101: 14638.9787 | P101: 12291.04097 | Q101: 14844.42251 | R101: 15022.40791 | S101: 14885.04236 | T101: 0 | U101: 0 | V101: 0 | W101: 0 | X101: 1 | Y101: 0 | Z101: 97000 | AB101: 0.005 | AC101: 0.303 | AD101: 0.066 | AE101: 0.048 | AF101: 0.533 | AG101: 0.045
A102: 98 | B102: 169.4343612 | C102: 200.2985961 | D102: 2607.102221 | E102: 508.458408 | F102: 121.9760013 | G102: 165.6464429 | H102: 0.7557538956 | I102: 0.7621799253 | J102: 0.7841954461 | K102: 0.7647019926 | L102: 0.7845566746 | M102: 0.7645414138 | N102: 14945.64355 | O102: 15043.29991 | P102: 13076.8067 | Q102: 14785.58144 | R102: 15569.15749 | S102: 15125.18183 | T102: 0 | U102: 0 | V102: 0 | W102: 0 | X102: 1 | Y102: 0 | Z102: 98000 | AB102: 0.005 | AC102: 0.302 | AD102: 0.067 | AE102: 0.049 | AF102: 0.532 | AG102: 0.045
A103: 99 | B103: 137.1732644 | C103: 140.6657434 | D103: 3482.687524 | E103: 452.6503226 | F103: 127.1697593 | G103: 134.796926 | H103: 0.743236437 | I103: 0.771056096 | J103: 0.7776807716 | K103: 0.7664072053 | L103: 0.7539311428 | M103: 0.7556299206 | N103: 14727.55548 | O103: 15280.45618 | P103: 12070.92791 | Q103: 14875.49378 | R103: 14951.4531 | S103: 14977.80149 | T103: 0 | U103: 1 | V103: 0 | W103: 0 | X103: 0 | Y103: 0 | Z103: 99000 | AB103: 0.005 | AC103: 0.3 | AD103: 0.071 | AE103: 0.049 | AF103: 0.531 | AG103: 0.044
A104: 100 | B104: 124.7174727 | C104: 147.9412417 | D104: 3334.869119 | E104: 473.2606409 | F104: 87.80236482 | G104: 118.1611387 | H104: 0.7544842273 | I104: 0.7771483653 | J104: 0.8059493156 | K104: 0.781172672 | L104: 0.7957580984 | M104: 0.773068615 | N104: 14964.96707 | O104: 15395.02606 | P104: 12784.11719 | Q104: 15150.1928 | R104: 15827.3596 | S104: 15343.21116 | T104: 0 | U104: 0 | V104: 0 | W104: 0 | X104: 1 | Y104: 0 | Z104: 100000 | AB104: 0.005 | AC104: 0.3 | AD104: 0.077 | AE104: 0.047 | AF104: 0.528 | AG104: 0.043
A105: 101 | B105: 142.9340114 | C105: 170.0786079 | D105: 2767.317876 | E105: 495.2862745 | F105: 115.6311018 | G105: 151.8408872 | H105: 0.7620256994 | I105: 0.7695857026 | J105: 0.7916467942 | K105: 0.7683994277 | L105: 0.7825716351 | M105: 0.7648165139 | N105: 15097.57998 | O105: 15221.63544 | P105: 13065.61801 | Q105: 14872.70228 | R105: 15535.8016 | S105: 15144.48939 | T105: 0 | U105: 0 | V105: 0 | W105: 0 | X105: 1 | Y105: 0
A106: 102 | B106: 135.1103932 | C106: 176.797616 | D106: 3264.354939 | E106: 506.8559485 | F106: 131.5505718 | G106: 153.4718541 | H106: 0.7438135159 | I106: 0.744981661 | J106: 0.7714704226 | K106: 0.7424945506 | L106: 0.7517575354 | M106: 0.7403461695 | N106: 14741.15992 | O106: 14722.8356 | P106: 12165.05351 | Q106: 14343.03506 | R106: 14903.60014 | S106: 14653.45154 | T106: 0 | U106: 0 | V106: 0 | W106: 0 | X106: 1 | Y106: 0
A107: 103 | B107: 119.3355635 | C107: 149.3046925 | D107: 2313.750764 | E107: 485.3504115 | F107: 117.8181901 | G107: 138.2528288 | H107: 0.7522612619 | I107: 0.7597888883 | J107: 0.7820921897 | K107: 0.7549983701 | L107: 0.7630995121 | M107: 0.7485805481 | N107: 14925.88968 | O107: 15046.47307 | P107: 13328.09303 | Q107: 14614.61699 | R107: 15144.17205 | S107: 14833.35813 | T107: 0 | U107: 0 | V107: 0 | W107: 0 | X107: 1 | Y107: 0
A108: 104 | B108: 115.1361257 | C108: 127.3886262 | D108: 3325.23879 | E108: 451.4357292 | F108: 101.9805219 | G108: 111.3142421 | H108: 0.7385526401 | I108: 0.7915012989 | J108: 0.8090405707 | K108: 0.7894126328 | L108: 0.76990833 | M108: 0.778693313 | N108: 14655.91668 | O108: 15702.63735 | P108: 12855.57262 | Q108: 15336.81693 | R108: 15296.18608 | S108: 15462.55202 | T108: 0 | U108: 1 | V108: 0 | W108: 0 | X108: 0 | Y108: 0
A109: 105 | B109: 98.91751762 | C109: 129.3982607 | D109: 2932.532662 | E109: 461.0831318 | F109: 96.24482072 | G109: 115.9573882 | H109: 0.7511984067 | I109: 0.7529165438 | J109: 0.780388155 | K109: 0.7543567929 | L109: 0.7648144691 | M109: 0.7452348604 | N109: 14925.05062 | O109: 14928.93261 | P109: 12675.23044 | Q109: 14626.05273 | R109: 15200.04456 | S109: 14788.73982 | T109: 0 | U109: 0 | V109: 0 | W109: 0 | X109: 1 | Y109: 0
A110: 106 | B110: 144.7690209 | C110: 155.1432947 | D110: 3391.619268 | E110: 467.4648998 | F110: 130.8472199 | G110: 148.813414 | H110: 0.7488322751 | I110: 0.777823965 | J110: 0.7958435385 | K110: 0.7736257007 | L110: 0.7665015525 | M110: 0.7615049627 | N110: 14831.87648 | O110: 15401.33601 | P110: 12525.2515 | Q110: 15005.04911 | R110: 15199.18383 | S110: 15081.28584 | T110: 0 | U110: 1 | V110: 0 | W110: 0 | X110: 0 | Y110: 0
A111: 107 | B111: 111.1923649 | C111: 156.5826037 | D111: 1913.063292 | E111: 468.9189935 | F111: 92.97924264 | G111: 123.0857292 | H111: 0.7546350281 | I111: 0.7550574063 | J111: 0.8044292471 | K111: 0.7678778332 | L111: 0.7856156508 | M111: 0.7618381312 | N111: 14981.5082 | O111: 14944.56552 | P111: 14175.52165 | Q111: 14888.63767 | R111: 15619.33377 | S111: 15113.6769 | T111: 0 | U111: 0 | V111: 0 | W111: 0 | X111: 1 | Y111: 0
A112: 108 | B112: 124.1433598 | C112: 142.1282028 | D112: 1867.487121 | E112: 447.9285456 | F112: 100.8479343 | G112: 129.6183918 | H112: 0.7502238598 | I112: 0.7716620582 | J112: 0.7791902055 | K112: 0.7831825415 | L112: 0.773800634 | M112: 0.7601894357 | N112: 14880.33384 | O112: 15291.11296 | P112: 13716.31699 | Q112: 15215.72228 | R112: 15375.16475 | S112: 15074.17032 | T112: 0 | U112: 0 | V112: 0 | W112: 0 | X112: 1 | Y112: 0
A113: 109 | B113: 148.7696911 | C113: 167.5088072 | D113: 2661.867801 | E113: 510.417592 | F113: 117.7936843 | G113: 162.1273481 | H113: 0.7437602183 | I113: 0.7618640823 | J113: 0.7611853988 | K113: 0.7581167721 | L113: 0.7672227299 | M113: 0.7453527798 | N113: 14726.43468 | O113: 15069.77284 | P113: 12561.84018 | Q113: 14651.91785 | R113: 15226.66091 | S113: 14744.92825 | T113: 0 | U113: 0 | V113: 0 | W113: 0 | X113: 1 | Y113: 0
A114: 110 | B114: 101.1313052 | C114: 137.6650689 | D114: 3454.742254 | E114: 466.0684833 | F114: 99.81112827 | G114: 109.3601312 | H114: 0.7427683957 | I114: 0.7655508713 | J114: 0.7596754399 | K114: 0.7541227948 | L114: 0.7509581993 | M114: 0.7519022162 | N114: 14754.23661 | O114: 15173.35236 | P114: 11738.76654 | Q114: 14616.38741 | R114: 14919.35286 | S114: 14928.68419 | T114: 0 | U114: 1 | V114: 0 | W114: 0 | X114: 0 | Y114: 0
A115: 111 | B115: 160.1835209 | C115: 182.4047222 | D115: 2621.726728 | E115: 509.8005174 | F115: 151.5937259 | G115: 159.7280661 | H115: 0.7472720227 | I115: 0.757507707 | J115: 0.7627096335 | K115: 0.7541903076 | L115: 0.7554542528 | M115: 0.7553179923 | N115: 14785.25693 | O115: 14967.74942 | P115: 12632.46594 | Q115: 14574.00564 | R115: 14957.49133 | S115: 14946.63178 | T115: 0 | U115: 1 | V115: 0 | W115: 0 | X115: 0 | Y115: 0
A116: 112 | B116: 177.44481 | C116: 176.2465741 | D116: 2223.831811 | E116: 520.6609186 | F116: 110.4097772 | G116: 200.885725 | H116: 0.7433543992 | I116: 0.7652654363 | J116: 0.7717093709 | K116: 0.7609903605 | L116: 0.7844412877 | M116: 0.7357719563 | N116: 14689.64317 | O116: 15129.06215 | P116: 13210.35561 | Q116: 14699.14629 | R116: 15578.41598 | S116: 14514.5534 | T116: 0 | U116: 0 | V116: 0 | W116: 0 | X116: 1 | Y116: 0
A117: 113 | B117: 176.4600355 | C117: 176.1838387 | D117: 2268.804817 | E117: 513.0480133 | F117: 148.5432737 | G117: 184.7337432 | H117: 0.7667459649 | I117: 0.7859617433 | J117: 0.7831269112 | K117: 0.7724045112 | L117: 0.7815786628 | M117: 0.7716201013 | N117: 15158.45926 | O117: 15543.05103 | P117: 13393.73341 | Q117: 14935.04221 | R117: 15483.02998 | S117: 15247.66828 | T117: 0 | U117: 1 | V117: 0 | W117: 0 | X117: 0 | Y117: 0
A118: 114 | B118: 154.6223353 | C118: 175.1763796 | D118: 2732.213517 | E118: 466.9459706 | F118: 108.8591635 | G118: 148.1781586 | H118: 0.7436613151 | I118: 0.7576808292 | J118: 0.7668462379 | K118: 0.7554304761 | L118: 0.7787927368 | M118: 0.7584494735 | N118: 14718.60397 | O118: 14978.44021 | P118: 12604.71124 | Q118: 14641.66355 | R118: 15466.99557 | S118: 15020.81131 | T118: 0 | U118: 0 | V118: 0 | W118: 0 | X118: 1 | Y118: 0
A119: 115 | B119: 109.0820278 | C119: 136.8544164 | D119: 2465.694486 | E119: 454.9890487 | F119: 102.2788596 | G119: 114.2311879 | H119: 0.7521690288 | I119: 0.7719622041 | J119: 0.7881933956 | K119: 0.7704138535 | L119: 0.7643276231 | M119: 0.7625552813 | N119: 14934.29855 | O119: 15302.38967 | P119: 13298.17343 | Q119: 14953.28802 | R119: 15184.2736 | S119: 15136.87444 | T119: 0 | U119: 1 | V119: 0 | W119: 0 | X119: 0 | Y119: 0
A120: 116 | B120: 95.27142619 | C120: 121.26131 | D120: 3001.801062 | E120: 487.3635013 | F120: 92.64307942 | G120: 102.1911968 | H120: 0.7709796405 | I120: 0.7906951312 | J120: 0.7955762067 | K120: 0.7723704292 | L120: 0.7793482633 | M120: 0.776630899 | N120: 15324.32138 | O120: 15692.64131 | P120: 12909.72307 | Q120: 14960.04508 | R120: 15494.32219 | S120: 15430.42678 | T120: 0 | U120: 1 | V120: 0 | W120: 0 | X120: 0 | Y120: 0
A121: 117 | B121: 145.5668741 | C121: 144.0072272 | D121: 1938.50011 | E121: 448.5894401 | F121: 132.035444 | G121: 121.9631808 | H121: 0.7328281015 | I121: 0.7684054828 | J121: 0.7758294334 | K121: 0.7770663289 | L121: 0.7454521342 | M121: 0.7626172404 | N121: 14510.99516 | O121: 15224.10243 | P121: 13578.08856 | Q121: 15092.73714 | R121: 14777.00724 | S121: 15130.38163 | T121: 0 | U121: 1 | V121: 0 | W121: 0 | X121: 0 | Y121: 0
A122: 118 | B122: 179.2854235 | C122: 234.2654392 | D122: 2745.598188 | E122: 579.3180832 | F122: 187.5607034 | G122: 212.404749 | H122: 0.7501746971 | I122: 0.7364596543 | J122: 0.7652803875 | K122: 0.7247808706 | L122: 0.7478270773 | M122: 0.7362132232 | N122: 14824.20852 | O122: 14494.92765 | P122: 12560.00956 | Q122: 13916.29933 | R122: 14768.98084 | S122: 14511.85971 | T122: 1 | U122: 0 | V122: 0 | W122: 0 | X122: 0 | Y122: 0
A123: 119 | B123: 97.65324667 | C123: 129.1196507 | D123: 2870.169809 | E123: 458.2924618 | F123: 101.4497692 | G123: 112.4662297 | H123: 0.7564664497 | I123: 0.7619215769 | J123: 0.7922342013 | K123: 0.7556736373 | L123: 0.7599696911 | M123: 0.758320626 | N123: 15031.67575 | O123: 15109.31189 | P123: 12974.51422 | Q123: 14655.18028 | R123: 15097.94405 | S123: 15053.94629 | T123: 0 | U123: 1 | V123: 0 | W123: 0 | X123: 0 | Y123: 0
A124: 120 | B124: 103.2842021 | C124: 138.5918108 | D124: 2733.157589 | E124: 428.4503619 | F124: 98.07976289 | G124: 113.3469986 | H124: 0.7470833102 | I124: 0.7715606839 | J124: 0.7816229655 | K124: 0.7543456754 | L124: 0.7812567115 | M124: 0.7572272662 | N124: 14838.382 | O124: 15292.62187 | P124: 12899.30172 | Q124: 14658.46315 | R124: 15527.05447 | S124: 15031.19833 | T124: 0 | U124: 0 | V124: 0 | W124: 0 | X124: 1 | Y124: 0
A125: 121 | B125: 172.1610975 | C125: 226.4335924 | D125: 3361.619002 | E125: 549.6457572 | F125: 141.1409129 | G125: 209.7506956 | H125: 0.7329081132 | I125: 0.726080481 | J125: 0.73988417 | K125: 0.714966063 | L125: 0.7589475509 | M125: 0.7167107145 | N125: 14486.00117 | O125: 14295.17603 | P125: 11436.0644 | Q125: 13749.6755 | R125: 15037.8101 | S125: 14124.46359 | T125: 0 | U125: 0 | V125: 0 | W125: 0 | X125: 1 | Y125: 0
A126: 122 | B126: 132.2731166 | C126: 158.0849802 | D126: 2682.809734 | E126: 495.5218399 | F126: 122.550676 | G126: 140.4430393 | H126: 0.7459343873 | I126: 0.7609179622 | J126: 0.7640024108 | K126: 0.7427912984 | L126: 0.7574119058 | M126: 0.7490468973 | N126: 14786.41463 | O126: 15060.27426 | P126: 12597.23848 | Q126: 14360.30413 | R126: 15025.68744 | S126: 14840.49491 | T126: 0 | U126: 1 | V126: 0 | W126: 0 | X126: 0 | Y126: 0
A127: 123 | B127: 122.5006401 | C127: 171.860589 | D127: 2704.589877 | E127: 455.8531374 | F127: 110.353655 | G127: 136.4756153 | H127: 0.7569586948 | I127: 0.7583012614 | J127: 0.7899720124 | K127: 0.7774706239 | L127: 0.7723082046 | M127: 0.7535612303 | N127: 15016.67326 | O127: 14994.16464 | P127: 13094.85037 | Q127: 15093.55934 | R127: 15335.81044 | S127: 14934.74899 | T127: 0 | U127: 0 | V127: 0 | W127: 0 | X127: 1 | Y127: 0
A128: 124 | B128: 148.5635398 | C128: 188.029959 | D128: 3181.231096 | E128: 524.2988321 | F128: 121.7390126 | G128: 180.1515657 | H128: 0.7401929183 | I128: 0.7425243651 | J128: 0.7485301242 | K128: 0.7433642952 | L128: 0.7629368722 | M128: 0.7292177874 | N128: 14655.29483 | O128: 14662.45734 | P128: 11789.37139 | Q128: 14342.98707 | R128: 15136.99843 | S128: 14404.20418 | T128: 0 | U128: 0 | V128: 0 | W128: 0 | X128: 1 | Y128: 0
A129: 125 | B129: 146.3811477 | C129: 153.8906545 | D129: 2814.089198 | E129: 478.1838581 | F129: 153.0891372 | G129: 134.7332973 | H129: 0.7530327144 | I129: 0.7750885152 | J129: 0.7862479837 | K129: 0.7675753597 | L129: 0.7520356756 | M129: 0.7673648311 | N129: 14914.27314 | O129: 15347.87965 | P129: 12910.87048 | Q129: 14873.32334 | R129: 14887.62438 | S129: 15212.56333 | T129: 0 | U129: 1 | V129: 0 | W129: 0 | X129: 0 | Y129: 0
A130: 126 | B130: 144.0558806 | C130: 183.6602129 | D130: 2756.428003 | E130: 470.3962238 | F130: 143.4980544 | G130: 168.6458303 | H130: 0.7553782237 | I130: 0.7514208414 | J130: 0.7737058269 | K130: 0.7569354932 | L130: 0.7588875145 | M130: 0.7511740519 | N130: 14963.50859 | O130: 14844.75662 | P130: 12717.68853 | Q130: 14668.31364 | R130: 15034.25224 | S130: 14854.83521 | T130: 0 | U130: 0 | V130: 0 | W130: 0 | X130: 1 | Y130: 0
A131: 127 | B131: 134.4040944 | C131: 158.1202093 | D131: 2897.994954 | E131: 493.7619799 | F131: 113.3317179 | G131: 138.5678102 | H131: 0.7396021984 | I131: 0.7520540513 | J131: 0.7984610752 | K131: 0.7494446565 | L131: 0.7623974638 | M131: 0.7500395484 | N131: 14657.63987 | O131: 14882.96082 | P131: 13071.22655 | Q131: 14495.13115 | R131: 15134.61756 | S131: 14862.22316 | T131: 0 | U131: 0 | V131: 0 | W131: 0 | X131: 1 | Y131: 0
A132: 128 | B132: 126.2558872 | C132: 142.778507 | D132: 2262.415108 | E132: 472.8695217 | F132: 111.8057581 | G132: 134.4919795 | H132: 0.7503113833 | I132: 0.775517565 | J132: 0.7711099091 | K132: 0.7625879286 | L132: 0.7657546499 | M132: 0.7567096091 | N132: =H132*VQALY-B132 -> 14879.97178 | O132: =I132*VQALY-C132 -> 15367.57279 | P132: =J132*VQALY-D132 -> 13159.78307 | Q132: =K132*VQALY-E132 -> 14778.88905 | R132: =L132*VQALY-F132 -> 15203.28724 | S132: =M132*VQALY-G132 -> 14999.7002 | T132: 0 | U132: 1 | V132: 0 | W132: 0 | X132: 0 | Y132: 0
A133: 129 | B133: 117.1622349 | C133: 151.2852234 | D133: 3158.751916 | E133: 463.1446685 | F133: 115.2179479 | G133: 114.7706118 | H133: 0.7376549478 | I133: 0.7489578947 | J133: 0.7570560979 | K133: 0.7757296841 | L133: 0.7478759383 | M133: 0.7563254733 | N133: 14635.93672 | O133: 14827.87267 | P133: 11982.37004 | Q133: 15051.44901 | R133: 14842.30082 | S133: 15011.73885 | T133: =IF(MAX($N133:$S133)=N133,1,0) -> 0 | U133: =IF(MAX($N133:$S133)=O133,1,0) -> 0 | V133: =IF(MAX($N133:$S133)=P133,1,0) -> 0 | W133: =IF(MAX($N133:$S133)=Q133,1,0) -> 1 | X133: =IF(MAX($N133:$S133)=R133,1,0) -> 0 | Y133: =IF(MAX($N133:$S133)=S133,1,0) -> 0
A134: 130 | B134: 100.3388825 | C134: 123.40064 | D134: 2514.873593 | E134: 442.2667983 | F134: 87.02966757 | G134: 101.4501953 | H134: 0.7778401099 | I134: 0.7936100538 | J134: 0.8101672441 | K134: 0.7866665148 | L134: 0.7979629082 | M134: 0.7946478037 | N134: 15456.46332 | O134: 15748.80044 | P134: 13688.47129 | Q134: 15291.0635 | R134: 15872.2285 | S134: 15791.50588 | T134: 0 | U134: 0 | V134: 0 | W134: 0 | X134: 1 | Y134: 0
A135: 131 | B135: 131.0807505 | C135: 165.9782466 | D135: 2541.410716 | E135: 481.8092888 | F135: 101.4028708 | G135: 127.1320188 | H135: 0.7562194299 | I135: 0.7655568258 | J135: 0.7972823985 | K135: 0.7688698357 | L135: 0.7839369103 | M135: 0.7692748725 | N135: 14993.30785 | O135: 15145.15827 | P135: 13404.23725 | Q135: 14895.58742 | R135: 15577.33534 | S135: 15258.36543 | T135: 0 | U135: 0 | V135: 0 | W135: 0 | X135: 1 | Y135: 0
A136: 132 | B136: 160.7658649 | C136: 183.0171331 | D136: 2767.194668 | E136: 511.6513421 | F136: 128.7742752 | G136: 174.7866126 | H136: 0.754863048 | I136: 0.7656966259 | J136: 0.7680045664 | K136: 0.7563015564 | L136: 0.7749145361 | M136: 0.7551845515 | N136: 14936.4951 | O136: 15130.91539 | P136: 12592.89666 | Q136: 14614.37979 | R136: 15369.51645 | S136: 14928.90442 | T136: 0 | U136: 0 | V136: 0 | W136: 0 | X136: 1 | Y136: 0
A137: 133 | B137: 96.50088688 | C137: 129.995658 | D137: 2510.515969 | E137: 451.328622 | F137: 93.77226643 | G137: 109.8829527 | H137: 0.7213082249 | I137: 0.7501910052 | J137: 0.7766618565 | K137: 0.7411727084 | L137: 0.7411005061 | M137: 0.7440885675 | N137: 14329.66361 | O137: 14873.82445 | P137: 13022.72116 | Q137: 14372.12555 | R137: 14728.23786 | S137: 14771.8884 | T137: 0 | U137: 1 | V137: 0 | W137: 0 | X137: 0 | Y137: 0
A138: 134 | B138: 170.8150889 | C138: 215.7411659 | D138: 2679.833617 | E138: 569.0370733 | F138: 137.8268509 | G138: 202.4942044 | H138: 0.7430983012 | I138: 0.7352884281 | J138: 0.7607162625 | K138: 0.7241578678 | L138: 0.7684793495 | M138: 0.7311169316 | N138: 14691.15094 | O138: 14490.0274 | P138: 12534.49163 | Q138: 13914.12028 | R138: 15231.76014 | S138: 14419.84443 | T138: 0 | U138: 0 | V138: 0 | W138: 0 | X138: 1 | Y138: 0
A139: 135 | B139: 91.76634731 | C139: 126.5124737 | D139: 2704.714093 | E139: 430.4948979 | F139: 90.03214319 | G139: 98.64305295 | H139: 0.7530026102 | I139: 0.7801217782 | J139: 0.7943935371 | K139: 0.7677667532 | L139: 0.7728652495 | M139: 0.7677428787 | N139: 14968.28586 | O139: 15475.92309 | P139: 13183.15665 | Q139: 14924.84017 | R139: 15367.27285 | S139: 15256.21452 | T139: 0 | U139: 1 | V139: 0 | W139: 0 | X139: 0 | Y139: 0
A140: 136 | B140: 122.6489517 | C140: 156.0861053 | D140: 2348.75407 | E140: 462.0152203 | F140: 106.1310844 | G140: 144.4421312 | H140: 0.7613890577 | I140: 0.7710819674 | J140: 0.7722859036 | K140: 0.7671619192 | L140: 0.7828372035 | M140: 0.7575358547 | N140: 15105.1322 | O140: 15265.55324 | P140: 13096.964 | Q140: 14881.22316 | R140: 15550.61299 | S140: 15006.27496 | T140: 0 | U140: 0 | V140: 0 | W140: 0 | X140: 1 | Y140: 0
A141: 137 | B141: 107.6258022 | C141: 136.3020877 | D141: 3606.28555 | E141: 487.8879196 | F141: 110.8433904 | G141: 115.2627049 | H141: 0.7360909842 | I141: 0.7564150191 | J141: 0.7602176583 | K141: 0.7546091111 | L141: 0.7357305715 | M141: 0.750186826 | N141: 14614.19388 | O141: 14991.99829 | P141: 11598.06762 | Q141: 14604.2943 | R141: 14603.76804 | S141: 14888.47381 | T141: 0 | U141: 1 | V141: 0 | W141: 0 | X141: 0 | Y141: 0
A142: 138 | B142: 128.4865777 | C142: 157.4021074 | D142: 3278.207545 | E142: 455.6059129 | F142: 113.894273 | G142: 129.9394754 | H142: 0.7494014069 | I142: 0.7715947635 | J142: 0.7858521835 | K142: 0.7686974063 | L142: 0.7716308773 | M142: 0.7617661302 | N142: 14859.54156 | O142: 15274.49316 | P142: 12438.83613 | Q142: 14918.34221 | R142: 15318.72327 | S142: 15105.38313 | T142: 0 | U142: 0 | V142: 0 | W142: 0 | X142: 1 | Y142: 0
A143: 139 | B143: 133.9346917 | C143: 196.0395257 | D143: 3136.344108 | E143: 475.3266523 | F143: 132.4886841 | G143: 164.3163209 | H143: 0.7469407168 | I143: 0.7351097775 | J143: 0.7713031126 | K143: 0.7529597542 | L143: 0.7516966398 | M143: 0.7381091205 | N143: 14804.87964 | O143: 14506.15602 | P143: 12289.71814 | Q143: 14583.86843 | R143: 14901.44411 | S143: 14597.86609 | T143: 0 | U143: 0 | V143: 0 | W143: 0 | X143: 1 | Y143: 0
A144: 140 | B144: 153.6268664 | C144: 188.9920704 | D144: 3508.778936 | E144: 491.1965565 | F144: 140.2647879 | G144: 160.9975002 | H144: 0.7418794771 | I144: 0.7486788215 | J144: 0.7627643041 | K144: 0.7472340164 | L144: 0.7566314263 | M144: 0.7450026767 | N144: 14683.96268 | O144: 14784.58436 | P144: 11746.50715 | Q144: 14453.48377 | R144: 14992.36374 | S144: 14739.05603 | T144: 0 | U144: 0 | V144: 0 | W144: 0 | X144: 1 | Y144: 0
A145: 141 | B145: 128.09207 | C145: 172.6366316 | D145: 3478.374289 | E145: 462.2394307 | F145: 116.6490841 | G145: 134.5647034 | H145: 0.7500144187 | I145: 0.7514278339 | J145: 0.7753638178 | K145: 0.7626588923 | L145: 0.7637204262 | M145: 0.7596773539 | N145: 14872.1963 | O145: 14855.92005 | P145: 12028.90207 | Q145: 14790.93842 | R145: 15157.75944 | S145: 15058.98237 | T145: 0 | U145: 0 | V145: 0 | W145: 0 | X145: 1 | Y145: 0
A146: 142 | B146: 93.13827086 | C146: 138.0347949 | D146: 2971.532861 | E146: 465.874113 | F146: 91.5088845 | G146: 107.8489745 | H146: 0.7460967517 | I146: 0.7667725293 | J146: 0.775058774 | K146: 0.7432392239 | L146: 0.7611874005 | M146: 0.7506224235 | N146: 14828.79676 | O146: 15197.41579 | P146: 12529.64262 | Q146: 14398.91036 | R146: 15132.23913 | S146: 14904.59949 | T146: 0 | U146: 1 | V146: 0 | W146: 0 | X146: 0 | Y146: 0
A147: 143 | B147: 161.9342924 | C147: 183.1059226 | D147: 2860.703431 | E147: 534.901003 | F147: 168.7215484 | G147: 175.3737668 | H147: 0.735057717 | I147: 0.7452530374 | J147: 0.7628102538 | K147: 0.740895294 | L147: 0.7342315379 | M147: 0.7404149085 | N147: 14539.22005 | O147: 14721.95483 | P147: 12395.50165 | Q147: 14283.00488 | R147: 14515.90921 | S147: 14632.9244 | T147: 0 | U147: 1 | V147: 0 | W147: 0 | X147: 0 | Y147: 0
A148: 144 | B148: 90.43297914 | C148: 131.5101234 | D148: 3159.762992 | E148: 463.1527842 | F148: 83.7838008 | G148: 103.3710392 | H148: 0.7531960998 | I148: 0.763513672 | J148: 0.7708096725 | K148: 0.7608401986 | L148: 0.7770831957 | M148: 0.7530930964 | N148: 14973.48902 | O148: 15138.76332 | P148: 12256.43046 | Q148: 14753.65119 | R148: 15457.88011 | S148: 14958.49089 | T148: 0 | U148: 0 | V148: 0 | W148: 0 | X148: 1 | Y148: 0
A149: 145 | B149: 183.927812 | C149: 193.1243173 | D149: 3299.37464 | E149: 573.7720942 | F149: 220.21366 | G149: 186.7814423 | H149: 0.7319305574 | I149: 0.7470586026 | J149: 0.7330516961 | K149: 0.7215475201 | L149: 0.7158724714 | M149: 0.7400124512 | N149: 14454.68334 | O149: 14748.04774 | P149: 11361.65928 | Q149: 13857.17831 | R149: 14097.23577 | S149: 14613.46758 | T149: 0 | U149: 1 | V149: 0 | W149: 0 | X149: 0 | Y149: 0
A150: 146 | B150: 162.365354 | C150: 200.734576 | D150: 2915.4578 | E150: 549.5876381 | F150: 125.418135 | G150: 194.2372983 | H150: 0.7420437125 | I150: 0.7428735909 | J150: 0.756699829 | K150: 0.7208722743 | L150: 0.7689068121 | M150: 0.7294423183 | N150: 14678.5089 | O150: 14656.73724 | P150: 12218.53878 | Q150: 13867.85785 | R150: 15252.71811 | S150: 14394.60907 | T150: 0 | U150: 0 | V150: 0 | W150: 0 | X150: 1 | Y150: 0
A151: 147 | B151: 135.822846 | C151: 159.8131405 | D151: 2612.270022 | E151: 475.8079171 | F151: 105.6610386 | G151: 129.4604153 | H151: 0.75448548 | I151: 0.7764879539 | J151: 0.7874539834 | K151: 0.7704750834 | L151: 0.7821457346 | M151: 0.7716490144 | N151: 14953.88675 | O151: 15369.94594 | P151: 13136.80965 | Q151: 14933.69375 | R151: 15537.25365 | S151: 15303.51987 | T151: 0 | U151: 0 | V151: 0 | W151: 0 | X151: 1 | Y151: 0
A152: 148 | B152: 112.330692 | C152: 148.1740445 | D152: 2954.952048 | E152: 464.9935679 | F152: 107.947945 | G152: 118.7348015 | H152: 0.7530452264 | I152: 0.7724974262 | J152: 0.795667207 | K152: 0.7749397364 | L152: 0.7667144055 | M152: 0.7724990725 | N152: 14948.57384 | O152: 15301.77448 | P152: 12958.39209 | Q152: 15033.80116 | R152: 15226.34016 | S152: 15331.24665 | T152: 0 | U152: 0 | V152: 0 | W152: 0 | X152: 0 | Y152: 1
A153: 149 | B153: 105.4789476 | C153: 140.2220542 | D153: 2287.855538 | E153: 453.3670455 | F153: 106.6236559 | G153: 119.2982364 | H153: 0.753022752 | I153: 0.755970669 | J153: 0.787049067 | K153: 0.7522698023 | L153: 0.7552212529 | M153: 0.7590371047 | N153: 14954.97609 | O153: 14979.19133 | P153: 13453.1258 | Q153: 14592.029 | R153: 14997.8014 | S153: 15061.44386 | T153: 0 | U153: 0 | V153: 0 | W153: 0 | X153: 0 | Y153: 1
A154: 150 | B154: 102.8915664 | C154: 134.7430046 | D154: 2656.307656 | E154: 447.7725344 | F154: 95.74870985 | G154: 116.941703 | H154: 0.7493907404 | I154: 0.7668294873 | J154: 0.7769277441 | K154: 0.7595474647 | L154: 0.7779939967 | M154: 0.7488839638 | N154: 14884.92324 | O154: 15201.84674 | P154: 12882.24723 | Q154: 14743.17676 | R154: 15464.13122 | S154: 14860.73757 | T154: 0 | U154: 0 | V154: 0 | W154: 0 | X154: 1 | Y154: 0
A155: 151 | B155: 110.9715805 | C155: 137.4777467 | D155: 2607.995648 | E155: 459.7407145 | F155: 92.28036949 | G155: 112.8355035 | H155: 0.7415769204 | I155: 0.7578384095 | J155: 0.7796678554 | K155: 0.750355773 | L155: 0.7633458907 | M155: 0.7570468846 | N155: 14720.56683 | O155: 15019.29044 | P155: 12985.36146 | Q155: 14547.37475 | R155: 15174.63745 | S155: 15028.10219 | T155: 0 | U155: 0 | V155: 0 | W155: 0 | X155: 1 | Y155: 0
A156: 152 | B156: 96.06637127 | C156: 132.8175088 | D156: 3685.854804 | E156: 464.8999385 | F156: 91.85478481 | G156: 113.3775537 | H156: 0.7564596833 | I156: 0.7739525412 | J156: 0.7843068027 | K156: 0.767018333 | L156: 0.7733016747 | M156: 0.7567111149 | N156: 15033.12729 | O156: 15346.23332 | P156: 12000.28125 | Q156: 14875.46672 | R156: 15374.17871 | S156: 15020.84474 | T156: 0 | U156: 0 | V156: 0 | W156: 0 | X156: 1 | Y156: 0
A157: 153 | B157: 129.7788727 | C157: 166.8896573 | D157: 2793.519234 | E157: 485.9998831 | F157: 125.9272285 | G157: 159.9623161 | H157: 0.7557653879 | I157: 0.7507293088 | J157: 0.7799041397 | K157: 0.7595749797 | L157: 0.7640689936 | M157: 0.7396968645 | N157: 14985.52889 | O157: 14847.69652 | P157: 12804.56356 | Q157: 14705.49971 | R157: 15155.45264 | S157: 14633.97497 | T157: 0 | U157: 0 | V157: 0 | W157: 0 | X157: 1 | Y157: 0
A158: 154 | B158: 101.8207825 | C158: 127.0241525 | D158: 3427.524242 | E158: 432.2003471 | F158: 96.37437692 | G158: 105.7496873 | H158: 0.7469346512 | I158: 0.7741541431 | J158: 0.7981743462 | K158: 0.7822633057 | L158: 0.7673026279 | M158: 0.7691659668 | N158: 14836.87224 | O158: 15356.05871 | P158: 12535.96268 | Q158: 15213.06577 | R158: 15249.67818 | S158: 15277.56965 | T158: 0 | U158: 1 | V158: 0 | W158: 0 | X158: 0 | Y158: 0
A159: 155 | B159: 104.8988605 | C159: 123.0957741 | D159: 3621.963554 | E159: 472.1227576 | F159: 95.62249049 | G159: 112.6391363 | H159: 0.750880152 | I159: 0.77902404 | J159: 0.7917024545 | K159: 0.7644808184 | L159: 0.7673325917 | M159: 0.758968256 | N159: 14912.70418 | O159: 15457.38503 | P159: 12212.08554 | Q159: 14817.49361 | R159: 15251.02934 | S159: 15066.72598 | T159: 0 | U159: 1 | V159: 0 | W159: 0 | X159: 0 | Y159: 0
A160: 156 | B160: 119.4059139 | C160: 148.7977558 | D160: 2838.925226 | E160: 516.3400186 | F160: 105.6648419 | G160: 126.5979821 | H160: 0.7237085884 | I160: 0.739582552 | J160: 0.7565756271 | K160: 0.7191293827 | L160: 0.7466382611 | M160: 0.7287545556 | N160: 14354.76585 | O160: 14642.85328 | P160: 12292.58732 | Q160: 13866.24764 | R160: 14827.10038 | S160: 14448.49313 | T160: 0 | U160: 0 | V160: 0 | W160: 0 | X160: 1 | Y160: 0
A161: 157 | B161: 168.5586817 | C161: 167.3940433 | D161: 3096.224268 | E161: 489.3815429 | F161: 169.3253953 | G161: 165.083456 | H161: 0.7380093801 | I161: 0.7585382644 | J161: 0.7859293653 | K161: 0.7521145052 | L161: 0.7394481003 | M161: 0.7487794672 | N161: 14591.62892 | O161: 15003.37124 | P161: 12622.36304 | Q161: 14552.90856 | R161: 14619.63661 | S161: 14810.50589 | T161: 0 | U161: 1 | V161: 0 | W161: 0 | X161: 0 | Y161: 0
A162: 158 | B162: 120.3759473 | C162: 134.1259055 | D162: 2289.876758 | E162: 447.106234 | F162: 110.2942594 | G162: 127.0985774 | H162: 0.7518853363 | I162: 0.7753332448 | J162: 0.8107605585 | K162: 0.7650061939 | L162: 0.7674863811 | M162: 0.7669967359 | N162: 14917.33078 | O162: 15372.53899 | P162: 13925.33441 | Q162: 14853.01764 | R162: 15239.43336 | S162: 15212.83614 | T162: 0 | U162: 1 | V162: 0 | W162: 0 | X162: 0 | Y162: 0
A163: 159 | B163: 150.6370592 | C163: 202.5986908 | D163: 2265.930199 | E163: 500.5980511 | F163: 116.6884201 | G163: 155.7244128 | H163: 0.7664918589 | I163: 0.763638141 | J163: 0.8066098661 | K163: 0.7821089979 | L163: 0.7968096926 | M163: 0.7731225986 | N163: 15179.20012 | O163: 15070.16413 | P163: 13866.26712 | Q163: 15141.58191 | R163: 15819.50543 | S163: 15306.72756 | T163: 0 | U163: 0 | V163: 0 | W163: 0 | X163: 1 | Y163: 0
A164: 160 | B164: 82.47346979 | C164: 120.283672 | D164: 2952.523824 | E164: 462.9362654 | F164: 86.50168971 | G164: 100.7655111 | H164: 0.7511963519 | I164: 0.7622415436 | J164: 0.7801774534 | K164: 0.7466579105 | L164: 0.753146267 | M164: 0.744223518 | N164: 14941.45357 | O164: 15124.5472 | P164: 12651.02524 | Q164: 14470.22194 | R164: 14976.42365 | S164: 14783.70485 | T164: 0 | U164: 1 | V164: 0 | W164: 0 | X164: 0 | Y164: 0
A165: 161 | B165: 109.4178264 | C165: 144.678609 | D165: 3797.512228 | E165: 459.6866749 | F165: 103.7089248 | G165: 120.898077 | H165: 0.7501827895 | I165: 0.780727068 | J165: 0.794036516 | K165: 0.7693591863 | L165: 0.7731475099 | M165: 0.7594001614 | N165: 14894.23796 | O165: 15469.86275 | P165: 12083.21809 | Q165: 14927.49705 | R165: 15359.24127 | S165: 15067.10515 | T165: 0 | U165: 1 | V165: 0 | W165: 0 | X165: 0 | Y165: 0
A166: 162 | B166: 137.1907275 | C166: 162.8362528 | D166: 3471.096315 | E166: 504.0970049 | F166: 126.0459341 | G166: 149.7137738 | H166: 0.7450806293 | I166: 0.7571069243 | J166: 0.7832967262 | K166: 0.7664079726 | L166: 0.7564734119 | M166: 0.7509862866 | N166: 14764.42186 | O166: 14979.30223 | P166: 12194.83821 | Q166: 14824.06245 | R166: 15003.4223 | S166: 14870.01196 | T166: 0 | U166: 0 | V166: 0 | W166: 0 | X166: 1 | Y166: 0
A167: 163 | B167: 140.534217 | C167: 161.871775 | D167: 3597.03415 | E167: 479.7802536 | F167: 140.8439527 | G167: 152.7552262 | H167: 0.763164407 | I167: 0.7750979135 | J167: 0.7898578547 | K167: 0.7752113913 | L167: 0.7665093055 | M167: 0.7678743854 | N167: 15122.75392 | O167: 15340.0865 | P167: 12200.12294 | Q167: 15024.44757 | R167: 15189.34216 | S167: 15204.73248 | T167: 0 | U167: 1 | V167: 0 | W167: 0 | X167: 0 | Y167: 0
A168: 164 | B168: 138.8145605 | C168: 178.5558423 | D168: 2463.387432 | E168: 519.8918538 | F168: 121.1209195 | G168: 146.2540879 | H168: 0.7464588983 | I168: 0.7485264616 | J168: 0.7724943695 | K168: 0.7449356397 | L168: 0.7630667043 | M168: 0.7540034966 | N168: 14790.36341 | O168: 14791.97339 | P168: 12986.49996 | Q168: 14378.82094 | R168: 15140.21317 | S168: 14933.81584 | T168: 0 | U168: 0 | V168: 0 | W168: 0 | X168: 1 | Y168: 0
A169: 165 | B169: 113.0674099 | C169: 142.5657883 | D169: 2378.755923 | E169: 487.0142831 | F169: 98.23674612 | G169: 124.58977 | H169: 0.7441046867 | I169: 0.7634861123 | J169: 0.7920707954 | K169: 0.7446622194 | L169: 0.7739081204 | M169: 0.7453293069 | N169: 14769.02632 | O169: 15127.15646 | P169: 13462.65999 | Q169: 14406.23011 | R169: 15379.92566 | S169: 14781.99637 | T169: 0 | U169: 0 | V169: 0 | W169: 0 | X169: 1 | Y169: 0
A170: 166 | B170: 160.321558 | C170: 177.5563034 | D170: 3218.201711 | E170: 504.586791 | F170: 107.1065335 | G170: 177.0108019 | H170: 0.7557943825 | I170: 0.7681075365 | J170: 0.7981177315 | K170: 0.7772577374 | L170: 0.7847717614 | M170: 0.7538096065 | N170: 14955.56609 | O170: 15184.59443 | P170: 12744.15292 | Q170: 15040.56796 | R170: 15588.32869 | S170: 14899.18133 | T170: 0 | U170: 0 | V170: 0 | W170: 0 | X170: 1 | Y170: 0
A171: 167 | B171: 128.6298788 | C171: 158.8350073 | D171: 2763.108859 | E171: 467.8304537 | F171: 90.19493221 | G171: 126.2927752 | H171: 0.7457669706 | I171: 0.7544640938 | J171: 0.778572307 | K171: 0.7614515887 | L171: 0.77834587 | M171: 0.7567357509 | N171: 14786.70953 | O171: 14930.44687 | P171: 12808.33728 | Q171: 14761.20132 | R171: 15476.72247 | S171: 15008.42224 | T171: 0 | U171: 0 | V171: 0 | W171: 0 | X171: 1 | Y171: 0
A172: 168 | B172: 176.0823748 | C172: 181.7613349 | D172: 2560.390855 | E172: 523.9055504 | F172: 183.5721207 | G172: 189.7544856 | H172: 0.7587944553 | I172: 0.7828694961 | J172: 0.7930368236 | K172: 0.7653114011 | L172: 0.756070225 | M172: 0.7609232298 | N172: 14999.80673 | O172: 15475.62859 | P172: 13300.34562 | Q172: 14782.32247 | R172: 14937.83238 | S172: 15028.71011 | T172: 0 | U172: 1 | V172: 0 | W172: 0 | X172: 0 | Y172: 0
A173: 169 | B173: 150.9892877 | C173: 152.2648662 | D173: 2721.541407 | E173: 483.3750282 | F173: 110.6051148 | G173: 117.7870436 | H173: 0.7416823977 | I173: 0.7668365338 | J173: 0.7978820372 | K173: 0.7599977137 | L173: 0.7747085347 | M173: 0.77427922 | N173: 14682.65867 | O173: 15184.46581 | P173: 13236.09934 | Q173: 14716.57925 | R173: 15383.56558 | S173: 15367.79736 | T173: 0 | U173: 0 | V173: 0 | W173: 0 | X173: 1 | Y173: 0
A174: 170 | B174: 103.3561402 | C174: 146.6673311 | D174: 3525.85781 | E174: 471.5597834 | F174: 95.92035682 | G174: 129.3489671 | H174: 0.7346256468 | I174: 0.7402394575 | J174: 0.7465904384 | K174: 0.7310870588 | L174: 0.766420057 | M174: 0.717496478 | N174: 14589.1568 | O174: 14658.12182 | P174: 11405.95096 | Q174: 14150.18139 | R174: 15232.48078 | S174: 14220.58059 | T174: 0 | U174: 0 | V174: 0 | W174: 0 | X174: 1 | Y174: 0
A175: 171 | B175: 97.4721268 | C175: 133.7083064 | D175: 2714.863676 | E175: 467.2161813 | F175: 98.14013346 | G175: 101.1063858 | H175: 0.7437645584 | I175: 0.7621210649 | J175: 0.7813016724 | K175: 0.760321869 | L175: 0.750887853 | M175: 0.7591989458 | N175: 14777.81904 | O175: 15108.71299 | P175: 12911.16977 | Q175: 14739.2212 | R175: 14919.61693 | S175: 15082.87253 | T175: 0 | U175: 1 | V175: 0 | W175: 0 | X175: 0 | Y175: 0
A176: 172 | B176: 176.8496209 | C176: 218.3675374 | D176: 2517.128125 | E176: 552.9721127 | F176: 175.0946859 | G176: 218.9278683 | H176: 0.7248508599 | I176: 0.7296819045 | J176: 0.7435698433 | K176: 0.715233169 | L176: 0.7271989075 | M176: 0.7027723404 | N176: 14320.16758 | O176: 14375.27055 | P176: 12354.26874 | Q176: 13751.69127 | R176: 14368.88347 | S176: 13836.51894 | T176: 0 | U176: 1 | V176: 0 | W176: 0 | X176: 0 | Y176: 0
A177: 173 | B177: 98.81837523 | C177: 144.9198276 | D177: 2516.45726 | E177: 463.1420653 | F177: 101.9906301 | G177: 111.3655948 | H177: 0.745653785 | I177: 0.7468691007 | J177: 0.7628148049 | K177: 0.7497682399 | L177: 0.7462366582 | M177: 0.7479255283 | N177: 14814.25733 | O177: 14792.46219 | P177: 12739.83884 | Q177: 14532.22273 | R177: 14822.74253 | S177: 14847.14497 | T177: 0 | U177: 0 | V177: 0 | W177: 0 | X177: 0 | Y177: 1
A178: 174 | B178: 85.66815564 | C178: 121.2910324 | D178: 2894.855531 | E178: 468.9096428 | F178: 84.92245772 | G178: 98.1154165 | H178: 0.7534097481 | I178: 0.7791983202 | J178: 0.7820126966 | K178: 0.7310632147 | L178: 0.7668385091 | M178: 0.7529741458 | N178: 14982.52681 | O178: 15462.67537 | P178: 12745.3984 | Q178: 14152.35465 | R178: 15251.84772 | S178: 14961.3675 | T178: 0 | U178: 1 | V178: 0 | W178: 0 | X178: 0 | Y178: 0
A179: 175 | B179: 136.528124 | C179: 155.8391485 | D179: 3345.00226 | E179: 498.8756277 | F179: 120.5035514 | G179: 151.3066031 | H179: 0.7594268178 | I179: 0.772241268 | J179: 0.7857423021 | K179: 0.7599615604 | L179: 0.7725637737 | M179: 0.7604440842 | N179: 15052.00823 | O179: 15288.98621 | P179: 12369.84378 | Q179: 14700.35558 | R179: 15330.77192 | S179: 15057.57508 | T179: 0 | U179: 0 | V179: 0 | W179: 0 | X179: 1 | Y179: 0
A180: 176 | B180: 122.6374403 | C180: 137.9690642 | D180: 3717.215312 | E180: 464.9884656 | F180: 87.061877 | G180: 119.3166598 | H180: 0.7587479898 | I180: 0.7771953271 | J180: 0.7837657193 | K180: 0.7650269956 | L180: 0.7875524902 | M180: 0.7715369462 | N180: 15052.32235 | O180: 15405.93748 | P180: 11958.09908 | Q180: 14835.55145 | R180: 15663.98793 | S180: 15311.42226 | T180: 0 | U180: 0 | V180: 0 | W180: 0 | X180: 1 | Y180: 0
A181: 177 | B181: 98.09657915 | C181: 126.9974373 | D181: 2984.8987 | E181: 466.8980276 | F181: 100.4427985 | G181: 99.51351734 | H181: 0.7464617881 | I181: 0.7672507194 | J181: 0.7863999433 | K181: 0.7698586685 | L181: 0.7510257655 | M181: 0.7677576828 | N181: 14831.13918 | O181: 15218.01695 | P181: 12743.10017 | Q181: 14930.27534 | R181: 14920.07251 | S181: 15255.64014 | T181: 0 | U181: 0 | V181: 0 | W181: 0 | X181: 0 | Y181: 1
A182: 178 | B182: 162.0201585 | C182: 204.2368674 | D182: 2204.912102 | E182: 510.0851346 | F182: 117.499495 | G182: 179.7960119 | H182: 0.7404247011 | I182: 0.7435490978 | J182: 0.7831946272 | K182: 0.7396352591 | L182: 0.7748133879 | M182: 0.7357910035 | N182: 14646.47386 | O182: 14666.74509 | P182: 13458.98044 | Q182: 14282.62005 | R182: 15378.76826 | S182: 14536.02406 | T182: 0 | U182: 0 | V182: 0 | W182: 0 | X182: 1 | Y182: 0
A183: 179 | B183: 134.6451136 | C183: 150.1124717 | D183: 2639.652877 | E183: 511.1740223 | F183: 93.70310095 | G183: 127.2468011 | H183: 0.7271744421 | I183: 0.7713328425 | J183: 0.7968121529 | K183: 0.7434876664 | L183: 0.7943251921 | M183: 0.7566257023 | N183: 14408.84373 | O183: 15276.54438 | P183: 13296.59018 | Q183: 14358.57931 | R183: 15792.80074 | S183: 15005.26724 | T183: 0 | U183: 0 | V183: 0 | W183: 0 | X183: 1 | Y183: 0
A184: 180 | B184: 127.9038102 | C184: 148.9472847 | D184: 3106.086272 | E184: 470.0487335 | F184: 117.7090742 | G184: 134.2634291 | H184: 0.7484525126 | I184: 0.7601973401 | J184: 0.7845255611 | K184: 0.7564645713 | L184: 0.7588937293 | M184: 0.7560955397 | N184: 14841.14644 | O184: 15054.99952 | P184: 12584.42495 | Q184: 14659.24269 | R184: 15060.16551 | S184: 14987.64736 | T184: 0 | U184: 0 | V184: 0 | W184: 0 | X184: 1 | Y184: 0
A185: 181 | B185: 119.5133753 | C185: 147.1466846 | D185: 2699.679643 | E185: 449.3275279 | F185: 101.3882093 | G185: 128.4244341 | H185: 0.7462314659 | I185: 0.758969199 | J185: 0.7801116149 | K185: 0.7513822444 | L185: 0.7737640811 | M185: 0.7547095977 | N185: 14805.11594 | O185: 15032.2373 | P185: 12902.55265 | Q185: 14578.31736 | R185: 15373.89341 | S185: 14965.76752 | T185: 0 | U185: 0 | V185: 0 | W185: 0 | X185: 1 | Y185: 0
A186: 182 | B186: 97.44810637 | C186: 129.8528946 | D186: 2736.178168 | E186: 449.4590122 | F186: 87.12643046 | G186: 95.79054025 | H186: 0.7249649689 | I186: 0.7463980607 | J186: 0.7985661135 | K186: 0.7425574393 | L186: 0.7548121329 | M186: 0.7600246126 | N186: 14401.85127 | O186: 14798.10832 | P186: 13235.1441 | Q186: 14401.68977 | R186: 15009.11623 | S186: 15104.70171 | T186: 0 | U186: 0 | V186: 0 | W186: 0 | X186: 0 | Y186: 1
A187: 183 | B187: 152.2713382 | C187: 169.0569765 | D187: 3687.836915 | E187: 530.8273895 | F187: 144.6201401 | G187: 156.4167405 | H187: 0.7424846617 | I187: 0.7599395503 | J187: 0.7657102945 | K187: 0.7402928876 | L187: 0.7514549102 | M187: 0.7525298341 | N187: 14697.4219 | O187: 15029.73403 | P187: 11626.36897 | Q187: 14275.03036 | R187: 14884.47806 | S187: 14894.17994 | T187: 0 | U187: 1 | V187: 0 | W187: 0 | X187: 0 | Y187: 0
A188: 184 | B188: 163.1071795 | C188: 181.9581167 | D188: 3465.556112 | E188: 531.5676723 | F188: 115.206092 | G188: 186.1232714 | H188: 0.7524422965 | I188: 0.7643169569 | J188: 0.7744227992 | K188: 0.7474587232 | L188: 0.7845349731 | M188: 0.7472514882 | N188: 14885.73875 | O188: 15104.38102 | P188: 12022.89987 | Q188: 14417.60679 | R188: 15575.49337 | S188: 14758.90649 | T188: 0 | U188: 0 | V188: 0 | W188: 0 | X188: 1 | Y188: 0
A189: 185 | B189: 137.7678313 | C189: 173.003276 | D189: 3067.645174 | E189: 487.5578712 | F189: 119.8545769 | G189: 168.8687774 | H189: 0.7409390179 | I189: 0.7504978785 | J189: 0.7763381117 | K189: 0.7422160362 | L189: 0.7659511108 | M189: 0.7232055568 | N189: 14681.01253 | O189: 14836.95429 | P189: 12459.11706 | Q189: 14356.76285 | R189: 15199.16764 | S189: 14295.24236 | T189: 0 | U189: 0 | V189: 0 | W189: 0 | X189: 1 | Y189: 0
A190: 186 | B190: 113.1341387 | C190: 157.668169 | D190: 2005.158403 | E190: 491.301607 | F190: 80.90630325 | G190: 121.1593963 | H190: 0.7559565696 | I190: 0.7512567113 | J190: 0.7832041422 | K190: 0.7555645296 | L190: 0.7896362466 | M190: 0.7588370307 | N190: 15005.99725 | O190: 14867.46606 | P190: 13658.92444 | Q190: 14619.98899 | R190: 15711.81863 | S190: 15055.58122 | T190: 0 | U190: 0 | V190: 0 | W190: 0 | X190: 1 | Y190: 0
A191: 187 | B191: 123.1091546 | C191: 151.0857057 | D191: 2982.086911 | E191: 497.5406576 | F191: 95.47660363 | G191: 130.6988976 | H191: 0.7466984042 | I191: 0.7634656556 | J191: 0.8016088672 | K191: 0.7607111278 | L191: 0.78888247 | M191: 0.7580413331 | N191: 14810.85893 | O191: 15118.22741 | P191: 13050.09043 | Q191: 14716.6819 | R191: 15682.1728 | S191: 15030.12776 | T191: 0 | U191: 0 | V191: 0 | W191: 0 | X191: 1 | Y191: 0
A192: 188 | B192: 139.7100583 | C192: 166.3519319 | D192: 2965.285141 | E192: 520.6417853 | F192: 126.084406 | G192: 154.4123445 | H192: 0.7599310632 | I192: 0.7660857645 | J192: 0.7761859492 | K192: 0.7476010465 | L192: 0.770711546 | M192: 0.7608990997 | N192: 15058.91121 | O192: 15155.36336 | P192: 12558.43384 | Q192: 14431.37914 | R192: 15288.14651 | S192: 15063.56965 | T192: 0 | U192: 0 | V192: 0 | W192: 0 | X192: 1 | Y192: 0
A193: 189 | B193: 144.104639 | C193: 173.5606481 | D193: 2777.410419 | E193: 481.5743555 | F193: 139.7668438 | G193: 141.5974965 | H193: 0.7352670323 | I193: 0.7445912211 | J193: 0.7620688055 | K193: 0.757399762 | L193: 0.7437989795 | M193: 0.7509774855 | N193: 14561.23601 | O193: 14718.26377 | P193: 12463.96569 | Q193: 14666.42088 | R193: 14736.21275 | S193: 14877.95221 | T193: 0 | U193: 0 | V193: 0 | W193: 0 | X193: 0 | Y193: 1
A194: 190 | B194: 113.0040391 | C194: 139.2893594 | D194: 3343.824619 | E194: 482.6278568 | F194: 92.87502919 | G194: 121.1272061 | H194: 0.7586630504 | I194: 0.7740731091 | J194: 0.7836160937 | K194: 0.7619346224 | L194: 0.7779817858 | M194: 0.7661299978 | N194: 15060.25697 | O194: 15342.17282 | P194: 12328.49725 | Q194: 14756.06459 | R194: 15466.76069 | S194: 15201.47275 | T194: 0 | U194: 0 | V194: 0 | W194: 0 | X194: 1 | Y194: 0
A195: 191 | B195: 95.97325336 | C195: 135.7275993 | D195: 3081.529119 | E195: 461.0759208 | F195: 94.07651532 | G195: 104.5951699 | H195: 0.7513549326 | I195: 0.7764671934 | J195: 0.7851639286 | K195: 0.7615991086 | L195: 0.7634410743 | M195: 0.7614463807 | N195: 14931.1254 | O195: 15393.61627 | P195: 12621.74945 | Q195: 14770.90625 | R195: 15174.74497 | S195: 15124.33244 | T195: 0 | U195: 1 | V195: 0 | W195: 0 | X195: 0 | Y195: 0
A196: 192 | B196: 106.7785618 | C196: 134.2019944 | D196: 3296.650848 | E196: 464.6237769 | F196: 104.8153898 | G196: 112.1928437 | H196: 0.7625310083 | I196: 0.7739136769 | J196: 0.8037707859 | K196: 0.7721489855 | L196: 0.7667194514 | M196: 0.7719501812 | N196: =H196*VQALY-B196 -> 15143.8416 | O196: =I196*VQALY-C196 -> 15344.07154 | P196: =J196*VQALY-D196 -> 12778.76487 | Q196: =K196*VQALY-E196 -> 14978.35593 | R196: =L196*VQALY-F196 -> 15229.57364 | S196: =M196*VQALY-G196 -> 15326.81078 | T196: 0 | U196: 1 | V196: 0 | W196: 0 | X196: 0 | Y196: 0
A197: 193 | B197: 97.67280494 | C197: 114.9888795 | D197: 2488.087765 | E197: 434.2502975 | F197: 82.43989024 | G197: 109.3042693 | H197: 0.7526527921 | I197: 0.7849255386 | J197: 0.7846619143 | K197: 0.7758445346 | L197: 0.7793355818 | M197: 0.7619603116 | N197: 14955.38304 | O197: 15583.52189 | P197: 13205.15052 | Q197: 15082.64039 | R197: 15504.27175 | S197: 15129.90196 | T197: =IF(MAX($N197:$S197)=N197,1,0) -> 0 | U197: =IF(MAX($N197:$S197)=O197,1,0) -> 1 | V197: =IF(MAX($N197:$S197)=P197,1,0) -> 0 | W197: =IF(MAX($N197:$S197)=Q197,1,0) -> 0 | X197: =IF(MAX($N197:$S197)=R197,1,0) -> 0 | Y197: =IF(MAX($N197:$S197)=S197,1,0) -> 0
A198: 194 | B198: 154.3371042 | C198: 158.9571525 | D198: 3704.934552 | E198: 487.0367046 | F198: 125.5345023 | G198: 137.3273634 | H198: 0.7524150704 | I198: 0.7644949441 | J198: 0.7681203974 | K198: 0.7642940535 | L198: 0.7666536939 | M198: 0.764200893 | N198: 14893.9643 | O198: 15130.94173 | P198: 11657.4734 | Q198: 14798.84437 | R198: 15207.53937 | S198: 15146.6905 | T198: 0 | U198: 0 | V198: 0 | W198: 0 | X198: 1 | Y198: 0
A199: 195 | B199: 158.3439157 | C199: 160.6203139 | D199: 2413.312979 | E199: 496.7204192 | F199: 147.5604959 | G199: 163.9610481 | H199: 0.7449445211 | I199: 0.767975358 | J199: 0.7747712455 | K199: 0.7612244268 | L199: 0.7521909614 | M199: 0.747180535 | N199: 14740.54651 | O199: 15198.88685 | P199: 13082.11193 | Q199: 14727.76812 | R199: 14896.25873 | S199: 14779.64965 | T199: 0 | U199: 1 | V199: 0 | W199: 0 | X199: 0 | Y199: 0
A200: 196 | B200: 105.8473303 | C200: 130.4275447 | D200: 2721.783786 | E200: 475.4848573 | F200: 106.4954761 | G200: 119.246082 | H200: 0.7586185759 | I200: 0.7743689128 | J200: 0.7798077102 | K200: 0.7814871238 | L200: 0.7604145601 | M200: 0.7564407752 | N200: 15066.52419 | O200: 15356.95071 | P200: 12874.37042 | Q200: 15154.25762 | R200: 15101.79573 | S200: 15009.56942 | T200: 0 | U200: 1 | V200: 0 | W200: 0 | X200: 0 | Y200: 0
... 804 more rows

Sheet CEAC

Sheet CODA Dryness
A1: Median | B1: =AVERAGE(B5:B270004) -> 0 | C1: =MEDIAN(C5:C270004) -> -0.2565460279 | D1: =MEDIAN(D5:D270004) -> -0.6718012587 | E1: -0.276376264 | F1: -0.2058751408 | G1: -0.1819091808 | I1: =ROUNDDOWN(1+RAND()*270000, 0) -> 121555
A2: PSA | B2: =VLOOKUP($I$1, $A$4:$G$270004,2) -> 0 | C2: =VLOOKUP($I$1, $A$4:$G$270004,3) -> -0.0430574876 | D2: =VLOOKUP($I$1, $A$4:$G$270004,4) -> -0.7511848746 | E2: =VLOOKUP($I$1, $A$4:$G$270004,5) -> -0.4026049177 | F2: =VLOOKUP($I$1, $A$4:$G$270004,6) -> -0.4180986498 | G2: =VLOOKUP($I$1, $A$4:$G$270004,7) -> -0.1518617858
B4: LOCAL_TX | C4: DHEA | D4: LASER | E4: SERM | F4: Estriol | G4: Estradiol
A5: 1 | B5: 0 | C5: -0.06818402686 | D5: -0.1752474563 | E5: 0.02060028046 | F5: -0.07410298068 | G5: -0.1547632337
A6: 2 | B6: 0 | C6: -0.3975563983 | D6: -0.7233890033 | E6: -0.3171862901 | F6: -0.2495825528 | G6: -0.3507850573
A7: 3 | B7: 0 | C7: -0.3005900078 | D7: -0.7269287698 | E7: -0.205306457 | F7: -0.3610561831 | G7: -0.3090622358
A8: 4 | B8: 0 | C8: -0.1847061766 | D8: -0.5636352791 | E8: -0.1818047286 | F8: -0.05245817896 | G8: -0.2049002543
A9: 5 | B9: 0 | C9: -0.1688062418 | D9: -0.5786647794 | E9: 0.06325156534 | F9: -0.2994874576 | G9: -0.09040911817
A10: 6 | B10: 0 | C10: -0.5093782024 | D10: -0.9965893424 | E10: -0.6007738128 | F10: -0.660079409 | G10: -0.5502305895
A11: 7 | B11: 0 | C11: -0.2969341834 | D11: -0.7936620727 | E11: -0.1551114075 | F11: -0.4172862444 | G11: -0.1762339486
A12: 8 | B12: 0 | C12: -0.2914214322 | D12: -0.8793708451 | E12: -0.4526258804 | F12: -0.3042458322 | G12: -0.361114212
A13: 9 | B13: 0 | C13: -0.2023469801 | D13: -0.6489378488 | E13: -0.4346369031 | F13: -0.2767401056 | G13: -0.2247461583
A14: 10 | B14: 0 | C14: -0.458893008 | D14: -0.7134660513 | E14: -0.5224927471 | F14: 0.09568975344 | G14: -0.2032174145
A15: 11 | B15: 0 | C15: -0.2591863455 | D15: -1.140704262 | E15: -0.3923047775 | F15: -0.3246430113 | G15: -0.2864019273
A16: 12 | B16: 0 | C16: -0.07630808112 | D16: -0.7368517218 | E16: -0.08524454081 | F16: -0.1249363488 | G16: 0.007717851551
A17: 13 | B17: 0 | C17: -0.2017666905 | D17: -0.4732261609 | E17: -0.1180889316 | F17: -0.2264289981 | G17: -0.3478255804
A18: 14 | B18: 0 | C18: -0.1065991977 | D18: -0.4869209952 | E18: -0.004816403599 | F18: -0.06528257891 | G18: 0.04653922514
A19: 15 | B19: 0 | C19: -0.3197569729 | D19: -0.6101338839 | E19: -0.3109365712 | F19: -0.1564634822 | G19: -0.2228486114
A20: 16 | B20: 0 | C20: -0.1963119684 | D20: -0.1914375358 | E20: -0.3102808439 | F20: -0.1906251304 | G20: -0.1606821876
A21: 17 | B21: 0 | C21: -0.5342726258 | D21: -0.6924595681 | E21: -0.4993391925 | F21: -0.3208421145 | G21: -0.4406138859
A22: 18 | B22: 0 | C22: -0.3695864401 | D22: -1.029375704 | E22: -0.4554692994 | F22: -0.344169756 | G22: -0.3460266827
A23: 19 | B23: 0 | C23: -0.1877294854 | D23: -0.5932358511 | E23: -0.2624707846 | F23: -0.1086940432 | G23: -0.1279016286
A24: 20 | B24: 0 | C24: -0.2141616762 | D24: -0.5309997925 | E24: -0.01726941821 | F24: -0.2995222749 | G24: -0.09148845681
A25: 21 | B25: 0 | C25: -0.3921597051 | D25: -0.7456721235 | E25: -0.4775783328 | F25: -0.3872272436 | G25: -0.328559966
A26: 22 | B26: 0 | C26: -0.3798575658 | D26: -0.9174378423 | E26: -0.4647539329 | F26: -0.1228995323 | G26: -0.2958896621
A27: 23 | B27: 0 | C27: -0.5307908882 | D27: -0.8170477431 | E27: -0.1269673624 | F27: -0.3802057396 | G27: -0.2849221888
A28: 24 | B28: 0 | C28: 0.06371579701 | D28: -0.3629131098 | E28: -0.02651923428 | F28: -0.00121860814 | G28: 0.1853444951
A29: 25 | B29: 0 | C29: -0.3541391312 | D29: -0.7082318392 | E29: -0.32744581 | F29: -0.1656030433 | G29: -0.1744234451
A30: 26 | B30: 0 | C30: -0.5288585239 | D30: -0.7196577412 | E30: -0.4368245949 | F30: -0.310611609 | G30: -0.228442603
A31: 27 | B31: 0 | C31: -0.2293304461 | D31: -0.7140463409 | E31: -0.1818047286 | F31: -0.2921177798 | G31: -0.1689222997
A32: 28 | B32: 0 | C32: -0.4945808178 | D32: -0.8222703495 | E32: -0.5692060591 | F32: -0.1451263645 | G32: -0.2625230107
A33: 29 | B33: 0 | C33: -0.06917051916 | D33: -0.6397692733 | E33: 0.01943970128 | F33: -0.116115947 | G33: -0.05187788937
A34: 30 | B34: 0 | C34: 0.06748767935 | D34: -0.3929140816 | E34: -0.2235855791 | F34: -0.1240078854 | G34: 0.1168122945
A35: 31 | B35: 0 | C35: -0.3681299132 | D35: -0.6907128964 | E35: -0.3424811133 | F35: -0.2838718647 | G35: -0.4186151075
A36: 32 | B36: 0 | C36: -0.3669751369 | D36: -0.4145588833 | E36: -0.6026887685 | F36: -0.08188466409 | G36: -0.2268932298
A37: 33 | B37: 0 | C37: -0.7207196712 | D37: -0.8060222409 | E37: -0.539669319 | F37: -0.3128921471 | G37: -0.5057223779
A38: 34 | B38: 0 | C38: -0.14159066 | D38: -0.5324156991 | E38: -0.1349753587 | F38: -0.07352269109 | G38: 0.004932461518
A39: 35 | B39: 0 | C39: -0.3812502608 | D39: -0.5326478149 | E39: -0.3203778828 | F39: -0.4989910187 | G39: -0.2892743608
A40: 36 | B40: 0 | C40: -0.3571624399 | D40: -0.7645257323 | E40: -0.6420846288 | F40: -0.3468332852 | G40: -0.3210103985
A41: 37 | B41: 0 | C41: -0.5298334104 | D41: -0.6869178025 | E41: -0.4129630869 | F41: -0.2977175743 | G41: -0.2918566494
A42: 38 | B42: 0 | C42: 0.02669332115 | D42: -0.4059705974 | E42: -0.1405461388 | F42: 0.04439215366 | G42: 0.07891938428
A43: 39 | B43: 0 | C43: -0.1384570962 | D43: -0.7499082375 | E43: -0.3022728476 | F43: -0.2743609183 | G43: -0.104742271
A44: 40 | B44: 0 | C44: -0.03847319984 | D44: -0.2890422449 | E44: 0.03127760892 | F44: -0.1872594508 | G44: -0.1050904448
A45: 41 | B45: 0 | C45: -0.2269512588 | D45: -0.5125697951 | E45: -0.1570843921 | F45: -0.06470228932 | G45: -0.2593894469
A46: 42 | B46: 0 | C46: -0.2780167427 | D46: -0.4326058896 | E46: -0.3884458517 | F46: 0.03626809939 | G46: -0.1976466345
A47: 43 | B47: 0 | C47: -0.3068629382 | D47: -0.383751309 | E47: -0.4836771764 | F47: -0.1623128013 | G47: -0.1277855707
A48: 44 | B48: 0 | C48: -0.213836714 | D48: -0.5704246673 | E48: -0.196834229 | F48: -0.3012863553 | G48: -0.2170863357
A49: 45 | B49: 0 | C49: -0.09418100051 | D49: -0.01589993477 | E49: -0.3221187516 | F49: 0.1839227856 | G49: -0.1505271197
A50: 46 | B50: 0 | C50: -0.434422196 | D50: -0.8713802575 | E50: -0.4929734156 | F50: -0.1981282748 | G50: 0.0448970056
A51: 47 | B51: 0 | C51: 0.1344530981 | D51: -0.4400916253 | E51: -0.1479158166 | F51: -0.3185209561 | G51: -0.06423805765
A52: 48 | B52: 0 | C52: -0.644469619 | D52: -0.8424063982 | E52: -0.2411683537 | F52: -0.2612463736 | G52: -0.3666849921
A53: 49 | B53: 0 | C53: -0.4686732088 | D53: -0.4534696215 | E53: -0.390392143 | F53: -0.4863140123 | G53: -0.3544722174
A54: 50 | B54: 0 | C54: -0.2532848004 | D54: -0.5942629636 | E54: -0.5534686054 | F54: -0.1106496191 | G54: -0.3837919292
A55: 51 | B55: 0 | C55: -0.2158096986 | D55: -0.7456721235 | E55: -0.287591521 | F55: -0.1454786003 | G55: -0.2178407122
A56: 52 | B56: 0 | C56: -0.05506948212 | D56: -0.5938683667 | E56: -0.3669751369 | F56: -0.0825752087 | G56: -0.04694542786
A57: 53 | B57: 0 | C57: -0.1537187125 | D57: -0.4911571092 | E57: -0.3343628619 | F57: -0.04619105139 | G57: -0.07822303677
A58: 54 | B58: 0 | C58: -0.2911893164 | D58: -0.5290500195 | E58: -0.01050324158 | F58: 0.1233115379 | G58: -0.06986686667
A59: 55 | B59: 0 | C59: -0.4576743999 | D59: -0.3706889903 | E59: -0.583481183 | F59: -0.2885780133 | G59: -0.3716174536
A60: 56 | B60: 0 | C60: -0.1836906698 | D60: -0.7155841083 | E60: -0.3779716246 | F60: -0.04180986498 | G60: -0.08213999151
A61: 57 | B61: 0 | C61: -0.1110674276 | D61: -0.5263226584 | E61: -0.1829072789 | F61: -0.1372965171 | G61: -0.1583030002
A62: 58 | B62: 0 | C62: -0.1107772828 | D62: -0.5952610617 | E62: -0.07311648838 | F62: -0.2456365836 | G62: 0.0192656144
A63: 59 | B63: 0 | C63: -0.4400277934 | D63: -0.9021704231 | E63: -0.3229253541 | F63: -0.3170064003 | G63: -0.3159038501
A64: 60 | B64: 0 | C64: 0.07688837071 | D64: -0.3118476258 | E64: 0.100564186 | F64: -0.150120917 | G64: 0.2232548141
A65: 61 | B65: 0 | C65: -0.503267753 | D65: -0.9782347826 | E65: -0.6060370394 | F65: -0.4322403071 | G65: -0.2477082174
A66: 62 | B66: 0 | C66: -0.3141281639 | D66: -0.8724247787 | E66: -0.2671827361 | F66: -0.5806551727 | G66: -0.3266043901
A67: 63 | B67: 0 | C67: -0.2992901591 | D67: -0.394341594 | E67: -0.1667520167 | F67: -0.2289590607 | G67: -0.05701925514
A68: 64 | B68: 0 | C68: -0.3645379206 | D68: -0.9917149098 | E68: -0.4642316722 | F68: -0.09058320505 | G68: -0.1379348356
A69: 65 | B69: 0 | C69: -0.2996615444 | D69: -0.9480771326 | E69: -0.2108192082 | F69: -0.4174603313 | G69: -0.1760598617
A70: 66 | B70: 0 | C70: -0.180226341 | D70: -0.906748908 | E70: -0.5486522018 | F70: -0.02981643973 | G70: -0.302029126
A71: 67 | B71: 0 | C71: -0.4054135194 | D71: -0.4325130432 | E71: -0.1692356561 | F71: -0.2267423545 | G71: -0.2853516031
A72: 68 | B72: 0 | C72: -0.3066830485 | D72: -0.6294981476 | E72: -0.9665303416 | F72: -0.09180181319 | G72: -0.46603057
A73: 69 | B73: 0 | C73: -0.4680035546 | D73: -0.9705923687 | E73: -0.5493021262 | F73: -0.3134144077 | G73: -0.7275090594
A74: 70 | B74: 0 | C74: -0.5925337007 | D74: -0.8473388598 | E74: -0.4215223584 | F74: -0.4158355204 | G74: -0.4662626858
A75: 71 | B75: 0 | C75: -0.4992695577 | D75: -0.7682918118 | E75: -0.5305471666 | F75: -0.1563184098 | G75: -0.2455669488
A76: 72 | B76: 0 | C76: -0.1803540047 | D76: -0.4498985194 | E76: -0.4304588181 | F76: -0.5007899164 | G76: -0.3055224693
A77: 73 | B77: 0 | C77: -0.634604696 | D77: -0.5798833876 | E77: -0.5712370727 | F77: -0.252135827 | G77: -0.7129437906
A78: 74 | B78: 0 | C78: -0.1624056476 | D78: -0.8353674855 | E78: -0.3239002406 | F78: -0.1862555498 | G78: -0.1144737275
A79: 75 | B79: 0 | C79: -0.08588285936 | D79: -0.5946807721 | E79: -0.1625971432 | F79: -0.01607402165 | G79: -0.01961378815
A80: 76 | B80: 0 | C80: -0.3340727171 | D80: -0.4794932885 | E80: -0.2444760044 | F80: -0.5052581463 | G80: -0.2556755935
A81: 77 | B81: 0 | C81: -0.1480318745 | D81: -0.7233890033 | E81: -0.2911893164 | F81: -0.369644469 | G81: -0.04816403599
A82: 78 | B82: 0 | C82: -0.3110526291 | D82: -1.045873337 | E82: -0.4275167499 | F82: -0.2622502745 | G82: -0.4405152367
A83: 79 | B83: 0 | C83: -0.564029876 | D83: -0.3069615875 | E83: -0.3989955165 | F83: 0.2880093295 | G83: -0.1569567284
A84: 80 | B84: 0 | C84: -0.2358064779 | D84: -0.6321442681 | E84: -0.2686508687 | F84: -0.1068661309 | G84: -0.3285367544
A85: 81 | B85: 0 | C85: -0.1548212627 | D85: -0.2143589747 | E85: -0.218188886 | F85: -0.1410683994 | G85: -0.1617267088
A86: 82 | B86: 0 | C86: -0.5741965496 | D86: -1.062046008 | E86: -0.4010961648 | F86: -0.08037010826 | G86: -0.1112299087
A87: 83 | B87: 0 | C87: -0.1597711329 | D87: -0.6847010963 | E87: -0.2215139453 | F87: -0.06071569983 | G87: -0.2002753463
A88: 84 | B88: 0 | C88: -0.2009212086 | D88: -0.6738572247 | E88: -0.3615453672 | F88: -0.4160925887 | G88: -0.4384337379
A89: 85 | B89: 0 | C89: 0.004236114009 | D89: -0.4577904578 | E89: -0.2116896425 | F89: -0.06986686667 | G89: -0.1576066527
A90: 86 | B90: 0 | C90: -0.3380186863 | D90: -0.6661144207 | E90: -0.6707567374 | F90: -0.1854605531 | G90: -0.05692640881
A91: 87 | B91: 0 | C91: -0.6159193711 | D91: -1.040169091 | E91: -0.8715369357 | F91: -0.2234695212 | G91: -0.4970180341
A92: 88 | B92: 0 | C92: 0.1238337986 | D92: -0.3793353052 | E92: 0.06435411556 | F92: -0.09185984214 | G92: -0.05448919253
A93: 89 | B93: 0 | C93: -0.3207260566 | D93: -0.2456365836 | E93: -0.3325639642 | F93: -0.07404495172 | G93: -0.1225571615
A94: 90 | B94: 0 | C94: -0.1336987216 | D94: -0.7282634358 | E94: -0.1421709496 | F94: -0.08797190189 | G94: -0.2490602922
A95: 91 | B95: 0 | C95: -0.07160773544 | D95: -0.5811600247 | E95: 0.08083433993 | F95: -0.08037010826 | G95: -0.04247719801
A96: 92 | B96: 0 | C96: -0.3340727171 | D96: -0.2324640099 | E96: -0.3431832637 | F96: 0.01502950039 | G96: -0.05002096268
A97: 93 | B97: 0 | C97: -0.1971824028 | D97: -0.467365236 | E97: -0.3268771262 | F97: -0.1482639903 | G97: -0.1239498565
A98: 94 | B98: 0 | C98: -0.2672233563 | D98: -0.6093620988 | E98: -0.3892582572 | F98: -0.1990393295 | G98: -0.3225829832
A99: 95 | B99: 0 | C99: -0.4822264524 | D99: -0.8791445322 | E99: -0.3013501871 | F99: -0.2522576878 | G99: -0.1673613207
A100: 96 | B100: 0 | C100: -0.3776524654 | D100: -0.5259744846 | E100: -0.9765693515 | F100: -0.3063929037 | G100: -0.2726780785
A101: 97 | B101: 0 | C101: -0.1804700626 | D101: -0.6707567374 | E101: -0.1548212627 | F101: -0.2781328006 | G101: -0.07131759065
A102: 98 | B102: 0 | C102: -0.1449969599 | D102: -0.7742049627 | E102: -0.3448486948 | F102: 0.04984107291 | G102: -0.1868358394
A103: 99 | B103: 0 | C103: -0.1602759848 | D103: -0.923414825 | E103: -0.2214965366 | F103: -0.4417164361 | G103: -0.2481898578
A104: 100 | B104: 0 | C104: -0.06766176623 | D104: -0.6058223323 | E104: -0.08083433993 | F104: -0.3677875423 | G104: -0.2253264479
A105: 101 | B105: 0 | C105: -0.1954821543 | D105: -0.7707812541 | E105: -0.2233360546 | F105: -0.3631858459 | G105: -0.2264696184
A106: 102 | B106: 0 | C106: -0.4296754271 | D106: -1.064686326 | E106: -0.4540475899 | F106: -0.3658435722 | G106: -0.1910603476
A107: 103 | B107: 0 | C107: 0.004642316722 | D107: -0.9241111726 | E107: -0.1297527524 | F107: -0.3531062157 | G107: -0.07566976257
A108: 104 | B108: 0 | C108: -0.03719656274 | D108: -0.7385925905 | E108: -0.1296366945 | F108: -0.2400658035 | G108: -0.05228409209
A109: 105 | B109: 0 | C109: 0.1124601226 | D109: -0.5371740737 | E109: -0.1189013371 | F109: -0.4222767349 | G109: 0.1063670819
A110: 106 | B110: 0 | C110: 0.0597698278 | D110: -0.4537284307 | E110: -0.1042200104 | F110: -0.07369677797 | G110: 0.04201296634
A111: 107 | B111: 0 | C111: -0.1295786655 | D111: -0.8726394859 | E111: -0.1434475867 | F111: -0.09510946385 | G111: -0.02884039264
A112: 108 | B112: 0 | C112: -0.3427178715 | D112: -0.8355578205 | E112: -0.4395101751 | F112: -0.213023148 | G112: -0.2779575532
A113: 109 | B113: 0 | C113: -0.01299848682 | D113: -0.3607080093 | E113: 0.06690738976 | F113: -0.2649602269 | G113: 0.1237177407
A114: 110 | B114: 0 | C114: -0.3819466083 | D114: -0.5087979128 | E114: -0.4346369031 | F114: -0.1265031307 | G114: -0.2187111466
A115: 111 | B115: 0 | C115: -0.2174229037 | D115: -0.847269225 | E115: -0.3417209339 | F115: -0.1918901617 | G115: -0.238197271
A116: 112 | B116: 0 | C116: -0.3376124836 | D116: -0.7305845942 | E116: -0.3683678319 | F116: -0.2361198343 | G116: -0.2268352008
A117: 113 | B117: 0 | C117: -0.3151610794 | D117: -0.6961792244 | E117: -0.3699984457 | F117: -0.2574802941 | G117: -0.30007355
A118: 114 | B118: 0 | C118: -0.05472130837 | D118: -0.8511687711 | E118: -0.2315935755 | F118: -0.1901028698 | G118: -0.006035011739
A119: 115 | B119: 0 | C119: -0.348463899 | D119: -0.4514653013 | E119: 0.1110093986 | F119: 0.007543764674 | G119: -0.1580128554
A120: 116 | B120: 0 | C120: -0.6014121314 | D120: -1.015274667 | E120: -0.4652181645 | F120: -0.5209259652 | G120: -0.3633773414
A121: 117 | B121: 0 | C121: -0.3534195721 | D121: -0.4861318014 | E121: -0.2411915653 | F121: -0.0586324602 | G121: -0.2566852974
A122: 118 | B122: 0 | C122: -0.1000709398 | D122: -0.8326285186 | E122: -0.2341178352 | F122: -0.2941778078 | G122: -0.248625075
A123: 119 | B123: 0 | C123: -0.3256585181 | D123: -0.5919534111 | E123: 0.1179670708 | F123: -0.02141268588 | G123: 0.07288437254
A124: 120 | B124: 0 | C124: -0.150178946 | D124: -0.9032207473 | E124: -0.1734485585 | F124: -0.2305490542 | G124: -0.1539508283
A125: 121 | B125: 0 | C125: -0.0754956757 | D125: -0.6207938037 | E125: -0.2349012262 | F125: -0.002495245238 | G125: -0.07137561961
A126: 122 | B126: 0 | C126: -0.4804217518 | D126: -0.8831427275 | E126: -0.5059544938 | F126: -0.5947388011 | G126: -0.3400496999
A127: 123 | B127: 0 | C127: -0.1336406926 | D127: -0.6301944951 | E127: -0.4456624053 | F127: -0.2155775828 | G127: -0.1124601226
A128: 124 | B128: 0 | C128: -0.5219124575 | D128: -0.5207518783 | E128: -0.4183887946 | F128: 0.08238371313 | G128: -0.1395016175
A129: 125 | B129: 0 | C129: -0.1732181836 | D129: -0.8011495492 | E129: -0.5728636244 | F129: -0.0580306999 | G129: -0.2614802303
A130: 126 | B130: 0 | C130: -0.2978046177 | D130: -0.5541185298 | E130: -0.09859120139 | F130: 0.07085335898 | G130: 0.02727361074
A131: 127 | B131: 0 | C131: -0.2715755283 | D131: -0.6123215757 | E131: -0.01154776285 | F131: -0.007949967387 | G131: -0.02477836551
A132: 128 | B132: 0 | C132: -0.6618202777 | D132: -0.9299720974 | E132: -0.7910507695 | F132: -0.6377962887 | G132: -0.4998034241
A133: 129 | B133: 0 | C133: -0.01096747326 | D133: -0.4952191364 | E133: 0.2079757892 | F133: -0.2287501565 | G133: -0.1114156013
A134: 130 | B134: 0 | C134: -0.07015701147 | D134: -0.7759632401 | E134: -0.1455946582 | F134: -0.2290403013 | G134: -0.1589413188
A135: 131 | B135: 0 | C135: -0.2190593203 | D135: -0.484367721 | E135: -0.07462524131 | F135: -0.02309552569 | G135: 0.01294045786
A136: 132 | B136: 0 | C136: -0.02930462431 | D136: -0.07770077614 | E136: -0.3671492238 | F136: -0.02460427863 | G136: 0.002147071484
A137: 133 | B137: 0 | C137: -0.2641594273 | D137: -0.7245611882 | E137: -0.3116271158 | F137: -0.04422967257 | G137: -0.1538463762
A138: 134 | B138: 0 | C138: -0.4416584072 | D138: -0.4421806678 | E138: -0.3439376402 | F138: -0.6831749347 | G138: -0.359721517
A139: 135 | B139: 0 | C139: 0.05646217714 | D139: -0.6595571483 | E139: -0.03121957996 | F139: -0.3601277197 | G139: -0.1113575724
A140: 136 | B140: 0 | C140: -0.005512751108 | D140: -0.5267288611 | E140: 0.1153615706 | F140: -0.03313453561 | G140: -0.06110449386
A141: 137 | B141: 0 | C141: -0.1085141534 | D141: -0.7960992889 | E141: -0.2530642903 | F141: -0.2482478867 | G141: -0.0729424015
A142: 138 | B142: 0 | C142: -0.3864960787 | D142: -0.8391799881 | E142: -0.3037467831 | F142: -0.3372294925 | G142: -0.4220678306
A143: 139 | B143: 0 | C143: -0.3975563983 | D143: -0.914942597 | E143: -0.4807699256 | F143: -0.4158935494 | G143: -0.3656404708
A144: 140 | B144: 0 | C144: 0.0907832889 | D144: -0.8284794481 | E144: -0.3958735585 | F144: -0.1804120336 | G144: -0.09586384032
A145: 141 | B145: 0 | C145: -0.2327541547 | D145: -0.5291080484 | E145: 0.01856926689 | F145: -0.06998292459 | G145: -0.07851318157
A146: 142 | B146: 0 | C146: -0.09557369552 | D146: -0.6709888533 | E146: -0.1361939668 | F146: -0.08559271457 | G146: -0.1438537894
A147: 143 | B147: 0 | C147: 0.1056707344 | D147: -0.7929076962 | E147: -0.1282439995 | F147: -0.1179148447 | G147: 0.1080499217
A148: 144 | B148: 0 | C148: -0.2842258413 | D148: -0.6138883576 | E148: -0.424888038 | F148: -0.1820948734 | G148: -0.2613624315
A149: 145 | B149: 0 | C149: -0.2045404748 | D149: -0.6482879245 | E149: -0.2308856222 | F149: -0.1980992603 | G149: -0.2632077524
A150: 146 | B150: 0 | C150: -0.1378768067 | D150: -0.8650376923 | E150: -0.2629292134 | F150: -0.2176666253 | G150: -0.02913053743
A151: 147 | B151: 0 | C151: -0.2804655648 | D151: -0.9677605555 | E151: -0.377954216 | F151: -0.3758071445 | G151: -0.183789319
A152: 148 | B152: 0 | C152: -0.1708662699 | D152: -0.5421355497 | E152: -0.376056669 | F152: -0.2600567799 | G152: -0.2810632631
A153: 149 | B153: 0 | C153: -0.3144009 | D153: -1.052703346 | E153: -0.5964796699 | F153: -0.5403076375 | G153: -0.3452723062
A154: 150 | B154: 0 | C154: -0.001914955648 | D154: -0.6074471431 | E154: -0.06290339159 | F154: 0.07207196712 | G154: -0.0324381881
A155: 151 | B155: 0 | C155: -0.3572262718 | D155: -0.8005675188 | E155: -0.296063749 | F155: -0.2932783589 | G155: -0.3327380511
A156: 152 | B156: 0 | C156: 0.09667624574 | D156: -0.5412941298 | E156: 0.2315355465 | F156: -0.2349012262 | G156: -0.02808601617
A157: 153 | B157: 0 | C157: -0.4190851421 | D157: -0.8755409338 | E157: -0.3621587333 | F157: -0.2877656078 | G157: -0.1209497593
A158: 154 | B158: 0 | C158: -0.5508108791 | D158: -0.7254200168 | E158: -0.6901964387 | F158: -0.3641317179 | G158: -0.3983688037
A159: 155 | B159: 0 | C159: -0.1822689603 | D159: -0.8649796633 | E159: -0.4490861139 | F159: -0.2206261022 | G159: -0.3040717453
A160: 156 | B160: 0 | C160: -0.3943648056 | D160: -0.990090099 | E160: -0.7225185689 | F160: -0.1828492499 | G160: -0.6438893294
A161: 157 | B161: 0 | C161: 0.05036913644 | D161: -0.7664464909 | E161: -0.1027112575 | F161: -0.426396791 | G161: -0.07474129923
A162: 158 | B162: 0 | C162: -0.2700783811 | D162: -0.792861273 | E162: -0.4678410735 | F162: -0.3314730198 | G162: -0.1591270115
A163: 159 | B163: 0 | C163: -0.3076463292 | D163: -1.135545488 | E163: -0.4761624262 | F163: -0.1708140438 | G163: -0.1852632546
A164: 160 | B164: 0 | C164: -0.5309069462 | D164: -0.7760212691 | E164: -0.1842419449 | F164: -0.5238274132 | G164: -0.5702505804
A165: 161 | B165: 0 | C165: -0.2459847573 | D165: -0.5790709822 | E165: -0.5513331397 | F165: -0.4407299438 | G165: -0.1764660644
A166: 162 | B166: 0 | C166: -0.3375834692 | D166: -0.3585319234 | E166: -0.3043328756 | F166: -0.3166930439 | G166: -0.2476966116
A167: 163 | B167: 0 | C167: -0.1075566756 | D167: -0.3450692049 | E167: -0.2465360324 | F167: -0.4485928678 | G167: -0.3807570147
A168: 164 | B168: 0 | C168: -0.07319192602 | D168: -0.6291093535 | E168: -0.407554788 | F168: -0.3015939088 | G168: -0.3241671738
A169: 165 | B169: 0 | C169: -0.1223830746 | D169: -0.7644735063 | E169: -0.3448661035 | F169: -0.2671072984 | G169: -0.09458720322
A170: 166 | B170: 0 | C170: -0.2158677276 | D170: -0.650156457 | E170: -0.3233373597 | F170: -0.01462329768 | G170: -0.2422709039
A171: 167 | B171: 0 | C171: -0.04584287763 | D171: -0.4170541285 | E171: -0.03650021523 | F171: -0.2994294286 | G171: 0.005338664231
A172: 168 | B172: 0 | C172: -0.2286050841 | D172: -1.162639209 | E172: -0.4774912894 | F172: -0.4042587431 | G172: -0.1712144436
A173: 169 | B173: 0 | C173: -0.5246398186 | D173: -1.124078965 | E173: -0.07468327027 | F173: -0.3533383315 | G173: -0.2646120532
A174: 170 | B174: 0 | C174: -0.2597956496 | D174: -0.9420421209 | E174: -0.3258906339 | F174: -0.3792192473 | G174: -0.3121377706
A175: 171 | B175: 0 | C175: -0.5195216644 | D175: -0.7925479166 | E175: -0.1871317871 | F175: -0.1743654161 | G175: -0.153184846
A176: 172 | B176: 0 | C176: -0.4198975475 | D176: -1.031580805 | E176: -0.3932042264 | F176: -0.3278055896 | G176: -0.2323769664
A177: 173 | B177: 0 | C177: -0.7324415209 | D177: -0.9282892576 | E177: -0.5058384359 | F177: -0.226324546 | G177: -0.290318882
A178: 174 | B178: 0 | C178: -0.2844811687 | D178: -0.5894233485 | E178: -0.3638647847 | F178: -0.1680750769 | G178: -0.3038048121
A179: 175 | B179: 0 | C179: -0.07091138793 | D179: -0.6589188298 | E179: -0.1931784046 | F179: -0.239311427 | G179: -0.05089139707
A180: 176 | B180: 0 | C180: -0.2013024589 | D180: -0.3553113161 | E180: -0.2555595356 | F180: -0.154357031 | G180: -0.1758277459
A181: 177 | B181: 0 | C181: -0.2451143229 | D181: -0.4005158752 | E181: -0.4704407709 | F181: -0.1927722019 | G181: -0.0803120793
A182: 178 | B182: 0 | C182: -0.07543764674 | D182: -0.2981527915 | E182: 0.1020729389 | F182: -0.1030014023 | G182: 0.1323060266
A183: 179 | B183: 0 | C183: -0.1829072789 | D183: -0.6948387554 | E183: -0.2386731085 | F183: 0.0881053685 | G183: -0.2133724824
A184: 180 | B184: 0 | C184: -0.4149418744 | D184: -0.6696309756 | E184: 0.06314131032 | F184: -0.1799245904 | G184: -0.2509520362
A185: 181 | B185: 0 | C185: -0.3122248141 | D185: -0.9194978703 | E185: -0.5344757271 | F185: -0.2256456072 | G185: -0.2242529122
A186: 182 | B186: 0 | C186: -0.2494664949 | D186: -0.6751089094 | E186: -0.03034914557 | F186: -0.2380928189 | G186: -0.2270673167
A187: 183 | B187: 0 | C187: -0.1456294756 | D187: -0.9555396568 | E187: -0.5188717401 | F187: -0.1633283081 | G187: -0.1650691769
A188: 184 | B188: 0 | C188: -0.1814565549 | D188: -0.4473452452 | E188: -0.1013185625 | F188: -0.1910313331 | G188: -0.2624069527
A189: 185 | B189: 0 | C189: -0.1422870075 | D189: -0.4626068614 | E189: -0.1013765914 | F189: 0.3291402556 | G189: -0.01305651578
A190: 186 | B190: 0 | C190: -0.3180915418 | D190: -0.4135491794 | E190: -0.1458615914 | F190: -0.4690828932 | G190: -0.2944157265
A191: 187 | B191: 0 | C191: -0.2754634685 | D191: -0.5707148121 | E191: -0.2451723519 | F191: -0.0128824289 | G191: -0.05065928123
A192: 188 | B192: 0 | C192: 0.1100809353 | D192: -0.8769336289 | E192: -0.1281859705 | F192: -0.2319997782 | G192: 0.02367581528
A193: 189 | B193: 0 | C193: -0.2808021327 | D193: -0.6032110291 | E193: -0.2616525763 | F193: -0.2473774523 | G193: -0.1692124445
A194: 190 | B194: 0 | C194: -0.3033986094 | D194: -0.6072962678 | E194: -0.2370715092 | F194: -0.2562790947 | G194: -0.218966474
A195: 191 | B195: 0 | C195: -0.08530256977 | D195: -0.07601793633 | E195: -0.07218802503 | F195: -0.04241916905 | G195: 0.03969180798
A196: 192 | B196: 0 | C196: 0.04183887946 | D196: -0.2314775176 | E196: -0.2158096986 | F196: 0.1281859705 | G196: 0.02901447951
A197: 193 | B197: 0 | C197: -0.4270409124 | D197: -0.9529573681 | E197: -0.3388368947 | F197: -0.2947929148 | G197: -0.2976943627
A198: 194 | B198: 0 | C198: -0.2965279806 | D198: -0.8635869683 | E198: -0.339991671 | F198: -0.3194494195 | G198: -0.2707050939
A199: 195 | B199: 0 | C199: -0.4559944615 | D199: -0.7576870195 | E199: -0.3893772165 | F199: -0.3832261469 | G199: -0.2675744315
A200: 196 | B200: 0 | C200: -0.3083658883 | D200: -0.7781103116 | E200: -0.2831232911 | F200: -0.4383507565 | G200: -0.2006061114
A201: 197 | B201: 0 | C201: -0.2743609183 | D201: -0.7939522174 | E201: -0.03650021523 | F201: -0.1664270545 | G201: -0.1171604683
... 4299 more rows

Sheet CODA Dyspar
A1: Median | B1: =AVERAGE(B5:B270004) -> 0 | C1: =MEDIAN(C5:C270004) -> -0.289296991 | D1: =MEDIAN(D5:D270004) -> -0.6615868135 | E1: -0.1592479644 | F1: -0.3617222032 | G1: -0.1334077795 | I1: =ROUNDDOWN(1+RAND()*270000, 0) -> 65091
A2: PSA | B2: =VLOOKUP($I$1, $A$4:$G$270004,2) -> 0 | C2: =VLOOKUP($I$1, $A$4:$G$270004,3) -> -0.9389699917 | D2: =VLOOKUP($I$1, $A$4:$G$270004,4) -> -1.076954829 | E2: =VLOOKUP($I$1, $A$4:$G$270004,5) -> -0.682520123 | F2: =VLOOKUP($I$1, $A$4:$G$270004,6) -> -0.644826704 | G2: =VLOOKUP($I$1, $A$4:$G$270004,7) -> -0.1478255122
B4: LOCAL_TX | C4: DHEA | D4: LASER | E4: SERM | F4: Estriol | G4: Estradiol
A5: 1 | B5: 0 | C5: 0.1188015796 | D5: -0.5651320466 | E5: 0.1838900371 | F5: -0.2530170752 | G5: 0.06017485108
A6: 2 | B6: 0 | C6: -0.03197209649 | D6: -0.2621038816 | E6: 0.02517381913 | F6: -0.1113302055 | G6: 0.360106771
A7: 3 | B7: 0 | C7: 0.01272152892 | D7: -0.7884655543 | E7: -0.01090416765 | F7: -0.7198096839 | G7: -0.1865824242
A8: 4 | B8: 0 | C8: -0.05566510273 | D8: -0.5005147569 | E8: -0.1609374373 | F8: -0.2452091527 | G8: -0.1336097085
A9: 5 | B9: 0 | C9: -0.1350232117 | D9: -0.6637407232 | E9: 0.07437719289 | F9: -0.3772034289 | G9: 0.06730967682
A10: 6 | B10: 0 | C10: -0.5118900922 | D10: -0.9847405719 | E10: -0.3452313324 | F10: -0.3057878618 | G10: -0.1047338571
A11: 7 | B11: 0 | C11: -0.3038358812 | D11: -0.6761930134 | E11: -0.1356963085 | F11: -0.9434124304 | G11: -0.08023313477
A12: 8 | B12: 0 | C12: -0.2151217271 | D12: -0.9736344753 | E12: 0.2798063266 | F12: -0.5219865438 | G12: -0.1560911406
A13: 9 | B13: 0 | C13: -0.02026021272 | D13: -0.5826998723 | E13: 0.01615432244 | F13: -0.3316347777 | G13: -0.165783734
A14: 10 | B14: 0 | C14: -0.2847872426 | D14: -0.623152988 | E14: -0.2028713659 | F14: -0.4952646021 | G14: -0.03284712229
A15: 11 | B15: 0 | C15: -0.1823419145 | D15: -0.601075414 | E15: -0.3579528613 | F15: -0.2174775658 | G15: -0.05485738661
A16: 12 | B16: 0 | C16: -0.6263838525 | D16: -0.9403834949 | E16: -0.5007839956 | F16: -0.5367946727 | G16: -0.3343944745
A17: 13 | B17: 0 | C17: -0.7351226354 | D17: -0.7203145065 | E17: -0.2836093233 | F17: -0.008703141213 | G17: -0.2344059495
A18: 14 | B18: 0 | C18: -0.6131776939 | D18: -0.7761344215 | E18: -0.1616643818 | F18: -0.2877354065 | G18: -0.3100149095
A19: 15 | B19: 0 | C19: -0.3401629138 | D19: -0.639825595 | E19: -0.1218776318 | F19: -0.8060804967 | G19: -0.3705868877
A20: 16 | B20: 0 | C20: -0.3103649198 | D20: -0.5308714211 | E20: 0.003028935457 | F20: -0.2989895844 | G20: -0.03257788358
A21: 17 | B21: 0 | C21: 0.165379876 | D21: -0.6842028649 | E21: 0.4321954349 | F21: -0.2561133203 | G21: 0.3053166941
A22: 18 | B22: 0 | C22: -0.2781235846 | D22: -0.6017485108 | E22: -0.2280451851 | F22: -0.6138642526 | G22: -0.2483053978
A23: 19 | B23: 0 | C23: -0.7074247034 | D23: -0.620460601 | E23: -0.6462402072 | F23: -0.08736796052 | G23: -0.5791997691
A24: 20 | B24: 0 | C24: -0.3605106291 | D24: -0.6942993164 | E24: -0.3284039132 | F24: -0.1853035403 | G24: -0.114762999
A25: 21 | B25: 0 | C25: -0.584221071 | D25: -1.00712777 | E25: -0.05563817886 | F25: -0.1809014874 | G25: -0.4647463946
A26: 22 | B26: 0 | C26: -0.2510650946 | D26: -0.7603974191 | E26: -0.05680936724 | F26: -0.6634714844 | G26: -0.1906883144
A27: 23 | B27: 0 | C27: -0.165985663 | D27: -0.5083226794 | E27: -0.08709872181 | F27: 0.009692593463 | G27: -0.1054742636
A28: 24 | B28: 0 | C28: -0.2620365719 | D28: -0.6784142327 | E28: -0.1529948954 | F28: -0.7026457164 | G28: -0.05142459309
A29: 25 | B29: 0 | C29: -0.001884670951 | D29: -0.1373117407 | E29: -0.01218305151 | F29: -0.0360106771 | G29: 0.06858856068
A30: 26 | B30: 0 | C30: -0.1109263474 | D30: -0.543391021 | E30: 0.134753973 | F30: -0.3158843133 | G30: 0.0821851154
A31: 27 | B31: 0 | C31: -0.4595904734 | D31: -0.9415277594 | E31: -0.2734119073 | F31: -0.03372214809 | G31: -0.3693281967
A32: 28 | B32: 0 | C32: -0.1350905214 | D32: -0.6510865039 | E32: 0.01884670951 | F32: -0.2192276174 | G32: 0.1932460822
A33: 29 | B33: 0 | C33: -0.4427159374 | D33: -0.7561771023 | E33: -0.1735445398 | F33: -0.09243637918 | G33: -0.4468218277
A34: 30 | B34: 0 | C34: -0.3943673965 | D34: -0.3498083905 | E34: -0.2585364687 | F34: -0.04004925771 | G34: 0.04509748347
A35: 31 | B35: 0 | C35: -0.02773158685 | D35: -0.04018387706 | E35: 0.4303780736 | F35: -0.5950175431 | G35: 0.1765532823
A36: 32 | B36: 0 | C36: -0.1842265855 | D36: -0.8448710635 | E36: 0.2680675189 | F36: -0.2718637847 | G36: 0.2709281802
A37: 33 | B37: 0 | C37: -0.3073359844 | D37: -0.7976196704 | E37: -0.119541986 | F37: -0.5041494794 | G37: 0.1666654908
A38: 34 | B38: 0 | C38: -0.3317020874 | D38: -0.6474517814 | E38: -0.07316561871 | F38: -0.5081207503 | G38: -0.08555059924
A39: 35 | B39: 0 | C39: 0.03930885126 | D39: -0.2732772879 | E39: 0.4388254381 | F39: 0.01965442563 | G39: 0.04927068343
A40: 36 | B40: 0 | C40: -0.1871882112 | D40: -0.5252174083 | E40: -0.2619019525 | F40: -0.3144708101 | G40: 0.01258690957
A41: 37 | B41: 0 | C41: -0.3804342934 | D41: -0.8883531147 | E41: -0.4316569575 | F41: -0.4194065963 | G41: -0.2398916882
A42: 38 | B42: 0 | C42: 0.2997973006 | D42: -0.2667482493 | E42: 0.3066628876 | F42: -0.3078071521 | G42: 0.4490901638
A43: 39 | B43: 0 | C43: -0.1999770498 | D43: -0.8584676182 | E43: 0.2030059853 | F43: -0.1577065728 | G43: -0.02140447723
A44: 40 | B44: 0 | C44: -0.1017722314 | D44: -0.5895654593 | E44: -0.1109936571 | F44: -0.1343501149 | G44: 0.02288529012
A45: 41 | B45: 0 | C45: -0.4499921134 | D45: -0.8694660194 | E45: -0.6119391959 | F45: -0.3282289081 | G45: -0.1107446113
A46: 42 | B46: 0 | C46: -0.5478132668 | D46: -0.7632042326 | E46: -0.2605355661 | F46: -0.3260951913 | G46: -0.2492275404
A47: 43 | B47: 0 | C47: 0.08373323797 | D47: -0.4193392866 | E47: -0.0682520123 | F47: -0.238276256 | G47: -0.01601970308
A48: 44 | B48: 0 | C48: -0.4946318911 | D48: -0.491535646 | E48: -0.1786129584 | F48: -0.1261787202 | G48: -0.1136591203
A49: 45 | B49: 0 | C49: 0.00444243867 | D49: -0.5005820665 | E49: -0.1227728505 | F49: -0.0001346193536 | G49: 0.1139552829
A50: 46 | B50: 0 | C50: -0.220573811 | D50: -0.8003120574 | E50: -0.2554402235 | F50: -0.4433688412 | G50: -0.1085705087
A51: 47 | B51: 0 | C51: -0.298249178 | D51: -0.4620809314 | E51: -0.3549239259 | F51: -0.3014127328 | G51: -0.2862680555
A52: 48 | B52: 0 | C52: -0.779984535 | D52: -0.8958244888 | E52: -0.5977099302 | F52: 0.1249940699 | G52: -0.4709658087
A53: 49 | B53: 0 | C53: -0.3475871711 | D53: -0.7750036189 | E53: -0.3684531709 | F53: -0.3294135584 | G53: -0.03957808997
A54: 50 | B54: 0 | C54: -0.9403834949 | D54: -0.9908657525 | E54: -0.5263616728 | F54: -0.8340342055 | G54: -0.5544971177
A55: 51 | B55: 0 | C55: -0.1695530759 | D55: -0.2133043659 | E55: 0.291383591 | F55: -0.2866719136 | G55: 0.2184199013
A56: 52 | B56: 0 | C56: -0.7288964903 | D56: -1.114446319 | E56: -0.2044194885 | F56: -0.6564039684 | G56: -0.3676454548
A57: 53 | B57: 0 | C57: -0.2718637847 | D57: -0.7235790259 | E57: -0.02402955463 | F57: -0.07680034126 | G57: -0.1162438119
A58: 54 | B58: 0 | C58: -0.6010081044 | D58: -0.8655351343 | E58: -0.3289423906 | F58: -0.2580653009 | G58: -0.3825208934
A59: 55 | B59: 0 | C59: -0.2783928233 | D59: -0.6176335945 | E59: -0.3463082873 | F59: -0.607537143 | G59: -0.1856400887
A60: 56 | B60: 0 | C60: -0.2606903783 | D60: -0.7178577033 | E60: -0.1665914501 | F60: -0.3485968163 | G60: -0.212025482
A61: 57 | B61: 0 | C61: -0.3323078745 | D61: -0.8909108824 | E61: -0.108099341 | F61: -0.7690803674 | G61: -0.1713031275
A62: 58 | B62: 0 | C62: -0.1605605031 | D62: -0.9650457605 | E62: -0.2688617731 | F62: -0.2427456185 | G62: -0.4588769908
A63: 59 | B63: 0 | C63: -0.3809727708 | D63: -0.6923473358 | E63: -0.2562479397 | F63: -0.01871209016 | G63: -0.1819380565
A64: 60 | B64: 0 | C64: 0.03446255453 | D64: -0.2722003331 | E64: -0.381982416 | F64: -0.0490687544 | G64: 0.2187564497
A65: 61 | B65: 0 | C65: -0.5281117244 | D65: -0.4379167574 | E65: 0.1253979279 | F65: 0.125801786 | G65: 0.1863131854
A66: 62 | B66: 0 | C66: -0.5648628079 | D66: -0.7087035873 | E66: -0.2485073268 | F66: -0.2050925853 | G66: 0.01951980628
A67: 63 | B67: 0 | C67: -0.333452139 | D67: -0.6894530197 | E67: -0.1142918312 | F67: 0.09221425725 | G67: -0.03385676744
A68: 64 | B68: 0 | C68: -0.1682741921 | D68: -0.3630683968 | E68: -0.1557545922 | F68: -0.03755879967 | G68: 0.07410795418
A69: 65 | B69: 0 | C69: -0.4622357436 | D69: -1.372666432 | E69: -0.43174446 | F69: -0.3544729511 | G69: -0.1523419916
A70: 66 | B70: 0 | C70: -0.2159294432 | D70: -0.4701580926 | E70: -0.2611615461 | F70: -0.4113294351 | G70: -0.2526132171
A71: 67 | B71: 0 | C71: -0.2334299592 | D71: -0.5781228142 | E71: -0.2398243785 | F71: -0.1395329601 | G71: -0.2291221399
A72: 68 | B72: 0 | C72: -0.1766879017 | D72: -0.1947268951 | E72: -0.1630913469 | F72: -0.07942541865 | G72: -0.1621490115
A73: 69 | B73: 0 | C73: -0.2427860043 | D73: -0.2975760812 | E73: 0.03796265773 | F73: -0.1341481859 | G73: 0.04482824476
A74: 70 | B74: 0 | C74: -0.2220546238 | D74: -0.5155248148 | E74: 0.01891401919 | F74: -0.5774497175 | G74: 0.1514467729
A75: 71 | B75: 0 | C75: -0.580882511 | D75: -0.958489798 | E75: 0.04974185117 | F75: -0.2869411523 | G75: -0.2194295464
A76: 72 | B76: 0 | C76: 0.07141556711 | D76: -0.5184864406 | E76: -0.04752063184 | F76: -0.5514681822 | G76: 0.203073295
A77: 73 | B77: 0 | C77: -0.2043521788 | D77: -0.2186218303 | E77: -0.2422475269 | F77: -0.569843724 | G77: -0.3273269584
A78: 74 | B78: 0 | C78: -0.1066185281 | D78: -0.6038351108 | E78: -0.2366608237 | F78: -0.196611566 | G78: -0.2400936172
A79: 75 | B79: 0 | C79: -0.3789736734 | D79: -1.124832202 | E79: -0.1990549073 | F79: -0.5542480719 | G79: -0.3944548991
A80: 76 | B80: 0 | C80: -0.7665899093 | D80: -1.176505841 | E80: -0.5317464469 | F80: -0.2013232434 | G80: -0.3110649405
A81: 77 | B81: 0 | C81: -0.01669279985 | D81: -0.3948385642 | E81: 0.1460619987 | F81: -0.7583108191 | G81: -0.3487987453
A82: 78 | B82: 0 | C82: -0.1416868697 | D82: -0.6644138199 | E82: 0.2061022304 | F82: -0.8744200116 | G82: 0.02429879333
A83: 79 | B83: 0 | C83: -0.1583123599 | D83: -0.6466440652 | E83: 0.03203940617 | F83: -0.6627983877 | G83: -0.09820481849
A84: 80 | B84: 0 | C84: -0.1229747796 | D84: -0.3812420095 | E84: -0.02732772879 | F84: -0.2482380881 | G84: 0.04974185117
A85: 81 | B85: 0 | C85: -0.7433680708 | D85: -1.10589799 | E85: -0.6498749297 | F85: -0.400088719 | G85: -0.8452076119
A86: 82 | B86: 0 | C86: -0.2907104942 | D86: -0.9717498043 | E86: -0.3795592676 | F86: -0.4270125898 | G86: -0.2371993011
A87: 83 | B87: 0 | C87: -0.3142688811 | D87: -0.8227261798 | E87: -0.1711685082 | F87: -0.2398916882 | G87: 0.006663658006
A88: 84 | B88: 0 | C88: -0.2273047786 | D88: -0.4865143441 | E88: -0.2683636815 | F88: -0.2356511786 | G88: -0.04563596089
A89: 85 | B89: 0 | C89: -0.4998416601 | D89: -0.7723785415 | E89: -0.0229525998 | F89: -0.5886231238 | G89: -0.06091525753
A90: 86 | B90: 0 | C90: -0.4570192437 | D90: -0.8053468213 | E90: -0.3415158383 | F90: -0.310755316 | G90: -0.1271345176
A91: 87 | B91: 0 | C91: -0.6397380924 | D91: -1.108415372 | E91: -0.3284981468 | F91: -0.3235845404 | G91: -0.4033465074
A92: 88 | B92: 0 | C92: 0.3322405648 | D92: -0.1217632054 | E92: 0.06212683171 | F92: -0.1762840436 | G92: 0.2993261328
A93: 89 | B93: 0 | C93: -0.2598153525 | D93: -0.7500317288 | E93: 0.04119352222 | F93: -0.5460834081 | G93: -0.3097591327
A94: 90 | B94: 0 | C94: -0.1498313406 | D94: -0.5252174083 | E94: 0.1392637213 | F94: -0.5225250212 | G94: 0.1938518693
A95: 91 | B95: 0 | C95: -0.3015204283 | D95: -0.8972783779 | E95: -0.268875235 | F95: -0.535690794 | G95: -0.2120658678
A96: 92 | B96: 0 | C96: -0.0967240056 | D96: -0.3894537901 | E96: 0.2356511786 | F96: -0.2015924821 | G96: 0.2129678175
A97: 93 | B97: 0 | C97: -0.07922348962 | D97: -0.5886904335 | E97: 0.0249718901 | F97: -0.2482380881 | G97: -0.0284719933
A98: 94 | B98: 0 | C98: -0.06905972842 | D98: -0.9485279658 | E98: -0.01453889019 | F98: -0.6530384845 | G98: -0.07572338643
A99: 95 | B99: 0 | C99: -0.4284934027 | D99: -0.6780776843 | E99: 0.02315452883 | F99: -0.4720427636 | G99: -0.2612288558
A100: 96 | B100: 0 | C100: -0.01299076763 | D100: -0.4054734932 | E100: 0.08992572824 | F100: -0.400088719 | G100: -0.005317464469
A101: 97 | B101: 0 | C101: -0.29575872 | D101: -0.2139774626 | E101: -0.1130129474 | F101: 0.3254288255 | G101: 0.09726248301
A102: 98 | B102: 0 | C102: -0.6786161617 | D102: -0.6187105494 | E102: 0.5950848528 | F102: -0.7412141612 | G102: -0.3597702226
A103: 99 | B103: 0 | C103: -0.2083234498 | D103: -0.775205548 | E103: -0.0987432959 | F103: -0.7354928386 | G103: -0.04307819317
A104: 100 | B104: 0 | C104: -0.262844288 | D104: -0.7199443033 | E104: -0.298451107 | F104: -0.3737706354 | G104: -0.3539142807
A105: 101 | B105: 0 | C105: -0.419473906 | D105: -1.221334086 | E105: -0.3365887699 | F105: -0.6388361427 | G105: -0.6311628396
A106: 102 | B106: 0 | C106: -0.2895662297 | D106: -0.8088603864 | E106: -0.1592546954 | F106: -0.3444236163 | G106: -0.04220316737
A107: 103 | B107: 0 | C107: -0.6061236398 | D107: -1.159947661 | E107: -0.2193622368 | F107: -0.4048003964 | G107: -0.3241634036
A108: 104 | B108: 0 | C108: -0.9467106045 | D108: -1.107715351 | E108: -0.9701343721 | F108: -0.4117871409 | G108: -0.4795814474
A109: 105 | B109: 0 | C109: -0.2900373974 | D109: -0.2841814555 | E109: -0.181399579 | F109: -0.2848545523 | G109: -0.14996596
A110: 106 | B110: 0 | C110: -0.08359861861 | D110: -0.4480132089 | E110: -0.3057205521 | F110: 0.01487543858 | G110: -0.167870334
A111: 107 | B111: 0 | C111: 0.1155034054 | D111: -0.565670524 | E111: 0.1762167339 | F111: -0.4828796215 | G111: -0.0386357545
A112: 108 | B112: 0 | C112: -0.1569661664 | D112: -0.6557308716 | E112: -0.06004023173 | F112: -0.3470486937 | G112: -0.1113975151
A113: 109 | B113: 0 | C113: 0.1657164243 | D113: -0.6072679043 | E113: 0.05142459309 | F113: 0.2411436482 | G113: 0.07249252194
A114: 110 | B114: 0 | C114: -0.2733445976 | D114: -0.7194731356 | E114: -0.02106792885 | F114: -0.3418658486 | G114: -0.132667373
A115: 111 | B115: 0 | C115: -0.375318758 | D115: -0.5684975305 | E115: 0.2492881191 | F115: -0.3031627844 | G115: 0.01931787725
A116: 112 | B116: 0 | C116: -0.6796258069 | D116: -0.9045074372 | E116: -0.3290097003 | F116: -0.4869855118 | G116: -0.4536672218
A117: 113 | B117: 0 | C117: 0.1025126378 | D117: -0.2262951335 | E117: -0.07976196704 | F117: -0.2543632687 | G117: 0.01803899339
A118: 114 | B118: 0 | C118: -0.4729177894 | D118: -0.2511997139 | E118: -0.04119352222 | F118: -0.7524548772 | G118: -0.1820053661
A119: 115 | B119: 0 | C119: -0.3376253389 | D119: -0.748954774 | E119: 0.02611615461 | F119: -0.5692379369 | G119: -0.2037463917
A120: 116 | B120: 0 | C120: -0.4433015316 | D120: -1.103474842 | E120: -0.1976885208 | F120: -0.4421572671 | G120: -0.1521198696
A121: 117 | B121: 0 | C121: 0.003567412872 | D121: -0.7293676581 | E121: 0.002288529012 | F121: 0.1204843215 | G121: -0.2063714691
A122: 118 | B122: 0 | C122: -0.1997078111 | D122: -0.6883760649 | E122: 0.1311192505 | F122: -0.2293240689 | G122: 0.4280222349
A123: 119 | B123: 0 | C123: -0.5065053181 | D123: -0.9772691978 | E123: -0.07229059291 | F123: -0.7228386194 | G123: -0.3200575133
A124: 120 | B124: 0 | C124: -0.6699668683 | D124: -0.6393409653 | E124: -0.2865036394 | F124: -0.8066055122 | G124: -0.4783362183
A125: 121 | B125: 0 | C125: -0.609825672 | D125: -0.7653110255 | E125: -0.309489894 | F125: -0.3545873775 | G125: -0.2748927201
A126: 122 | B126: 0 | C126: -0.1863131854 | D126: -0.2645943396 | E126: 0.05014570923 | F126: -0.1004933475 | G126: -0.1148976183
A127: 123 | B127: 0 | C127: -0.4907481228 | D127: -0.8248060488 | E127: -0.2818188859 | F127: 0.09410565917 | G127: -0.2680877118
A128: 124 | B128: 0 | C128: 0.06380957363 | D128: -0.5604203692 | E128: -0.1860439467 | F128: -0.2124966497 | G128: 0.07673303158
A129: 125 | B129: 0 | C129: 0.2311414302 | D129: -0.2041502498 | E129: 0.1846977532 | F129: -0.3775399773 | G129: -0.04859758667
A130: 126 | B130: 0 | C130: -0.09995487008 | D130: -0.6153450655 | E130: 0.2169390884 | F130: -0.3424716357 | G130: -0.1189361989
A131: 127 | B131: 0 | C131: -0.271594546 | D131: -0.7176557743 | E131: -0.1431003729 | F131: -0.4406764542 | G131: -0.2958933393
A132: 128 | B132: 0 | C132: -0.2816506117 | D132: -0.5311675837 | E132: -0.2992184374 | F132: -0.8850818644 | G132: -0.1616374579
A133: 129 | B133: 0 | C133: -0.4976877504 | D133: -1.06012741 | E133: -0.07518490901 | F133: -0.644826704 | G133: -0.02210449787
A134: 130 | B134: 0 | C134: -0.4004925771 | D134: -1.107176874 | E134: -0.2940086684 | F134: -0.5022648085 | G134: -0.1956019208
A135: 131 | B135: 0 | C135: -0.391136532 | D135: -1.024049423 | E135: -0.1542872412 | F135: -0.3495391517 | G135: -0.3325771132
A136: 132 | B136: 0 | C136: -0.2442668172 | D136: -0.9705382301 | E136: -0.2697771847 | F136: -0.2262951335 | G136: 0.04428976735
A137: 133 | B137: 0 | C137: 0.0001346193536 | D137: -0.3774726676 | E137: 0.09012765727 | F137: -0.1441100181 | G137: 0.1652452566
A138: 134 | B138: 0 | C138: 0.2994607522 | D138: -0.7321946645 | E138: -0.06730967682 | F138: 0.02046214175 | G138: 0.0987432959
A139: 135 | B139: 0 | C139: -0.4342820349 | D139: -0.9096902823 | E139: -0.2319491463 | F139: -0.2983164877 | G139: -0.1866497338
A140: 136 | B140: 0 | C140: -0.2896335394 | D140: -0.5637858531 | E140: -0.2028713659 | F140: -0.2468918946 | G140: -0.3427408744
A141: 137 | B141: 0 | C141: -0.08824298632 | D141: -0.5271020792 | E141: -0.2242758432 | F141: -0.7768209802 | G141: 0.01622163211
A142: 138 | B142: 0 | C142: -0.2524785978 | D142: -0.5087265374 | E142: 0.1584469792 | F142: -0.06347302524 | G142: 0.01965442563
A143: 139 | B143: 0 | C143: -0.2934096122 | D143: -0.7495672921 | E143: -0.2773899092 | F143: -0.006852125101 | G143: -0.3951145339
A144: 140 | B144: 0 | C144: -0.3514238227 | D144: -0.9335179079 | E144: -0.2787966814 | F144: -0.2151890368 | G144: -0.1315231085
A145: 141 | B145: 0 | C145: -0.6924819552 | D145: -0.5201691825 | E145: 0.03452986421 | F145: -0.2860661265 | G145: -0.3790207902
A146: 142 | B146: 0 | C146: -0.2814217588 | D146: -0.3963866868 | E146: -0.0598383027 | F146: -0.2396224495 | G146: -0.1539372309
A147: 143 | B147: 0 | C147: -0.2172083271 | D147: -0.6069986656 | E147: 0.247847692 | F147: -0.4743986023 | G147: 0.2043521788
A148: 144 | B148: 0 | C148: -0.7533972127 | D148: -0.8061006896 | E148: -0.3893864804 | F148: -0.4921010473 | G148: -0.2810179007
A149: 145 | B149: 0 | C149: 0.007538683804 | D149: -0.3407215841 | E149: -0.1318596569 | F149: -0.1877266887 | G149: 0.06502114781
A150: 146 | B150: 0 | C150: -0.1493601729 | D150: -0.5934021109 | E150: -0.2286509722 | F150: -0.4632251959 | G150: -0.3321732551
A151: 147 | B151: 0 | C151: -0.05741515433 | D151: -0.4029157255 | E151: -0.1713031275 | F151: -0.6063255688 | G151: 0.03527027066
A152: 148 | B152: 0 | C152: 0.09430085723 | D152: -0.5240058341 | E152: -0.08003120574 | F152: -0.05539586403 | G152: -0.154744947
A153: 149 | B153: 0 | C153: -0.3730975386 | D153: -0.5938732786 | E153: 0.06932896713 | F153: -0.5743534723 | G153: 0.009221425725
A154: 150 | B154: 0 | C154: -0.2088619272 | D154: -0.6270569493 | E154: 0.2726715008 | F154: -0.5267655308 | G154: 0.121224728
A155: 151 | B155: 0 | C155: -0.417185377 | D155: -0.4825430731 | E155: -0.1169169086 | F155: -0.2797390169 | G155: -0.04691484475
A156: 152 | B156: 0 | C156: -0.5909116528 | D156: -0.9180366822 | E156: -0.3317020874 | F156: -0.2507285462 | G156: -0.2463534172
A157: 153 | B157: 0 | C157: -0.3809458469 | D157: -0.6513961284 | E157: -0.1745743778 | F157: -0.6163950965 | G157: -0.2259316612
A158: 154 | B158: 0 | C158: -0.4097813125 | D158: -0.7698880835 | E158: -0.07727150899 | F158: -0.6292108589 | G158: -0.1321288956
A159: 155 | B159: 0 | C159: -0.3024896876 | D159: -0.6483941168 | E159: -0.2084580691 | F159: -0.5649301176 | G159: 0.1314557988
A160: 156 | B160: 0 | C160: 0.09012765727 | D160: -0.6104987688 | E160: -0.02806813524 | F160: -0.3944347062 | G160: -0.02126985788
A161: 157 | B161: 0 | C161: -0.2040829401 | D161: -0.5976426205 | E161: -0.2408340237 | F161: -0.2620365719 | G161: -0.2888258232
A162: 158 | B162: 0 | C162: -0.445926609 | D162: -0.8243416121 | E162: -0.1513794632 | F162: -0.355731642 | G162: -0.1719762243
A163: 159 | B163: 0 | C163: -0.4875912989 | D163: -0.3975309513 | E163: -0.3744437322 | F163: -0.2658732235 | G163: -0.05075149632
A164: 160 | B164: 0 | C164: -0.117253457 | D164: -0.7313196387 | E164: -0.06845394133 | F164: -0.1608701276 | G164: 0.01877939983
A165: 161 | B165: 0 | C165: -0.08440633474 | D165: -0.3619241323 | E165: -0.2744888621 | F165: -0.2013232434 | G165: -0.2841141459
A166: 162 | B166: 0 | C166: 0.427598184 | D166: -0.6550577748 | E166: -0.09167577983 | F166: -0.6308262912 | G166: -0.04819372861
A167: 163 | B167: 0 | C167: -0.09948370235 | D167: -0.8055622122 | E167: -0.1812649597 | F167: 0.2081215207 | G167: -0.02577960622
A168: 164 | B168: 0 | C168: -0.00275969675 | D168: -0.6564039684 | E168: 0.00572132253 | F168: -0.3421350873 | G168: -0.03802996741
A169: 165 | B169: 0 | C169: -0.3356060486 | D169: -0.7129440969 | E169: -0.139129102 | F169: -0.1717742953 | G169: -0.02450072236
A170: 166 | B170: 0 | C170: 0.08548328957 | D170: -0.6995494712 | E170: -0.1033203539 | F170: -0.2612288558 | G170: -0.04112621254
A171: 167 | B171: 0 | C171: -0.2027367466 | D171: -0.3913384611 | E171: 0.1992366434 | F171: 0.03345290938 | G171: 0.1130802571
A172: 168 | B172: 0 | C172: -0.3211344681 | D172: -0.5392851307 | E172: 0.314504465 | F172: -0.5312079695 | G172: -0.05640550918
A173: 169 | B173: 0 | C173: -0.5621906137 | D173: -0.9965399583 | E173: -0.5321704979 | F173: -0.5868259554 | G173: -0.3308472545
A174: 170 | B174: 0 | C174: -0.494860744 | D174: -0.883708747 | E174: -0.07208866388 | F174: -0.3662992613 | G174: -0.08575252827
A175: 171 | B175: 0 | C175: -0.1294365085 | D175: -0.5409678726 | E175: -0.0636076446 | F175: 0.01951980628 | G175: 0.04193392866
A176: 172 | B176: 0 | C176: -0.341980275 | D176: -0.9627101147 | E176: -0.4287424485 | F176: -0.5597943892 | G176: -0.4054533003
A177: 173 | B177: 0 | C177: -0.366353109 | D177: -0.5791189975 | E177: -0.5511854816 | F177: -0.3055051612 | G177: -0.6180913003
A178: 174 | B178: 0 | C178: -0.4836873377 | D178: -0.8296590765 | E178: -0.2524112881 | F178: -0.4412822413 | G178: -0.3479910292
A179: 175 | B179: 0 | C179: -0.5508623951 | D179: -0.8665447794 | E179: 0.001682741921 | F179: -0.2637866235 | G179: -0.03621260613
A180: 176 | B180: 0 | C180: -0.2902393265 | D180: -0.6414612201 | E180: -0.1603989599 | F180: -0.6300185751 | G180: 0.03412600615
A181: 177 | B181: 0 | C181: -1.179871325 | D181: -1.000558346 | E181: -0.6822508843 | F181: -0.7932445414 | G181: -0.7217616646
A182: 178 | B182: 0 | C182: -0.1963423273 | D182: -0.5601511305 | E182: -0.2468918946 | F182: -0.7304446129 | G182: 0.1026472572
A183: 179 | B183: 0 | C183: -0.4362407465 | D183: -0.8541665299 | E183: -0.2621106125 | F183: -0.3770082309 | G183: -0.1400108588
A184: 180 | B184: 0 | C184: -0.4721773829 | D184: -0.7340120258 | E184: -0.3526353969 | F184: -0.8531501537 | G184: 0.1117340635
A185: 181 | B185: 0 | C185: 0.04550134153 | D185: -0.5882192658 | E185: 0.1951307531 | F185: -0.5222557825 | G185: -0.01601970308
A186: 182 | B186: 0 | C186: -0.8279090249 | D186: -0.3894537901 | E186: -0.1679376437 | F186: -0.3419331583 | G186: -0.145590831
A187: 183 | B187: 0 | C187: -0.2304683334 | D187: -0.859140715 | E187: -0.231814527 | F187: -0.3516257517 | G187: -0.2814217588
A188: 184 | B188: 0 | C188: -0.4678964875 | D188: -1.114002075 | E188: -0.1346462775 | F188: -0.5759285188 | G188: -0.4820315196
A189: 185 | B189: 0 | C189: -0.7117863705 | D189: -1.089057109 | E189: -0.1405291433 | F189: -0.5984368747 | G189: -0.5773689459
A190: 186 | B190: 0 | C190: -0.2402282366 | D190: -0.7548107159 | E190: -0.3227499004 | F190: -0.320124823 | G190: 0.09833943784
A191: 187 | B191: 0 | C191: -0.4281568543 | D191: -0.1957365402 | E191: 0.04375128994 | F191: -0.08332937991 | G191: 0.02113523852
A192: 188 | B192: 0 | C192: 0.4636963636 | D192: -0.3325098035 | E192: 0.3744437322 | F192: -0.2914509006 | G192: 0.5122939503
A193: 189 | B193: 0 | C193: -0.3151439069 | D193: -0.8929301727 | E193: 0.1423599665 | F193: -0.194524966 | G193: -0.1159745732
A194: 190 | B194: 0 | C194: -0.2446706753 | D194: -0.7949272833 | E194: -0.2285836625 | F194: -0.1169842183 | G194: -0.1496294116
A195: 191 | B195: 0 | C195: -0.1905536951 | D195: -0.4842931247 | E195: -0.1606008889 | F195: -0.1040607604 | G195: 0.1735243469
A196: 192 | B196: 0 | C196: -0.1412830117 | D196: -0.9063921081 | E196: -0.06125180591 | F196: -0.4653791056 | G196: -0.04004925771
A197: 193 | B197: 0 | C197: -0.1514743698 | D197: -0.6618836492 | E197: -0.4084627159 | F197: -0.632334701 | G197: -0.3123444974
A198: 194 | B198: 0 | C198: -0.6022196785 | D198: -0.5901039367 | E198: -0.165379876 | F198: -0.1344847343 | G198: -0.1581104309
A199: 195 | B199: 0 | C199: -0.3990063121 | D199: -0.851192721 | E199: -0.4978842274 | F199: -0.5742807106 | G199: -0.3541780674
A200: 196 | B200: 0 | C200: -0.3887133837 | D200: -0.7175211549 | E200: -0.2389493527 | F200: 0.006596348329 | G200: -0.02463534172
A201: 197 | B201: 0 | C201: -0.6411919814 | D201: -0.9812404687 | E201: -0.4934472408 | F201: -0.2995280619 | G201: -0.5775843368
... 4299 more rows
